Workbook

Sheet Fig3_CAPEX comparison
A3: CAPEX comparison
A5: Technology | B5: power based low | C5: power based CAPEX | D5: Difference | E5: energy based low | F5: energy based CAPEX | G5: Difference
A7: PSH | B7: =260+220 -> 480 | C7: =560+460 -> 1020 | D7: =C7-B7 -> 540
E8: 10 | F8: 20 | G8: =F8-E8 -> 10
A11: dCAES | B11: =220+230 -> 450 | C11: =340+380 -> 720 | D11: =C11-B11 -> 270
E12: 20 | F12: 30 | G12: =F12-E12 -> 10
A15: aCAES | B15: =380+230 -> 610 | C15: =620+360 -> 980 | D15: 370
E16: 20 | F16: 30 | G16: 10
A19: H2 | B19: =410+727 -> 1137 | C19: =880+727 -> 1607 | D19: 470
E20: 0.3 | F20: 0.6 | G20: 0.3
A23: CH4 | B23: =790+727 -> 1517 | C23: =1360+727 -> 2087 | D23: 570
E24: 0.14 | F24: 0.14 | G24: 0
A27: PHES | B27: 350 | C27: 797 | D27: 447
E28: 13 | F28: 21 | G28: 8

Sheet Fig4_PHES_3Scenarios
B1: LCOS | C1: CAPEX power based | D1: CAPEX energy based | E1: CAPEX discharging unit | F1: OPEX | G1: electricity charging
A2: Scenario 1 | B2: 0.06984529857 | C2: 0.01526039088 | D2: 0.004534516146 | E2: 0 | F2: 0.0083181571 | G2: 0.04173223444
A3: Scenario 2 | B3: 0.08477253153 | C3: 0.02500524048 | D3: 0.005929751884 | E3: 0 | F3: 0.008999612113 | G3: 0.04483792705
A4: Scenario 3 | B4: 0.109912827 | C4: 0.03475009008 | D4: 0.007324987621 | E4: 0 | F4: 0.01010525183 | G4: 0.05773249746

Sheet Fig5_shortterm
A1: cycles | B1: FLH | C1: energy | D1: PSW low | E1: PSW med | F1: PSW high | G1: dCAES low | H1: dCAES med | I1: dCAES high | J1: aCAES low | K1: aCAES med | L1: aCAES high | M1: Li-Ion low | N1: Li-Ion med | O1: Li-Ion high | P1: Pb low | Q1: Pb med | R1: Pb high | S1: VRF low | T1: VRF med | U1: VRF high | V1: Li-Ion 2030 low | W1: Li-Ion 2030 med | X1: Li-Ion 2030 high | Y1: Pb 2030 low | Z1: Pb 2030 med | AA1: Pb 2030 high | AB1: VRF 2030 low | AC1: VRF 2030 med | AD1: VRF 2030 high | AE1: H2 AEL low | AF1: H2 AEL med | AG1: H2 AEL high | AH1: CH4 AEL low | AI1: CH4 AEL med | AJ1: CH4 AEL high | AK1: PHES low | AL1: PHES med | AM1: PHES high
A2: 0 | B2: 0 | C2: 0 | D2: 100 | E2: 100 | F2: 100 | G2: 100 | H2: 100 | I2: 100 | J2: 100 | K2: 100 | L2: 100 | M2: 100 | N2: 100 | O2: 100 | P2: 100 | Q2: 100 | R2: 100 | S2: 100 | T2: 100 | U2: 100 | V2: 100 | W2: 100 | X2: 100 | Y2: 100 | Z2: 100 | AA2: 100 | AB2: 100 | AC2: 100 | AD2: 100 | AE2: 100 | AF2: 100 | AG2: 100 | AH2: 100 | AI2: 100 | AJ2: 100 | AK2: 100 | AL2: 100 | AM2: 100
A3: 2.5 | B3: 10 | C3: 1000000 | D3: 5.646928566 | E3: 8.190496779 | F3: 10.73406499 | G3: 5.733156274 | H3: 7.140386234 | I3: 8.547616195 | J3: 9.313052525 | K3: 11.76223609 | L3: 14.21141965 | M3: 45.75155304 | N3: 58.87148369 | O3: 71.99141434 | P3: 31.44948854 | Q3: 36.28787139 | R3: 41.12625424 | S3: 62.43730919 | T3: 66.12983823 | U3: 69.82236727 | V3: 16.19230022 | W3: 28.83220805 | X3: 41.47211587 | Y3: 21.46699099 | Z3: 25.78656845 | AA3: 30.1061459 | AB3: 16.75563656 | AC3: 20.10676388 | AD3: 23.45789119 | AE3: 15.90064479 | AF3: 20.93949115 | AG3: 25.97833752 | AH3: 23.57546746 | AI3: 30.1725882 | AJ3: 36.76970895 | AK3: 6.473257979 | AL3: 9.629621815 | AM3: 12.78664191
A4: 5 | B4: 20 | C4: 2000000 | D4: 2.829294224 | E4: 4.10107833 | F4: 5.372862437 | G4: 2.895274304 | H4: 3.598889284 | I4: 4.302504264 | J4: 4.660668919 | K4: 5.885260701 | L4: 7.109852483 | M4: 17.36224362 | N4: 22.3411223 | O4: 27.32000098 | P4: 10.09788142 | Q4: 11.65140164 | R4: 13.20492186 | S4: 24.12795043 | T4: 25.55487223 | U4: 26.98179403 | V4: 6.21303718 | W4: 11.06301008 | X4: 15.91298298 | Y4: 7.584082899 | Z4: 9.11014836 | AA4: 10.63621382 | AB4: 6.481734863 | AC4: 7.778081836 | AD4: 9.074428808 | AE4: 7.952393883 | AF4: 10.47214915 | AG4: 12.99190442 | AH4: 11.79086208 | AI4: 15.08942245 | AJ4: 18.38798283 | AK4: 3.238181763 | AL4: 4.816431057 | AM4: 6.395220955
A5: 7.5 | B5: 30 | C5: 3000000 | D5: 1.890082775 | E5: 2.737938846 | F5: 3.585794917 | G5: 1.949261814 | H5: 2.418338467 | I5: 2.887415121 | J5: 3.10982913 | K5: 3.926223652 | L5: 4.742618173 | M5: 12.28165011 | N5: 15.80359389 | O5: 19.32553767 | P5: 6.951535501 | Q5: 8.021002502 | R5: 9.090469502 | S5: 17.1236383 | T5: 18.13632659 | U5: 19.14901487 | V5: 4.403709209 | W5: 7.841298541 | X5: 11.27888787 | Y5: 5.299330944 | Z5: 6.365659731 | AA5: 7.431988519 | AB5: 4.600975797 | AC5: 5.521170956 | AD5: 6.441366116 | AE5: 5.302977218 | AF5: 6.983035626 | AG5: 8.663094035 | AH5: 7.86266029 | AI5: 10.06170054 | AJ5: 12.26074079 | AK5: 2.159823025 | AL5: 3.212034137 | AM5: 4.264747304
A6: 10 | B6: 40 | C6: 4000000 | D6: 1.420477051 | E6: 2.056369104 | F6: 2.692261157 | G6: 1.476241514 | H6: 1.828049004 | I6: 2.179856494 | J6: 2.334398785 | K6: 2.946694676 | L6: 3.558990567 | M6: 8.535238301 | N6: 10.9828434 | O6: 13.4304485 | P6: 4.73738846 | Q6: 5.466217454 | R6: 6.195046447 | S6: 11.92912463 | T6: 12.63461049 | U6: 13.34009636 | V6: 3.064895233 | W6: 5.457389982 | X6: 7.84988473 | Y6: 3.649967819 | Z6: 4.384412563 | AA6: 5.118857308 | AB6: 3.205709005 | AC6: 3.846850805 | AD6: 4.487992606 | AE6: 3.978268431 | AF6: 5.238478146 | AG6: 6.498687861 | AH6: 5.898559394 | AI6: 7.54783958 | AJ6: 9.197119766 | AK6: 1.620643655 | AL6: 2.409835678 | AM6: 3.199510478
A7: 12.5 | B7: 50 | C7: 5000000 | D7: 1.138713616 | E7: 1.647427259 | F7: 2.156140901 | G7: 1.19242409 | H7: 1.473870082 | I7: 1.755316074 | J7: 1.869136936 | K7: 2.358973648 | L7: 2.848810361 | M7: 7.092833114 | N7: 9.126807316 | O7: 11.16078152 | P7: 3.907635987 | Q7: 4.508810754 | R7: 5.109985521 | S7: 9.922451733 | T7: 10.50926339 | U7: 11.09607506 | V7: 2.548388506 | W7: 4.537691778 | X7: 6.526995051 | Y7: 3.022764566 | Z7: 3.631003778 | AA7: 4.239242989 | AB7: 2.666602747 | AC7: 3.199923297 | AD7: 3.733243846 | AE7: 3.183443947 | AF7: 4.191744904 | AG7: 5.200045861 | AH7: 4.720098856 | AI7: 6.039523005 | AJ7: 7.358947154 | AK7: 1.297136034 | AL7: 1.928516602 | AM7: 2.560368382
A8: 15 | B8: 60 | C8: 6000000 | D8: 0.9508713261 | E8: 1.374799362 | F8: 1.798727397 | G8: 1.003210094 | H8: 1.237748421 | I8: 1.472286748 | J8: 1.558960778 | K8: 1.967158039 | L8: 2.3753553 | M8: 5.658462642 | N8: 7.281110017 | O8: 8.903757392 | P8: 3.094606569 | Q8: 3.570699888 | R8: 4.046793206 | S8: 7.923227919 | T8: 8.391805914 | U8: 8.860383909 | V8: 2.034178364 | W8: 3.622082903 | X8: 5.209987442 | Y8: 2.403297684 | Z8: 2.886888071 | AA8: 3.370478459 | AB8: 2.129438957 | AC8: 2.555326749 | AD8: 2.98121454 | AE8: 2.65356025 | AF8: 3.493921624 | AG8: 4.334282998 | AH8: 3.934458498 | AI8: 5.033978621 | AJ8: 6.133498745 | AK8: 1.081464286 | AL8: 1.607637218 | AM8: 2.134273652
A9: 17.5 | B9: 70 | C9: 7000000 | D9: 0.8166982619 | E9: 1.180065149 | F9: 1.543432037 | G9: 0.8680560073 | H9: 1.069088859 | I9: 1.27012171 | J9: 1.337405577 | K9: 1.687288943 | L9: 2.037172309 | M9: 4.986225845 | N9: 6.416099433 | O9: 7.845973021 | P9: 2.717647631 | Q9: 3.135747266 | R9: 3.553846902 | S9: 6.984982439 | T9: 7.398072798 | U9: 7.811163158 | V9: 1.792987426 | W9: 3.192615366 | X9: 4.592243305 | Y9: 2.11442013 | Z9: 2.539882718 | AA9: 2.965345305 | AB9: 1.877325142 | AC9: 2.25279017 | AD9: 2.628255199 | AE9: 2.275072567 | AF9: 2.995477486 | AG9: 3.715882406 | AH9: 3.373286813 | AI9: 4.315732633 | AJ9: 5.258178454 | AK9: 0.9274130378 | AL9: 1.378437658 | AM9: 1.829920273
A10: 20 | B10: 80 | C10: 8000000 | D10: 0.7160684637 | E10: 1.03401449 | F10: 1.351960517 | G10: 0.7666897414 | H10: 0.9425934864 | I10: 1.118497231 | J10: 1.171238727 | K10: 1.477386672 | L10: 1.783534618 | M10: 4.232059936 | N10: 5.445665358 | O10: 6.659270781 | P10: 2.297799689 | Q10: 2.651307334 | R10: 3.004814978 | S10: 5.931411782 | T10: 6.2821942 | U10: 6.632976617 | V10: 1.522249523 | W10: 2.710536141 | X10: 3.898822758 | Y10: 1.791424909 | Z10: 2.151894556 | AA10: 2.512364202 | AB10: 1.594207154 | AC10: 1.913048585 | AD10: 2.231890016 | AE10: 1.991205705 | AF10: 2.621642645 | AG10: 3.252079584 | AH10: 2.952408049 | AI10: 3.777048142 | AJ10: 4.601688235 | AK10: 0.8118746016 | AL10: 1.206537988 | AM10: 1.601655239
A11: 22.5 | B11: 90 | C11: 9000000 | D11: 0.6378008429 | E11: 0.9204195332 | F11: 1.203038223 | G11: 0.687848885 | H11: 0.8442077695 | I11: 1.000566654 | J11: 1.041997573 | K11: 1.31412908 | L11: 1.586260587 | M11: 3.844415129 | N11: 4.946857703 | O11: 6.049300276 | P11: 2.083240539 | Q11: 2.403739083 | R11: 2.724237627 | S11: 5.389469419 | T11: 5.708201481 | U11: 6.026933544 | V11: 1.3830265 | W11: 2.462633921 | X11: 3.542241342 | Y11: 1.625850172 | Z11: 1.953002951 | AA11: 2.28015573 | AB11: 1.448568778 | AC11: 1.738282534 | AD11: 2.02799629 | AE11: 1.770421261 | AF11: 2.330883624 | AG11: 2.891345986 | AH11: 2.6250579 | AI11: 3.358071316 | AJ11: 4.091084732 | AK11: 0.7220113733 | AL11: 1.072838245 | AM11: 1.424115768
A12: 25 | B12: 100 | C12: 10000000 | D12: 0.5751867462 | E12: 0.8295435675 | F12: 1.083900389 | G12: 0.6247759246 | H12: 0.7654989206 | I12: 0.9062219167 | J12: 0.9386044773 | K12: 1.183522834 | L12: 1.42844119 | M12: 3.380015267 | N12: 4.349284352 | O12: 5.318553436 | P12: 1.827301598 | Q12: 2.108424921 | R12: 2.389548243 | S12: 4.739860677 | T12: 5.020175018 | U12: 5.300489359 | V12: 1.216180936 | W12: 2.165546667 | X12: 3.114912398 | Y12: 1.427888537 | Z12: 1.715207572 | AA12: 2.002526607 | AB12: 1.273991095 | AC12: 1.528789315 | AD12: 1.783587534 | AE12: 1.593793766 | AF12: 2.098276503 | AG12: 2.60275924 | AH12: 2.363177781 | AI12: 3.022889855 | AJ12: 3.682601929 | AK12: 0.6501207908 | AL12: 0.9658784501 | AM12: 1.282084191
A13: 27.5 | B13: 110 | C13: 11000000 | D13: 0.5239570308 | E13: 0.7551905046 | F13: 0.9864239785 | G13: 0.5731705899 | H13: 0.7011005863 | I13: 0.8290305827 | J13: 0.8540100114 | K13: 1.076663063 | L13: 1.299316114 | M13: 3.12810178 | N13: 4.025130967 | O13: 4.922160154 | P13: 1.688968165 | Q13: 1.948809421 | R13: 2.208650677 | S13: 4.387316493 | T13: 4.646781447 | U13: 4.906246401 | V13: 1.125650142 | W13: 2.004346426 | X13: 2.88304271 | Y13: 1.320685142 | Z13: 1.586432761 | AA13: 1.852180381 | AB13: 1.179244784 | AC13: 1.415093741 | AD13: 1.650942698 | AE13: 1.449280872 | AF13: 1.907962394 | AG13: 2.366643915 | AH13: 2.148912228 | AI13: 2.748650478 | AJ13: 3.348388727 | AK13: 0.5913012232 | AL13: 0.8783658909 | AM13: 1.165876537
A14: 30 | B14: 120 | C14: 12000000 | D14: 0.4812656012 | E14: 0.6932296189 | F14: 0.9051936367 | G14: 0.5301660152 | H14: 0.6474351785 | I14: 0.7647043419 | J14: 0.7835145433 | K14: 0.9876131737 | L14: 1.191711804 | M14: 2.81355879 | N14: 3.620388148 | O14: 4.427217507 | P14: 1.516734606 | Q14: 1.750078391 | R14: 1.983422177 | S14: 3.946962228 | T14: 4.180384725 | U14: 4.413807223 | V14: 1.012586836 | W14: 1.80302452 | X14: 2.593462203 | Y14: 1.187007449 | Z14: 1.425856509 | AA14: 1.664705569 | AB14: 1.060896935 | AC14: 1.273076322 | AD14: 1.485255709 | AE14: 1.328852677 | AF14: 1.749366063 | AG14: 2.169879448 | AH14: 1.970357601 | AI14: 2.520117663 | AJ14: 3.069877725 | AK14: 0.5422849169 | AL14: 0.8054387582 | AM14: 1.069036826
A15: 32.5 | B15: 130 | C15: 13000000 | D15: 0.4451420839 | E15: 0.6408011772 | F15: 0.8364602705 | G15: 0.493777436 | H15: 0.6020258944 | I15: 0.7102743529 | J15: 0.7238644749 | K15: 0.9122632106 | L15: 1.100661946 | M15: 2.636798456 | N15: 3.39293919 | O15: 4.149079923 | P15: 1.420185111 | Q15: 1.638675128 | R15: 1.857165145 | S15: 3.699421961 | T15: 3.918204981 | U15: 4.136988 | V15: 0.9490375901 | W15: 1.689867954 | X15: 2.430698318 | Y15: 1.111972687 | Z15: 1.335723289 | AA15: 1.559473891 | AB15: 0.9943677534 | AC15: 1.193241304 | AD15: 1.392114855 | AE15: 1.226951417 | AF15: 1.61516841 | AG15: 2.003385404 | AH15: 1.819272917 | AI15: 2.326743743 | AJ15: 2.83421457 | AK15: 0.5008095808 | AL15: 0.7437311844 | AM15: 0.9870955316
A16: 35 | B16: 140 | C16: 14000000 | D16: 0.4141790691 | E16: 0.5958625128 | F16: 0.7775459566 | G16: 0.4625871568 | H16: 0.5631035825 | I16: 0.6636200083 | J16: 0.672735803 | K16: 0.8476774861 | L16: 1.022619169 | M16: 2.409714874 | N16: 3.100736051 | O16: 3.791757228 | P16: 1.296399406 | Q16: 1.495845468 | R16: 1.69529153 | S16: 3.381323971 | T16: 3.581294743 | U16: 3.781265516 | V16: 0.8673830537 | W16: 1.544472886 | X16: 2.221562719 | Y16: 1.015667055 | Z16: 1.220039084 | AA16: 1.424411113 | AB16: 0.9088740828 | AC16: 1.090648899 | AD16: 1.272423716 | AE16: 1.139609215 | AF16: 1.500144595 | AG16: 1.860679974 | AH16: 1.689771759 | AI16: 2.160994669 | AJ16: 2.632217579 | AK16: 0.4652592927 | AL16: 0.6908389782 | AM16: 0.9168601365
A17: 37.5 | B17: 150 | C17: 15000000 | D17: 0.3873444562 | E17: 0.5569156704 | F17: 0.7264868846 | G17: 0.43555553 | H17: 0.5293708606 | I17: 0.6231861913 | J17: 0.6284242559 | K17: 0.7917031602 | L17: 0.9549820645 | M17: 2.27887559 | N17: 2.932376679 | O17: 3.585877767 | P17: 1.225205438 | Q17: 1.413698582 | R17: 1.602191727 | S17: 3.198001996 | T17: 3.387131146 | U17: 3.576260296 | V17: 0.8203293417 | W17: 1.460688471 | X17: 2.1010476 | Y17: 0.9602249999 | Z17: 1.153441006 | AA17: 1.346657012 | AB17: 0.8596028403 | AC17: 1.031523408 | AD17: 1.203443976 | AE17: 1.063911892 | AF17: 1.400456104 | AG17: 1.737000316 | AH17: 1.577537422 | AI17: 2.017345472 | AJ17: 2.457153521 | AK17: 0.4344490431 | AL17: 0.6449990662 | AM17: 0.8559894607
A18: 40 | B18: 160 | C18: 16000000 | D18: 0.36386417 | E18: 0.5228371833 | F18: 0.6818101966 | G18: 0.4119028169 | H18: 0.4998546894 | I18: 0.587806562 | J18: 0.5896516283 | K18: 0.742725601 | L18: 0.8957995738 | M18: 2.107250812 | N18: 2.711535972 | O18: 3.315821131 | P18: 1.131960175 | Q18: 1.306107894 | R18: 1.480255613 | S18: 2.95748716 | T18: 3.132392314 | U18: 3.307297469 | V18: 0.7586006035 | W18: 1.350773524 | X18: 1.942946444 | Y18: 0.8875520107 | Z18: 1.066144793 | AA18: 1.244737576 | AB18: 0.7949591878 | AC18: 0.9539510253 | AD18: 1.112942863 | AE18: 0.9976755557 | AF18: 1.313226812 | AG18: 1.628778069 | AH18: 1.479332377 | AI18: 1.891652424 | AJ18: 2.30397247 | AK18: 0.4074900746 | AL18: 0.6048891433 | AM18: 0.8027276194
A19: 42.5 | B19: 170 | C19: 17000000 | D19: 0.3431462704 | E19: 0.4927679299 | F19: 0.6423895895 | G19: 0.3910327452 | H19: 0.4738109781 | I19: 0.5565892111 | J19: 0.5554404675 | K19: 0.6995100889 | L19: 0.8435797104 | M19: 2.006509118 | N19: 2.581905115 | O19: 3.157301112 | P19: 1.077300928 | Q19: 1.243039533 | R19: 1.408778137 | S19: 2.816282788 | T19: 2.982837147 | U19: 3.149391505 | V19: 0.7223626886 | W19: 1.286247849 | X19: 1.850133008 | Y19: 0.8449210718 | Z19: 1.014935678 | AA19: 1.184950284 | AB19: 0.7570070112 | AC19: 0.9084084134 | AD19: 1.059809816 | AE19: 0.939233294 | AF19: 1.236262263 | AG19: 1.533291233 | AH19: 1.392680867 | AI19: 1.780746793 | AJ19: 2.168812719 | AK19: 0.3837027495 | AL19: 0.5694980347 | AM19: 0.7557318771
A20: 45 | B20: 180 | C20: 18000000 | D20: 0.3247303596 | E20: 0.4660397047 | F20: 0.6073490499 | G20: 0.3724815458 | H20: 0.4506609881 | I20: 0.5288404303 | J20: 0.5250305321 | K20: 0.6610962857 | L20: 0.7971620393 | M20: 1.872248751 | N20: 2.409143614 | O20: 2.946038476 | P20: 1.004541132 | Q20: 1.159085922 | R20: 1.313630711 | S20: 2.628068248 | T20: 2.783491639 | U20: 2.93891503 | V20: 0.6740632662 | W20: 1.200245306 | X20: 1.726427345 | Y20: 0.7881373013 | Z20: 0.9467259046 | AA20: 1.105314508 | AB20: 0.7064192305 | AC20: 0.8477030766 | AD20: 0.9889869226 | AE20: 0.8872822718 | AF20: 1.167845623 | AG20: 1.448408974 | AH20: 1.315657302 | AI20: 1.68216401 | AJ20: 2.048670718 | AK20: 0.3625584605 | AL20: 0.5380392716 | AM20: 0.7139578839
A21: 47.5 | B21: 190 | C21: 19000000 | D21: 0.3082529657 | E21: 0.4421249769 | F21: 0.5759969881 | G21: 0.3558830847 | H21: 0.4299478195 | I21: 0.5040125542 | J21: 0.4978216308 | K21: 0.6267260289 | L21: 0.755630427 | M21: 1.792297453 | N21: 2.306265105 | O21: 2.820232757 | P21: 0.9612594813 | Q21: 1.109145555 | R21: 1.257031629 | S21: 2.515971906 | T21: 2.664765943 | U21: 2.813559981 | V21: 0.6452988057 | W21: 1.149026955 | X21: 1.652755105 | Y21: 0.7543398554 | Z21: 0.9061277532 | AA21: 1.057915651 | AB21: 0.6762900403 | AC21: 0.8115480484 | AD21: 0.9468060565 | AE21: 0.8408011208 | AF21: 1.106632857 | AG21: 1.372464593 | AH21: 1.246741482 | AI21: 1.593958363 | AJ21: 1.941175244 | AK21: 0.3436398861 | AL21: 0.5098919572 | AM21: 0.6765811532
A22: 50 | B22: 200 | C22: 20000000 | D22: 0.2934233112 | E22: 0.4206017219 | F22: 0.5477801325 | G22: 0.3409444539 | H22: 0.4113059519 | I22: 0.4816674499 | J22: 0.47333361 | K22: 0.5957927882 | L22: 0.7182519664 | M22: 1.684402973 | N22: 2.167430296 | O22: 2.650457619 | P22: 0.9029056061 | Q22: 1.041814161 | R22: 1.180722716 | S22: 2.364679102 | T22: 2.504525715 | U22: 2.644372329 | V22: 0.6064782236 | W22: 1.079902551 | X22: 1.553326879 | Y22: 0.708750186 | Z22: 0.8513645527 | AA22: 0.9939789194 | AB22: 0.6356253549 | AC22: 0.7627504259 | AD22: 0.8898754969 | AE22: 0.7989686761 | AF22: 1.051542302 | AG22: 1.304115929 | AH22: 1.184717243 | AI22: 1.51457328 | AJ22: 1.844429317 | AK22: 0.3266131692 | AL22: 0.4845593743 | AM22: 0.6429420955
A23: 52.5 | B23: 210 | C23: 21000000 | D23: 0.2800060048 | E23: 0.4011283006 | F23: 0.5222505965 | G23: 0.3274285367 | H23: 0.3944394872 | I23: 0.4614504377 | J23: 0.4511777739 | K23: 0.5678055626 | L23: 0.6844333514 | M23: 1.619411684 | N23: 2.083801799 | O23: 2.548191914 | P23: 0.8677859371 | Q23: 1.001291466 | R23: 1.134796995 | S23: 2.27353615 | T23: 2.407992589 | U23: 2.542449027 | V23: 0.5830926778 | W23: 1.038261962 | X23: 1.493431246 | Y23: 0.6812999254 | Z23: 0.8183907641 | AA23: 0.9554816028 | AB23: 0.6111276663 | AC23: 0.7333531995 | AD23: 0.8555787328 | AE23: 0.761120014 | AF23: 1.001698057 | AG23: 1.242276099 | AH23: 1.128600074 | AI23: 1.442748681 | AJ23: 1.756897288 | AK23: 0.3112080444 | AL23: 0.4616394183 | AM23: 0.6125067576
A24: 55 | B24: 220 | C24: 22000000 | D24: 0.2678084535 | E24: 0.3834251904 | F24: 0.4990419274 | G24: 0.3151413285 | H24: 0.3791063267 | I24: 0.4430713249 | J24: 0.4310360982 | K24: 0.5423626239 | L24: 0.6536891495 | M24: 1.53081391 | N24: 1.96979731 | O24: 2.408780711 | P24: 0.819946627 | Q24: 0.9460922619 | R24: 1.072237897 | S24: 2.149275336 | T24: 2.276383018 | U24: 2.403490699 | V24: 0.5512109816 | W24: 0.9814930234 | X24: 1.411775065 | Y24: 0.6438924925 | Z24: 0.7734562258 | AA24: 0.903019959 | AB24: 0.5777282584 | AC24: 0.69327391 | AD24: 0.8088195617 | AE24: 0.7267142816 | AF24: 0.9563884928 | AG24: 1.186062704 | AH24: 1.077584467 | AI24: 1.377453591 | AJ24: 1.677322716 | AK24: 0.2972033854 | AL24: 0.4408030947 | AM24: 0.5848382687
A25: 57.5 | B25: 230 | C25: 23000000 | D25: 0.2566715588 | E25: 0.3672614811 | F25: 0.4778514034 | G25: 0.3039225642 | H25: 0.3651064756 | I25: 0.4262903869 | J25: 0.4126458672 | K25: 0.5191321092 | L25: 0.6256183511 | M25: 1.47694495 | N25: 1.900480634 | O25: 2.324016318 | P25: 0.7908801939 | Q25: 0.9125540699 | R25: 1.034227946 | S25: 2.073715629 | T25: 2.196354725 | U25: 2.318993821 | V25: 0.5318252789 | W25: 0.9469746037 | X25: 1.362123929 | Y25: 0.6211557211 | Z25: 0.7461443723 | AA25: 0.8711330235 | AB25: 0.5574188526 | AC25: 0.6689026231 | AD25: 0.7803863936 | AE25: 0.6952952319 | AF25: 0.9150107959 | AG25: 1.13472636 | AH25: 1.031004999 | AI25: 1.317836335 | AJ25: 1.604667672 | AK25: 0.2844165229 | AL25: 0.4217786253 | AM25: 0.5595757352
A26: 60 | B26: 240 | C26: 24000000 | D26: 0.2464627387 | E26: 0.3524447476 | F26: 0.4584267564 | G26: 0.2936386894 | H26: 0.3522732711 | I26: 0.4109078528 | J26: 0.395788151 | K26: 0.4978374662 | L26: 0.5998867813 | M26: 1.402893729 | N26: 1.805194136 | O26: 2.207494544 | P26: 0.7509493873 | Q26: 0.8664800623 | R26: 0.9820107372 | S26: 1.969838464 | T26: 2.086334287 | U26: 2.20283011 | V26: 0.5051752892 | W26: 0.8995213057 | X26: 1.293867322 | Y26: 0.5899098703 | Z26: 0.7086112466 | AA26: 0.8273126229 | AB26: 0.5294979686 | AC26: 0.6353975624 | AD26: 0.7412971561 | AE26: 0.6664984347 | AF26: 0.8770875621 | AG26: 1.087676689 | AH26: 0.9883071531 | AI26: 1.263187184 | AJ26: 1.538067215 | AK26: 0.2726952323 | AL26: 0.4043395283 | AM26: 0.5364184129
A27: 62.5 | B27: 250 | C27: 25000000 | D27: 0.2370706242 | E27: 0.3388133527 | F27: 0.4405560812 | G27: 0.2841775181 | H27: 0.3404667166 | I27: 0.396755915 | J27: 0.3802790482 | K27: 0.4782463908 | L27: 0.5762137333 | M27: 1.357518137 | N27: 1.746806427 | O27: 2.136094716 | P27: 0.7264959823 | Q27: 0.8382645949 | R27: 0.9500332076 | S27: 1.90618179 | T27: 2.018912971 | U27: 2.131644152 | V27: 0.4888444865 | W27: 0.8704424785 | X27: 1.252040471 | Y27: 0.5707690297 | Z27: 0.6856188954 | AA27: 0.8004687611 | AB27: 0.5123877717 | AC27: 0.614865326 | AD27: 0.7173428804 | AE27: 0.6400059376 | AF27: 0.8421990665 | AG27: 1.044392195 | AH27: 0.9490251352 | AI27: 1.212909965 | AJ27: 1.476794795 | AK27: 0.2619116449 | AL27: 0.3882955591 | AM27: 0.5151136764
A28: 65 | B28: 260 | C28: 26000000 | D28: 0.2284009801 | E28: 0.3262305267 | F28: 0.4240600733 | G28: 0.2754441238 | H28: 0.3295683531 | I28: 0.3836925823 | J28: 0.3659629501 | K28: 0.4601623179 | L28: 0.5543616858 | M28: 1.294703742 | N28: 1.66597908 | O28: 2.037254417 | P28: 0.6926628781 | Q28: 0.7992263978 | R28: 0.9057899175 | S28: 1.818054293 | T28: 1.925573633 | U28: 2.033092973 | V28: 0.4662364466 | W28: 0.8301863258 | X28: 1.194136205 | Y28: 0.5442786663 | Z28: 0.6537981541 | AA28: 0.7633176418 | AB28: 0.4886999948 | AC28: 0.5864399938 | AD28: 0.6841799928 | AE28: 0.6155475014 | AF28: 0.8099882562 | AG28: 1.004429011 | AH28: 0.912764811 | AI28: 1.166500224 | AJ28: 1.420235637 | AK28: 0.2519575642 | AL28: 0.3734857414 | AM28: 0.4954477658
A29: 67.5 | B29: 270 | C29: 27000000 | D29: 0.2203735318 | E29: 0.3145797619 | F29: 0.408785992 | G29: 0.2673576429 | H29: 0.3194772711 | I29: 0.3715968992 | J29: 0.3527073009 | K29: 0.4434178033 | L29: 0.5341283056 | M29: 1.2559603 | N29: 1.616125386 | O29: 1.976290472 | P29: 0.6718054436 | Q29: 0.7751601272 | R29: 0.8785148108 | S29: 1.763694326 | T29: 1.86799883 | U29: 1.972303333 | V29: 0.4522914221 | W29: 0.8053556444 | X29: 1.158419867 | Y29: 0.5279434948 | Z29: 0.6341760273 | AA29: 0.7404085598 | AB29: 0.4740885307 | AC29: 0.5689062368 | AD29: 0.663723943 | AE29: 0.5929039746 | AF29: 0.7801684491 | AG29: 0.9674329237 | AH29: 0.8791904367 | AI29: 1.123528242 | AJ29: 1.367866047 | AK29: 0.2427408229 | AL29: 0.3597729473 | AM29: 0.4772385893
A30: 70 | B30: 280 | C30: 28000000 | D30: 0.2129194727 | E30: 0.3037611945 | F30: 0.3946029164 | G30: 0.2598487637 | H30: 0.3101069766 | I30: 0.3603651895 | J30: 0.3403984814 | K30: 0.4278693229 | L30: 0.5153401645 | M30: 1.202006044 | N30: 1.546698954 | O30: 1.891391864 | P30: 0.6427727269 | Q30: 0.7416608387 | R30: 0.8405489505 | S30: 1.687987871 | T30: 1.787815111 | U30: 1.887642351 | V30: 0.4328708224 | W30: 0.7707750869 | X30: 1.108679351 | Y30: 0.5052000106 | Z30: 0.6068561103 | AA30: 0.70851221 | AB30: 0.4537392524 | AC30: 0.5444871028 | AD30: 0.6352349533 | AE30: 0.5718770078 | AF30: 0.7524773085 | AG30: 0.9330776091 | AH30: 0.848014232 | AI30: 1.083625687 | AJ30: 1.319237142 | AK30: 0.2341824202 | AL30: 0.3470396384 | AM30: 0.4603300682
A31: 72.5 | B31: 290 | C31: 29000000 | D31: 0.2059794866 | E31: 0.2936887353 | F31: 0.381397984 | G31: 0.2528577348 | H31: 0.3013829058 | I31: 0.3499080769 | J31: 0.3289385439 | K31: 0.4133931495 | L31: 0.4978477552 | M31: 1.16854017 | N31: 1.503636248 | O31: 1.838732326 | P31: 0.6247726279 | Q31: 0.7208914938 | R31: 0.8170103596 | S31: 1.641027219 | T31: 1.738077216 | U31: 1.835127213 | V31: 0.4208245119 | W31: 0.7493252789 | X31: 1.077826046 | Y31: 0.4910959348 | Z31: 0.5899140192 | AA31: 0.6887321037 | AB31: 0.4411165694 | AC31: 0.5293398832 | AD31: 0.6175631971 | AE31: 0.5522988205 | AF31: 0.7266937574 | AG31: 0.9010886944 | AH31: 0.8189881103 | AI31: 1.046475033 | AJ31: 1.273961955 | AK31: 0.2262142522 | AL31: 0.3351844887 | AM31: 0.4445876521
A32: 75 | B32: 300 | C32: 30000000 | D32: 0.1995021662 | E32: 0.2842877733 | F32: 0.3690733804 | G32: 0.2463327714 | H32: 0.2932404367 | I32: 0.340148102 | J32: 0.3182426004 | K32: 0.3998820525 | L32: 0.4815215047 | M32: 1.121695336 | N32: 1.443357969 | O32: 1.765020602 | P32: 0.5995865472 | Q32: 0.6918306314 | R32: 0.7840747156 | S32: 1.575289238 | T32: 1.668451505 | U32: 1.761613771 | V32: 0.4039618046 | W32: 0.7192993358 | X32: 1.034636867 | Y32: 0.4713570527 | Z32: 0.566203289 | AA32: 0.6610495252 | AB32: 0.423446622 | AC32: 0.5081359464 | AD32: 0.5928252708 | AE32: 0.534028498 | AF32: 0.7026333035 | AG32: 0.8712381089 | AH32: 0.7918970635 | AI32: 1.011801088 | AJ32: 1.231705113 | AK32: 0.2187772953 | AL32: 0.3241196824 | AM32: 0.4298947304
A33: 77.5 | B33: 310 | C33: 31000000 | D33: 0.1934427375 | E33: 0.275493325 | F33: 0.3575439125 | G33: 0.2402287706 | H33: 0.2856232855 | I33: 0.3310178003 | J33: 0.3082367162 | K33: 0.3872426376 | L33: 0.466248559 | M33: 1.092497724 | N33: 1.405787512 | O33: 1.7190773 | P33: 0.5838944256 | Q33: 0.6737243372 | R33: 0.7635542488 | S33: 1.534313808 | T33: 1.625052797 | U33: 1.715791786 | V33: 0.3934512427 | W33: 0.7005841005 | X33: 1.007716958 | Y33: 0.4590563216 | Z33: 0.5514274107 | AA33: 0.6437984998 | AB33: 0.4124326575 | AC33: 0.494919189 | AD33: 0.5774057205 | AE33: 0.5169350293 | AF33: 0.6801221695 | AG33: 0.8433093097 | AH33: 0.7665538261 | AI33: 0.9793641727 | AJ33: 1.192174519 | AK33: 0.2118201422 | AL33: 0.3137687345 | AM33: 0.4161497391
A34: 80 | B34: 320 | C34: 32000000 | D34: 0.1877620231 | E34: 0.2672485297 | F34: 0.3467350364 | G34: 0.2345062676 | H34: 0.2784822039 | I34: 0.3224581401 | J34: 0.2988561984 | K34: 0.3753931847 | L34: 0.4519301711 | M34: 1.051444248 | N34: 1.352961348 | O34: 1.654478449 | P34: 0.5618381455 | Q34: 0.6482747833 | R34: 0.7347114211 | S34: 1.476697426 | T34: 1.564028995 | U34: 1.651360563 | V34: 0.3786723961 | W34: 0.6742687054 | X34: 0.9698650146 | Y34: 0.4417636477 | Z34: 0.5306551134 | AA34: 0.6195465792 | AB34: 0.396945657 | AC34: 0.4763347883 | AD34: 0.5557239197 | AE34: 0.5009123087 | AF34: 0.659021786 | AG34: 0.8171312633 | AH34: 0.7427945411 | AI34: 0.9489545643 | AJ34: 1.155114588 | AK34: 0.2052978111 | AL34: 0.3040647209 | AM34: 0.4032638097
A35: 82.5 | B35: 330 | C35: 33000000 | D35: 0.1824255944 | E35: 0.259503419 | F35: 0.3365812437 | G35: 0.2291305809 | H35: 0.271773913 | I35: 0.3144172451 | J35: 0.2900441955 | K35: 0.3642618793 | L35: 0.438479563 | M35: 1.025747475 | N35: 1.319895648 | O35: 1.614043821 | P35: 0.5480369559 | Q35: 0.6323503337 | R35: 0.7166637115 | S35: 1.440631796 | T35: 1.525830451 | U35: 1.611029105 | V35: 0.3694215681 | W35: 0.6577965678 | X35: 0.9461715674 | Y35: 0.4309412623 | Z35: 0.5176550528 | AA35: 0.6043688434 | AB35: 0.3872513678 | AC35: 0.4647016414 | AD35: 0.542151915 | AE35: 0.4858581936 | AF35: 0.6391963108 | AG35: 0.7925344281 | AH35: 0.7204752127 | AI35: 0.9203879625 | AJ35: 1.120300712 | AK35: 0.1991707728 | AL35: 0.2949488293 | AM35: 0.3911588458
A36: 85 | B36: 340 | C36: 34000000 | D36: 0.1774030733 | E36: 0.2522139031 | F36: 0.3270247328 | G36: 0.2240711092 | H36: 0.2654602256 | I36: 0.3068493421 | J36: 0.2817505447 | K36: 0.3537853554 | L36: 0.4258201661 | M36: 0.9894740948 | N36: 1.273220343 | O36: 1.55696659 | P36: 0.5285613073 | Q36: 0.6098784315 | R36: 0.6911955557 | S36: 1.389719756 | T36: 1.471907483 | U36: 1.554095211 | V36: 0.3563628473 | W36: 0.6345440495 | X36: 0.9127252518 | Y36: 0.4156666748 | Z36: 0.4993069203 | AA36: 0.5829471659 | AB36: 0.3735663939 | AC36: 0.4482796727 | AD36: 0.5229929515 | AE36: 0.4716917136 | AF36: 0.6205403586 | AG36: 0.7693890036 | AH36: 0.699468786 | AI36: 0.8935017491 | AJ36: 1.087534712 | AK36: 0.1934041486 | AL36: 0.2863691666 | AM36: 0.3797659385
A37: 87.5 | B37: 350 | C37: 35000000 | D37: 0.1726675534 | E37: 0.2453409309 | F37: 0.3180143084 | G37: 0.2193007485 | H37: 0.2595073188 | I37: 0.2997138891 | J37: 0.2739308158 | K37: 0.3439074891 | L37: 0.4138841623 | M37: 0.9666842712 | N37: 1.243895202 | O37: 1.521106133 | P37: 0.5163287535 | Q37: 0.5957639463 | R37: 0.6751991391 | S37: 1.357731531 | T37: 1.438027481 | U37: 1.518323432 | V37: 0.3481581291 | W37: 0.6199346278 | X37: 0.8917111265 | Y37: 0.4060712891 | Z37: 0.4877807558 | AA37: 0.5694902225 | AB37: 0.3649680541 | AC37: 0.4379616649 | AD37: 0.5109552758 | AE37: 0.4583316313 | AF37: 0.602945535 | AG37: 0.7475594387 | AH37: 0.6796627266 | AI37: 0.8681518907 | AJ37: 1.056641055 | AK37: 0.1879670457 | AL37: 0.2782797704 | AM37: 0.3690240546
A38: 90 | B38: 360 | C38: 36000000 | D38: 0.1681951179 | E38: 0.2388497905 | F38: 0.309504463 | G38: 0.2147954064 | H38: 0.2538851275 | I38: 0.2929748486 | J38: 0.2665455155 | K38: 0.3345783922 | L38: 0.402611269 | M38: 0.9344021816 | N38: 1.202355748 | O38: 1.470309315 | P38: 0.4990059279 | Q38: 0.5757760707 | R38: 0.6525462134 | S38: 1.312418156 | T38: 1.390034283 | U38: 1.467650411 | V38: 0.3365357841 | W38: 0.5992397381 | X38: 0.861943692 | Y38: 0.3924810475 | Z38: 0.4714558925 | AA38: 0.5504307374 | AB38: 0.3527879281 | AC38: 0.4233455138 | AD38: 0.4939030994 | AE38: 0.4457155123 | AF38: 0.5863309472 | AG38: 0.7269463821 | AH38: 0.6609570037 | AI38: 0.8442103577 | AJ38: 1.027463712 | AK38: 0.1828320041 | AL38: 0.2706397851 | AM38: 0.358878942
A39: 92.5 | B39: 370 | C39: 37000000 | D39: 0.1639644357 | E39: 0.2327095225 | F39: 0.3014546093 | G39: 0.2105335949 | H39: 0.2485668371 | I39: 0.2866000793 | J39: 0.2595594197 | K39: 0.3257535701 | L39: 0.3919477205 | M39: 0.9140525345 | N39: 1.176170541 | O39: 1.438288547 | P39: 0.4880890064 | Q39: 0.5631796228 | R39: 0.6382702391 | S39: 1.283853004 | T39: 1.359779794 | U39: 1.435706585 | V39: 0.3292092597 | W39: 0.5861940389 | X39: 0.8431788182 | Y39: 0.383915227 | Z39: 0.4611664617 | AA39: 0.5384176964 | AB39: 0.3451096685 | AC39: 0.4141316022 | AD39: 0.4831535359 | AE39: 0.4337831851 | AF39: 0.5706173535 | AG39: 0.707451522 | AH39: 0.6432624011 | AI39: 0.8215629617 | AJ39: 0.9998635224 | AK39: 0.1779745323 | AL39: 0.2634127719 | AM39: 0.3492822138
A40: 95 | B40: 380 | C40: 38000000 | D40: 0.159956421 | E40: 0.2268924266 | F40: 0.2938284321 | G40: 0.2064960882 | H40: 0.2435284556 | I40: 0.280560823 | J40: 0.2529410126 | K40: 0.3173932116 | L40: 0.3818454107 | M40: 0.8851374145 | N40: 1.138963585 | O40: 1.392789755 | P40: 0.4725807916 | Q40: 0.5452855288 | R40: 0.6179902659 | S40: 1.243263046 | T40: 1.316789355 | U40: 1.390315664 | V40: 0.318798689 | W40: 0.5676568492 | X40: 0.8165150095 | Y40: 0.3717453257 | Z40: 0.4465477387 | AA40: 0.5213501518 | AB40: 0.3341991429 | AC40: 0.4010389715 | AD40: 0.4678788001 | AE40: 0.4224750126 | AF40: 0.555724684 | AG40: 0.6889743554 | AH40: 0.6264990933 | AI40: 0.8001075339 | AJ40: 0.9737159745 | AK40: 0.1733727169 | AL40: 0.2565661279 | AM40: 0.3401905766
A41: 97.5 | B41: 390 | C41: 39000000 | D41: 0.1561539455 | E41: 0.2213736432 | F41: 0.286593341 | G41: 0.202665632 | H41: 0.2387484515 | I41: 0.274831271 | J41: 0.2466620103 | K41: 0.3094615889 | L41: 0.3722611674 | M41: 0.8668560105 | N41: 1.115439719 | O41: 1.364023428 | P41: 0.4627781225 | Q41: 0.5339747567 | R41: 0.605171391 | S41: 1.217599509 | T41: 1.289608083 | U41: 1.361616656 | V41: 0.3122165483 | W41: 0.555936609 | X41: 0.7996566698 | Y41: 0.3640518306 | Z41: 0.4373061623 | AA41: 0.5105604941 | AB41: 0.3273008067 | AC41: 0.392760968 | AD41: 0.4582211293 | AE41: 0.4117481713 | AF41: 0.5415979942 | AG41: 0.6714478171 | AH41: 0.6105954423 | AI41: 0.7797523844 | AJ41: 0.9489093266 | AK41: 0.169006892 | AL41: 0.2500705938 | AM41: 0.3315651772
A42: 100 | B42: 400 | C42: 40000000 | D42: 0.1525415937 | E42: 0.216130799 | F42: 0.2797200043 | G42: 0.1990266977 | H42: 0.2342074467 | I42: 0.2693881957 | J42: 0.2406969576 | K42: 0.3019265467 | L42: 0.3631561358 | M42: 0.8408072796 | N42: 1.081921132 | O42: 1.323034984 | P42: 0.448813617 | Q42: 0.5178618658 | R42: 0.5869101146 | S42: 1.1810311 | T42: 1.250877025 | U42: 1.320722951 | V42: 0.3028376515 | W42: 0.5392364305 | X42: 0.7756352095 | Y42: 0.3530906914 | Z42: 0.4241394281 | AA42: 0.4951881648 | AB42: 0.3174712333 | AC42: 0.38096548 | AD42: 0.4444597267 | AE42: 0.4015591724 | AF42: 0.5281800109 | AG42: 0.6548008495 | AH42: 0.5954869739 | AI42: 0.7604149925 | AJ42: 0.925343011 | AK42: 0.1648593584 | AL42: 0.2438998364 | AM42: 0.3233710478
A43: 102.5 | B43: 410 | C43: 41000000 | D43: 0.1491054543 | E43: 0.2111437034 | F43: 0.2731819524 | G43: 0.1955652715 | H43: 0.2298879535 | I43: 0.2642106355 | J43: 0.2350228825 | K43: 0.294759067 | L43: 0.3544952515 | M43: 0.8242941062 | N43: 1.060672563 | O43: 1.29705102 | P43: 0.4399629183 | Q43: 0.5076495212 | R43: 0.575336124 | S43: 1.157848503 | T43: 1.226323414 | U43: 1.294798326 | V43: 0.2968919514 | W43: 0.528649444 | X43: 0.7604069366 | Y43: 0.3461427453 | Z43: 0.4157934196 | AA43: 0.485444094 | AB43: 0.3112397507 | AC43: 0.3734877008 | AD43: 0.4357356509 | AE43: 0.3918625357 | AF43: 0.5154091922 | AG43: 0.6389558488 | AH43: 0.5811155039 | AI43: 0.7420208879 | AJ43: 0.9029262719 | AK43: 0.1609141435 | AL43: 0.2380300916 | AM43: 0.315576632
A44: 105 | B44: 420 | C44: 42000000 | D44: 0.1458329405 | E44: 0.2063940884 | F44: 0.2669552363 | G44: 0.1922686744 | H44: 0.2257741496 | I44: 0.2592796249 | J44: 0.229619001 | K44: 0.2879328954 | L44: 0.3462467898 | M44: 0.800705718 | N44: 1.030319858 | O44: 1.259933997 | P44: 0.4273225819 | Q44: 0.4930645176 | R44: 0.5588064532 | S44: 1.124732252 | T44: 1.191248676 | U44: 1.257765099 | V44: 0.2883986294 | W44: 0.513526131 | X44: 0.7386536325 | Y44: 0.3362188206 | Z44: 0.4038726077 | AA44: 0.4715263948 | AB44: 0.302338088 | AC44: 0.3628057056 | AD44: 0.4232733232 | AE44: 0.3826350705 | AF44: 0.5032582504 | AG44: 0.6238814302 | AH44: 0.5674283896 | AI44: 0.7245026931 | AJ44: 0.8815769965 | AK44: 0.157156796 | AL44: 0.2324398584 | AM44: 0.3081533788
A45: 107.5 | B45: 430 | C45: 43000000 | D45: 0.1427126367 | E45: 0.2018653858 | F45: 0.2610181349 | G45: 0.1891254066 | H45: 0.2218516848 | I45: 0.2545779629 | J45: 0.2244664624 | K45: 0.2814242198 | L45: 0.3383819771 | M45: 0.7857161034 | N45: 1.011031751 | O45: 1.236347398 | P45: 0.4192916215 | Q45: 0.4837980248 | R45: 0.5483044281 | S45: 1.103687478 | T45: 1.168959318 | U45: 1.234231158 | V45: 0.2830013316 | W45: 0.5039156364 | X45: 0.7248299411 | Y45: 0.3299130744 | Z45: 0.3962980223 | AA45: 0.4626829701 | AB45: 0.296681235 | AC45: 0.356017482 | AD45: 0.415353729 | AE45: 0.3738319539 | AF45: 0.4916648226 | AG45: 0.6094976913 | AH45: 0.5543778853 | AI45: 0.707799298 | AJ45: 0.8612207106 | AK45: 0.1535742088 | AL45: 0.2271096361 | AM45: 0.3010753933
A46: 110 | B46: 440 | C46: 44000000 | D46: 0.1397341649 | E46: 0.1975425333 | F46: 0.2553509018 | G46: 0.186125014 | H46: 0.2181075131 | I46: 0.2500900122 | J46: 0.2195481298 | K46: 0.2752113926 | L46: 0.3308746554 | M46: 0.7642552385 | N46: 0.9834166672 | O46: 1.202578096 | P46: 0.4077956548 | Q46: 0.4705334479 | R46: 0.533271241 | S46: 1.07355663 | T46: 1.137046539 | U46: 1.200536447 | V46: 0.2752738253 | W46: 0.4901559441 | X46: 0.7050380628 | Y46: 0.3208858084 | Z46: 0.3854542942 | AA46: 0.45002278 | AB46: 0.2885820267 | AC46: 0.346298432 | AD46: 0.4040148373 | AE46: 0.3654301496 | AF46: 0.4806002198 | AG46: 0.5957702901 | AH46: 0.5419205858 | AI46: 0.6918551481 | AJ46: 0.8417897105 | AK46: 0.1501544665 | AL46: 0.2220216966 | AM46: 0.2943191343
A47: 112.5 | B47: 450 | C47: 45000000 | D47: 0.1368880696 | E47: 0.1934118076 | F47: 0.2499355457 | G47: 0.1832579716 | H47: 0.2145297485 | I47: 0.2458015254 | J47: 0.2148483893 | K47: 0.2692746908 | L47: 0.3237009922 | M47: 0.7505876554 | N47: 0.9658297036 | O47: 1.181071752 | P47: 0.4004756037 | Q47: 0.462087235 | R47: 0.5236988664 | S47: 1.054367036 | T47: 1.116722076 | U47: 1.179077116 | V47: 0.2703524116 | W47: 0.4813928145 | X47: 0.6924332174 | Y47: 0.3151371687 | Z47: 0.3785489161 | AA47: 0.4419606635 | AB47: 0.2834238335 | AC47: 0.3401086002 | AD47: 0.3967933669 | AE47: 0.3574029858 | AF47: 0.4700293171 | AG47: 0.5826556484 | AH47: 0.530016944 | AI47: 0.6766196272 | AJ47: 0.8232223104 | AK47: 0.1468867128 | AL47: 0.2171598878 | AM47: 0.2878631536
A48: 115 | B48: 460 | C48: 46000000 | D48: 0.1341657175 | E48: 0.1894606787 | F48: 0.2447556398 | G48: 0.1805155827 | H48: 0.2111075383 | I48: 0.241699494 | J48: 0.2103529851 | K48: 0.2635961061 | L48: 0.316839227 | M48: 0.7309789276 | N48: 0.9405978848 | O48: 1.150216842 | P48: 0.3899753466 | Q48: 0.4499715537 | R48: 0.5099677609 | S48: 1.026835344 | T48: 1.087562166 | U48: 1.148288987 | V48: 0.2632916222 | W48: 0.4688202864 | X48: 0.6743489507 | Y48: 0.3068903016 | Z48: 0.3686426184 | AA48: 0.4303949352 | AB48: 0.2760232619 | AC48: 0.3312279143 | AD48: 0.3864325667 | AE48: 0.3497191057 | AF48: 0.4599089695 | AG48: 0.5700988334 | AH48: 0.5186308518 | AI48: 0.6620465202 | AJ48: 0.8054621885 | AK48: 0.1437610353 | AL48: 0.2125094619 | AM48: 0.2816878676
A49: 117.5 | B49: 470 | C49: 47000000 | D49: 0.1315592103 | E49: 0.1856776829 | F49: 0.2397961555 | G49: 0.1778898906 | H49: 0.2078309536 | I49: 0.2377720166 | J49: 0.2060488744 | K49: 0.258159163 | L49: 0.3102694516 | M49: 0.7184658859 | N49: 0.9244965444 | O49: 1.130527203 | P49: 0.3832758213 | Q49: 0.4422413322 | R49: 0.5012068432 | S49: 1.009266004 | T49: 1.068953778 | U49: 1.128641552 | V49: 0.2587858189 | W49: 0.460797198 | X49: 0.662808577 | Y49: 0.3016280712 | Z49: 0.3623215245 | AA49: 0.4230149779 | AB49: 0.2713005836 | AC49: 0.3255607003 | AD49: 0.379820817 | AE49: 0.3423700699 | AF49: 0.4502317194 | AG49: 0.5580933689 | AH49: 0.5077292742 | AI49: 0.6480935454 | AJ49: 0.7884578165 | AK49: 0.1407683653 | AL49: 0.2080569265 | AM49: 0.2757753598
A50: 120 | B50: 480 | C50: 48000000 | D50: 0.1290613075 | E50: 0.1820523119 | F50: 0.2350433163 | G50: 0.1753736019 | H50: 0.2046908928 | I50: 0.2340081836 | J50: 0.2019241014 | K50: 0.2529487589 | L50: 0.3039734165 | M50: 0.7004794671 | N50: 0.9013522554 | O50: 1.102225044 | P50: 0.3736472915 | Q50: 0.4311314902 | R50: 0.4886156889 | S50: 0.9840110886 | T50: 1.042205293 | U50: 1.100399497 | V50: 0.2523090373 | W50: 0.4492645614 | X50: 0.6462200854 | Y50: 0.2940646076 | Z50: 0.3532361445 | AA50: 0.4124076814 | AB50: 0.2645119977 | AC50: 0.3174143973 | AD50: 0.3703167968 | AE50: 0.3353213138 | AF50: 0.4409483118 | AG50: 0.5465753099 | AH50: 0.497281929 | AI50: 0.6347219445 | AJ50: 0.77216196 | AK50: 0.13790039 | AL50: 0.2037899134 | AM50: 0.2701092065
A51: 122.5 | B51: 490 | C51: 49000000 | D51: 0.1266653599 | E51: 0.1785749152 | F51: 0.2304844706 | G51: 0.1729600185 | H51: 0.2016789973 | I51: 0.2303979761 | J51: 0.1979676861 | K51: 0.2479510242 | L51: 0.2979343622 | M51: 0.68898062 | N51: 0.8865559448 | O51: 1.08413127 | P51: 0.3674926055 | Q51: 0.4240299294 | R51: 0.4805672533 | S51: 0.9678651295 | T51: 1.025104465 | U51: 1.082343801 | V51: 0.2481683362 | W51: 0.4418915782 | X51: 0.6356148202 | Y51: 0.2892295641 | Z51: 0.3474281959 | AA51: 0.4056268278 | AB51: 0.2601719176 | AC51: 0.3122063011 | AD51: 0.3642406847 | AE51: 0.3285685492 | AF51: 0.4320569217 | AG51: 0.5355452942 | AH51: 0.4872610061 | AI51: 0.6218961233 | AJ51: 0.7565312405 | AK51: 0.1351494748 | AL51: 0.1996970641 | AM51: 0.2646743247
A52: 125 | B52: 500 | C52: 50000000 | D52: 0.1243652502 | E52: 0.1752366145 | F52: 0.2261079787 | G52: 0.170642978 | H52: 0.1987875772 | I52: 0.2269321764 | J52: 0.1941695273 | K52: 0.2431531986 | L52: 0.2921368699 | M52: 0.6724231936 | N52: 0.8652504329 | O52: 1.058077672 | P52: 0.3586315827 | Q52: 0.4138056723 | R52: 0.468979762 | S52: 0.9446158058 | T52: 1.000480181 | U52: 1.056344557 | V52: 0.2422059896 | W52: 0.4312749509 | X52: 0.6203439121 | Y52: 0.2822679421 | Z52: 0.3390657597 | AA52: 0.3958635773 | AB52: 0.253922426 | AC52: 0.3047069112 | AD52: 0.3554913964 | AE52: 0.322079721 | AF52: 0.4235114253 | AG52: 0.5249431296 | AH52: 0.4776409201 | AI52: 0.609583335 | AJ52: 0.7415257498 | AK52: 0.1325085963 | AL52: 0.1957679288 | AM52: 0.2594568382
A53: 127.5 | B53: 510 | C53: 51000000 | D53: 0.1221553409 | E53: 0.1720292274 | F53: 0.221903114 | G53: 0.1684168015 | H53: 0.1960095458 | I53: 0.2236022902 | J53: 0.1905203157 | K53: 0.2385435228 | L53: 0.28656673 | M53: 0.6618200537 | N53: 0.8516066868 | O53: 1.04139332 | P53: 0.3529578762 | Q53: 0.4072590879 | R53: 0.4615602996 | S53: 0.9297270068 | T53: 0.984710862 | U53: 1.039694717 | V53: 0.238387747 | W53: 0.4244761413 | X53: 0.6105645357 | Y53: 0.2778101015 | Z53: 0.3337109146 | AA53: 0.3896117277 | AB53: 0.2499202657 | AC53: 0.2999043188 | AD53: 0.3498883719 | AE53: 0.3158462588 | AF53: 0.4153024727 | AG53: 0.5147586866 | AH53: 0.4683980923 | AI53: 0.597753401 | AJ53: 0.7271087097 | AK53: 0.1299712816 | AL53: 0.1919928773 | AM53: 0.254443959
A54: 130 | B54: 520 | C54: 52000000 | D54: 0.1200304281 | E54: 0.1689452015 | F54: 0.2178599748 | G54: 0.1662762469 | H54: 0.1933383615 | I54: 0.2204004761 | J54: 0.1870114582 | K54: 0.2341111421 | L54: 0.281210826 | M54: 0.6465278422 | N54: 0.8319292087 | O54: 1.017330575 | P54: 0.3447761156 | Q54: 0.3978185949 | R54: 0.4508610743 | S54: 0.9082535084 | T54: 0.9619674256 | U54: 1.015681343 | V54: 0.2328808906 | W54: 0.4146705654 | X54: 0.5964602402 | Y54: 0.2713812401 | Z54: 0.3259884409 | AA54: 0.3805956416 | AB54: 0.2441481098 | AC54: 0.2929777317 | AD54: 0.3418073537 | AE54: 0.3098455436 | AF54: 0.407398179 | AG54: 0.5049508144 | AH54: 0.459510758 | AI54: 0.5863784646 | AJ54: 0.7132461712 | AK54: 0.1275315559 | AL54: 0.18836302 | AM54: 0.2496238829
A55: 132.5 | B55: 530 | C55: 53000000 | D55: 0.1179857007 | E55: 0.1659775538 | F55: 0.2139694069 | G55: 0.1642164675 | H55: 0.1907679762 | I55: 0.2173194849 | J55: 0.1836350102 | K55: 0.2298460208 | L55: 0.2760570314 | M55: 0.6367196856 | N55: 0.819308419 | O55: 1.001897152 | P55: 0.3395291324 | Q55: 0.3917643836 | R55: 0.4439996347 | S55: 0.8944805574 | T55: 0.9473799452 | U55: 1.000279333 | V55: 0.2293488544 | W55: 0.4083813786 | X55: 0.5874139027 | Y55: 0.2672581229 | Z55: 0.321035672 | AA55: 0.3748132212 | AB55: 0.2404458859 | AC55: 0.2885350631 | AD55: 0.3366242403 | AE55: 0.3040797095 | AF55: 0.3998055033 | AG55: 0.4955312971 | AH55: 0.4509587947 | AI55: 0.575432771 | AJ55: 0.6999067473 | AK55: 0.1251838954 | AL55: 0.1848701384 | AM55: 0.2449856964
A56: 135 | B56: 540 | C56: 54000000 | D56: 0.116016704 | E56: 0.163119819 | F56: 0.2102229341 | G56: 0.162232976 | H56: 0.1882927901 | I56: 0.2143526042 | J56: 0.1803836156 | K56: 0.2257388668 | L56: 0.271094118 | M56: 0.6225530161 | N56: 0.8010792487 | O56: 0.9796054813 | P56: 0.3319514171 | Q56: 0.3830208659 | R56: 0.4340903146 | S56: 0.8745869219 | T56: 0.9263098044 | U56: 0.9780326869 | V56: 0.2242472168 | W56: 0.3992973401 | X56: 0.5743474635 | Y56: 0.2613031236 | Z56: 0.3138824106 | AA56: 0.3664616977 | AB56: 0.235098393 | AC56: 0.2821180716 | AD56: 0.3291377501 | AE56: 0.298528429 | AF56: 0.3924956256 | AG56: 0.4864628222 | AH56: 0.4427235708 | AI56: 0.5648924735 | AJ56: 0.6870613761 | AK56: 0.1229231852 | AL56: 0.1815066229 | AM56: 0.2405192946
A57: 137.5 | B57: 550 | C57: 55000000 | D57: 0.1141193071 | E57: 0.1603660019 | F57: 0.2066126967 | G57: 0.1603216113 | H57: 0.1859076105 | I57: 0.2114936098 | J57: 0.1772504535 | K57: 0.2217810637 | L57: 0.266311674 | M57: 0.613453674 | N57: 0.7893705364 | O57: 0.9652873988 | P57: 0.327084765 | Q57: 0.3774054981 | R57: 0.4277262311 | S57: 0.8618089192 | T57: 0.9127761134 | U57: 0.9637433075 | V57: 0.2209703724 | W57: 0.3934625509 | X57: 0.5659547293 | Y57: 0.2574783974 | Z57: 0.309288075 | AA57: 0.3610977525 | AB57: 0.231663609 | AC57: 0.2779963308 | AD57: 0.3243290525 | AE57: 0.2931716502 | AF57: 0.3854399201 | AG57: 0.4777081899 | AH57: 0.4347878096 | AI57: 0.5547354595 | AJ57: 0.6746831094 | AK57: 0.1207446827 | AL57: 0.178265417 | AM57: 0.2362153075
A58: 140 | B58: 560 | C58: 56000000 | D58: 0.1122896744 | E58: 0.1577105354 | F58: 0.2031313963 | G58: 0.1584785093 | H58: 0.1836076157 | I58: 0.2087367221 | J58: 0.1742291898 | K58: 0.2179646106 | L58: 0.2617000314 | M58: 0.6002927016 | N58: 0.7724354616 | O58: 0.9445782217 | P58: 0.3200465872 | Q58: 0.3692845237 | R58: 0.4185224602 | S58: 0.8433269919 | T58: 0.8932011688 | U58: 0.9430753458 | V58: 0.216230817 | W58: 0.3850232404 | X58: 0.5538156639 | Y58: 0.2519467342 | Z58: 0.3026433332 | AA58: 0.3533399321 | AB58: 0.2266955804 | AC58: 0.2720346965 | AD58: 0.3173738126 | AE58: 0.2880151758 | AF58: 0.3786504192 | AG58: 0.4692856626 | AH58: 0.4271354685 | AI58: 0.544941196 | AJ58: 0.6627469236 | AK58: 0.1186439839 | AL58: 0.1751399684 | AM58: 0.2320650341
A59: 142.5 | B59: 570 | C59: 57000000 | D59: 0.1105242394 | E59: 0.1551482431 | F59: 0.1997722468 | G59: 0.1567000773 | H59: 0.1813883222 | I59: 0.2060765671 | J59: 0.1713139353 | K59: 0.214282068 | L59: 0.2572502007 | M59: 0.5918280231 | N59: 0.761543412 | O59: 0.931258801 | P59: 0.3155203631 | Q59: 0.3640619575 | R59: 0.4126035518 | S59: 0.8314398931 | T59: 0.8806110696 | U59: 0.9297822461 | V59: 0.2131824742 | W59: 0.379595324 | X59: 0.5460081737 | Y59: 0.248389141 | Z59: 0.2983698828 | AA59: 0.3483506246 | AB59: 0.22350027 | AC59: 0.268200324 | AD59: 0.3129003779 | AE59: 0.2830320143 | AF59: 0.372087105 | AG59: 0.4611421956 | AH59: 0.4197516305 | AI59: 0.5354905909 | AJ59: 0.6512295513 | AK59: 0.1166169938 | AL59: 0.1721241848 | AM59: 0.2280603844
A60: 145 | B60: 580 | C60: 58000000 | D60: 0.1088196814 | E60: 0.1526743057 | F60: 0.1965289301 | G60: 0.1549829703 | H60: 0.1792455558 | I60: 0.2035081413 | J60: 0.1684992066 | K60: 0.2107265094 | L60: 0.2529538123 | M60: 0.579569333 | N60: 0.7457693623 | O60: 0.9119693916 | P60: 0.3089660842 | Q60: 0.356499328 | R60: 0.4040325717 | S60: 0.8142245639 | T60: 0.8623776295 | U60: 0.9105306952 | V60: 0.2087677769 | W60: 0.3717344598 | X60: 0.5347011428 | Y60: 0.2432372241 | Z60: 0.2921812997 | AA60: 0.3411253753 | AB60: 0.2188727014 | AC60: 0.2626472417 | AD60: 0.306421782 | AE60: 0.2782212031 | AF60: 0.3657509297 | AG60: 0.4532806562 | AH60: 0.4126224077 | AI60: 0.5263658688 | AJ60: 0.6401093299 | AK60: 0.1146598999 | AL60: 0.1692123936 | AM60: 0.224193826
A61: 147.5 | B61: 590 | C61: 59000000 | D61: 0.107172905 | E61: 0.1502842307 | F61: 0.1933955563 | G61: 0.1533240702 | H61: 0.1771754254 | I61: 0.2010267807 | J61: 0.1657798924 | K61: 0.2072914782 | L61: 0.248803064 | M61: 0.5716751607 | N61: 0.73561142 | O61: 0.8995476793 | P61: 0.304745778 | Q61: 0.3516297439 | R61: 0.3985137097 | S61: 0.8031383419 | T61: 0.8506357707 | U61: 0.8981331995 | V61: 0.2059248419 | W61: 0.3666722951 | X61: 0.5274197482 | Y61: 0.2399197241 | Z61: 0.288196254 | AA61: 0.3364727838 | AB61: 0.2158926659 | AC61: 0.2590711991 | AD61: 0.3022497322 | AE61: 0.273582993 | AF61: 0.359644596 | AG61: 0.445706199 | AH61: 0.4057348534 | AI61: 0.5175504592 | AJ61: 0.629366065 | AK61: 0.1127691482 | AL61: 0.1663993073 | AM61: 0.2204583375
A62: 150 | B62: 600 | C62: 60000000 | D62: 0.1055810212 | E62: 0.1479738248 | F62: 0.1903666283 | G62: 0.1517204665 | H62: 0.1751742992 | I62: 0.1986281318 | J62: 0.1631512218 | K62: 0.2039709479 | L62: 0.244790674 | M62: 0.5602290462 | N62: 0.7208829638 | O62: 0.8815368815 | P62: 0.2986271548 | Q62: 0.344569794 | R62: 0.3905124332 | S62: 0.7870637287 | T62: 0.8336105084 | U62: 0.880157288 | V62: 0.2018027117 | W62: 0.3593323795 | X62: 0.5168620473 | Y62: 0.2351097494 | Z62: 0.2824184185 | AA62: 0.3297270876 | AB62: 0.2115717211 | AC62: 0.2538860653 | AD62: 0.2962004095 | AE62: 0.2690913817 | AF62: 0.3537291453 | AG62: 0.4383669089 | AH62: 0.3990768842 | AI62: 0.5090288966 | AJ62: 0.618980909 | AK62: 0.1109414215 | AL62: 0.1636799904 | AM62: 0.2168473652
A63: 152.5 | B63: 610 | C63: 61000000 | D63: 0.1040413303 | E63: 0.1457391699 | F63: 0.1874370094 | G63: 0.1501694398 | H63: 0.1732387834 | I63: 0.196308127 | J63: 0.1606087371 | K63: 0.2007592874 | L63: 0.2409098376 | M63: 0.5528495877 | N63: 0.7113873371 | O63: 0.8699250865 | P63: 0.294682768 | Q63: 0.3400185785 | R63: 0.3853543889 | S63: 0.7767000899 | T63: 0.8226339662 | U63: 0.8685678425 | V63: 0.1991451012 | W63: 0.3546002056 | X63: 0.5100553101 | Y63: 0.2320088327 | Z63: 0.2786935368 | AA63: 0.3253782409 | AB63: 0.2087859157 | AC63: 0.2505430988 | AD63: 0.292300282 | AE63: 0.2647476155 | AF63: 0.3480085595 | AG63: 0.4312695034 | AH63: 0.3926372092 | AI63: 0.5007867296 | AJ63: 0.6089362499 | AK63: 0.1091736203 | AL63: 0.1610498316 | AM63: 0.2133547854
A64: 155 | B64: 620 | C64: 62000000 | D64: 0.1025513069 | E64: 0.1435766006 | F64: 0.1846018944 | G64: 0.1486684461 | H64: 0.1713657035 | I64: 0.194062961 | J64: 0.1581482679 | K64: 0.1976512287 | L64: 0.2371541894 | M64: 0.5421378516 | N64: 0.6976038532 | O64: 0.8530698548 | P64: 0.2889577636 | Q64: 0.3334128042 | R64: 0.3778678447 | S64: 0.761656456 | T64: 0.8067006551 | U64: 0.8517448541 | V64: 0.1952873892 | W64: 0.3477311165 | X64: 0.5001748438 | Y64: 0.2275078524 | Z64: 0.2732868714 | AA64: 0.3190658905 | AB64: 0.2047420981 | AC64: 0.2456905177 | AD64: 0.2866389373 | AE64: 0.2605445688 | AF64: 0.3424734542 | AG64: 0.4244023396 | AH64: 0.3864052655 | AI64: 0.4928104388 | AJ64: 0.5992156121 | AK64: 0.1074628449 | AL64: 0.1585045165 | AM64: 0.2099748695
A65: 157.5 | B65: 630 | C65: 63000000 | D65: 0.1011085857 | E65: 0.1414826843 | F65: 0.181856783 | G65: 0.1472151028 | H65: 0.1695520863 | I65: 0.1918890698 | J65: 0.1557659088 | K65: 0.1946418384 | L65: 0.233517768 | M65: 0.5352243593 | N65: 0.6887078153 | O65: 0.8421912713 | P65: 0.2852630957 | Q65: 0.3291497258 | R65: 0.3730363559 | S65: 0.7519469896 | T65: 0.7964169728 | U65: 0.8408869561 | V65: 0.192797555 | W65: 0.3432976872 | X65: 0.4937978194 | Y65: 0.2246029814 | Z65: 0.2697974837 | AA65: 0.3149919861 | AB65: 0.2021321344 | AC65: 0.2425585613 | AD65: 0.2829849881 | AE65: 0.2564755705 | AF65: 0.3371150441 | AG65: 0.4177545177 | AH65: 0.3803711614 | AI65: 0.4850873637 | AJ65: 0.589803566 | AK65: 0.1058063799 | AL65: 0.1560400051 | AM65: 0.2067022525
A66: 160 | B66: 640 | C66: 64000000 | D66: 0.09971094965 | E66: 0.139454203 | F66: 0.1791974563 | G66: 0.1458071764 | H66: 0.1677951445 | I66: 0.1897831127 | J66: 0.1534579983 | K66: 0.1917264915 | L66: 0.2299949847 | M66: 0.5251785259 | N66: 0.6757811914 | O66: 0.8263838569 | P66: 0.2798949127 | Q66: 0.3229556685 | R66: 0.3660164243 | S66: 0.7378382358 | T66: 0.7814738304 | U66: 0.825109425 | V66: 0.1891796111 | W66: 0.3368555321 | X66: 0.484531453 | Y66: 0.2203821487 | Z66: 0.2647273372 | AA66: 0.3090725256 | AB66: 0.198339613 | AC66: 0.2380075356 | AD66: 0.2776754582 | AE66: 0.2525343681 | AF66: 0.3319250958 | AG66: 0.4113158235 | AH66: 0.374525623 | AI66: 0.4776056347 | AJ66: 0.5806856463 | AK66: 0.1042016794 | AL66: 0.1536525097 | AM66: 0.2035319049
A67: 162.5 | B67: 650 | C67: 65000000 | D67: 0.09835631775 | E67: 0.1374881364 | F67: 0.1766199551 | G67: 0.1444425706 | H67: 0.1660922623 | I67: 0.187741954 | J67: 0.1512211004 | K67: 0.1889008475 | L67: 0.2265805946 | M67: 0.5186882191 | N67: 0.6674296937 | O67: 0.8161711683 | P67: 0.2764269781 | Q67: 0.3189542056 | R67: 0.361481433 | S67: 0.7287229017 | T67: 0.7718194174 | U67: 0.8149159331 | V67: 0.1868421527 | W67: 0.3326934249 | X67: 0.4785446972 | Y67: 0.2176553027 | Z67: 0.2614517966 | AA67: 0.3052482904 | AB67: 0.1958893526 | AC67: 0.2350672231 | AD67: 0.2742450936 | AE67: 0.248705152 | AF67: 0.3268801636 | AG67: 0.4050551751 | AH67: 0.3688599474 | AI67: 0.4703541127 | AJ67: 0.5718482779 | AK67: 0.1026463543 | AL67: 0.1513384757 | AM67: 0.2004591063
A68: 165 | B68: 660 | C68: 66000000 | D68: 0.0970427353 | E68: 0.1355816476 | F68: 0.1741205599 | G68: 0.1431193164 | H68: 0.1644409825 | I68: 0.1857626486 | J68: 0.1490519871 | K68: 0.186160829 | L68: 0.2232696709 | M68: 0.5092480686 | N68: 0.6552824412 | O68: 0.8013168139 | P68: 0.271383267 | Q68: 0.3131345388 | R68: 0.3548858107 | S68: 0.7154645118 | T68: 0.7577769292 | U68: 0.8000893465 | V68: 0.1834422983 | W68: 0.3266396026 | X68: 0.4698369069 | Y68: 0.2136892532 | Z68: 0.2566877005 | AA68: 0.2996861477 | AB68: 0.1923254099 | AC68: 0.2307904919 | AD68: 0.2692555739 | AE68: 0.2450021056 | AF68: 0.3220041288 | AG68: 0.3990061521 | AH68: 0.3633659588 | AI68: 0.4633223338 | AJ68: 0.5632787087 | AK68: 0.1011381602 | AL68: 0.1490945639 | AM68: 0.1974794229
A69: 167.5 | B69: 670 | C69: 67000000 | D69: 0.09576836427 | E69: 0.1337320689 | F69: 0.1716957736 | G69: 0.1418355622 | H69: 0.1628389945 | I69: 0.1838424267 | J69: 0.1469476235 | K69: 0.183502602 | L69: 0.2200575806 | M69: 0.5031432478 | N69: 0.6474269733 | O69: 0.7917106987 | P69: 0.2681218173 | Q69: 0.3093713277 | R69: 0.350620838 | S69: 0.706890399 | T69: 0.7486957452 | U69: 0.7905010914 | V69: 0.1812436439 | W69: 0.3227246516 | X69: 0.4642056593 | Y69: 0.2111245544 | Z69: 0.2536069342 | AA69: 0.296089314 | AB69: 0.1900206305 | AC69: 0.2280247566 | AD69: 0.2660288827 | AE69: 0.2414102931 | AF69: 0.3172747465 | AG69: 0.3931391998 | AH69: 0.35803597 | AI69: 0.4565004587 | AJ69: 0.5549649474 | AK69: 0.0996749869 | AL69: 0.1469176346 | AM69: 0.1945886852
A70: 170 | B70: 680 | C70: 68000000 | D70: 0.09453147474 | E70: 0.1319368896 | F70: 0.1693423045 | G70: 0.1405895654 | H70: 0.1612841237 | I70: 0.1819786819 | J70: 0.1449051528 | K70: 0.1809225582 | L70: 0.2169399635 | M70: 0.494255609 | N70: 0.6359906733 | O70: 0.7777257377 | P70: 0.263374024 | Q70: 0.3038931046 | R70: 0.3444121852 | S70: 0.6944077456 | T70: 0.7354748703 | U70: 0.7765419951 | V70: 0.1780427371 | W70: 0.3170250779 | X70: 0.4560074186 | Y70: 0.2073908955 | Z70: 0.2491219903 | AA70: 0.2908530851 | AB70: 0.186665207 | AC70: 0.2239982483 | AD70: 0.2613312897 | AE70: 0.2379248443 | AF70: 0.3126856055 | AG70: 0.3874463667 | AH70: 0.3528627455 | AI70: 0.449879227 | AJ70: 0.5468957085 | AK70: 0.09825484809 | AL70: 0.1448047326 | AM70: 0.1917829693
A71: 172.5 | B71: 690 | C71: 69000000 | D71: 0.09333043708 | E71: 0.1301937445 | F71: 0.1670570519 | G71: 0.1393796843 | H71: 0.1597743214 | I71: 0.1801689585 | J71: 0.1429218841 | K71: 0.1784172981 | L71: 0.2139127121 | M71: 0.4885029232 | N71: 0.6285883202 | O71: 0.7686737173 | P71: 0.2603011518 | Q71: 0.3003474829 | R71: 0.340393814 | S71: 0.6863280441 | T71: 0.7269173371 | U71: 0.76750663 | V71: 0.1759708801 | W71: 0.3133359039 | X71: 0.4507009277 | Y71: 0.2049742995 | Z71: 0.2462191281 | AA71: 0.2874639567 | AB71: 0.1844933261 | AC71: 0.2213919914 | AD71: 0.2582906566 | AE71: 0.2345305589 | AF71: 0.3082138872 | AG71: 0.3818972154 | AH71: 0.3478394695 | AI71: 0.4434499151 | AJ71: 0.5390603607 | AK71: 0.09687587272 | AL71: 0.1427530741 | AM71: 0.1890585784
A72: 175 | B72: 700 | C72: 70000000 | D72: 0.09216371478 | E72: 0.1285004035 | F72: 0.1648370923 | G72: 0.1382043712 | H72: 0.1583076563 | I72: 0.1784109415 | J72: 0.1409952802 | K72: 0.1759836168 | L72: 0.2109719535 | M72: 0.4801206712 | N72: 0.6178023342 | O72: 0.7554839973 | P72: 0.255823977 | Q72: 0.295181512 | R72: 0.3345390469 | S72: 0.6745549837 | T72: 0.7144480204 | U72: 0.7543410571 | V72: 0.1729519556 | W72: 0.30796037 | X72: 0.4429687843 | Y72: 0.2014531882 | Z72: 0.2419895005 | AA72: 0.2825258127 | AB72: 0.1813286426 | AC72: 0.2175943712 | AD72: 0.2538600997 | AE72: 0.2312441028 | AF72: 0.3038870864 | AG72: 0.37653007 | AH72: 0.3429597158 | AI72: 0.4372042978 | AJ72: 0.5314488799 | AK72: 0.09553629665 | AL72: 0.1407600345 | AM72: 0.1864120273
A73: 177.5 | B73: 710 | C73: 71000000 | D73: 0.0910298579 | E73: 0.1268547623 | F73: 0.1626796667 | G73: 0.1370621653 | H73: 0.1568823056 | I73: 0.1767024459 | J73: 0.1391229467 | K73: 0.1736184899 | L73: 0.2081140331 | M73: 0.4746905085 | N73: 0.6108149926 | O73: 0.7469394767 | P73: 0.2529237875 | Q73: 0.2918351394 | R73: 0.3307464914 | S73: 0.6669281302 | T73: 0.7063701164 | U73: 0.7458121026 | V73: 0.1709962354 | W73: 0.3044779905 | X73: 0.4379597456 | Y73: 0.1991722271 | Z73: 0.2392495655 | AA73: 0.2793269039 | AB73: 0.1792784883 | AC73: 0.215134186 | AD73: 0.2509898837 | AE73: 0.2280401048 | AF73: 0.2996661697 | AG73: 0.3712922347 | AH73: 0.3382174198 | AI73: 0.4311346134 | AJ73: 0.524051807 | AK73: 0.09423445511 | AL73: 0.1388231368 | AM73: 0.1838400269
A74: 180 | B74: 720 | C74: 72000000 | D74: 0.08992749704 | E74: 0.1252548333 | F74: 0.1605821696 | G74: 0.1359516874 | H74: 0.1554965479 | I74: 0.1750414085 | J74: 0.1373026225 | K74: 0.1713190609 | L74: 0.2053354993 | M74: 0.4667717293 | N74: 0.600625387 | O74: 0.7344790447 | P74: 0.2486947359 | Q74: 0.2869554645 | R74: 0.3252161931 | S74: 0.6558058308 | T74: 0.6945900466 | U74: 0.7333742624 | V74: 0.1681442032 | W74: 0.2993996271 | X74: 0.430655051 | Y74: 0.1958460167 | Z74: 0.2352540566 | AA74: 0.2746620966 | AB74: 0.176288731 | AC74: 0.2115464772 | AD74: 0.2468042234 | AE74: 0.2249362747 | AF74: 0.2955801583 | AG74: 0.3662240419 | AH74: 0.3336068544 | AI74: 0.4252335314 | AJ74: 0.5168602084 | AK74: 0.09296877584 | AL74: 0.1369400418 | AM74: 0.181339471
A75: 182.5 | B75: 730 | C75: 73000000 | D75: 0.08885533785 | E75: 0.123698738 | F75: 0.1585421382 | G75: 0.1348716333 | H75: 0.1541487561 | I75: 0.1734258788 | J75: 0.1355321701 | K75: 0.1690826299 | L75: 0.2026330897 | M75: 0.4616377076 | N75: 0.594019109 | O75: 0.7264005105 | P75: 0.2459530714 | Q75: 0.2837920055 | R75: 0.3216309396 | S75: 0.6485947935 | T75: 0.6869525501 | U75: 0.7253103067 | V75: 0.1662951214 | W75: 0.2961071294 | X75: 0.4259191375 | Y75: 0.1936895838 | Z75: 0.2326637073 | AA75: 0.2716378309 | AB75: 0.1743503492 | AC75: 0.209220419 | AD75: 0.2440904888 | AE75: 0.2219070785 | AF75: 0.2915896451 | AG75: 0.3612722117 | AH75: 0.3291226057 | AI75: 0.4194941228 | AJ75: 0.5098656398 | AK75: 0.09173777272 | AL75: 0.1351085385 | AM75: 0.1789074234
A76: 185 | B76: 740 | C76: 74000000 | D76: 0.08781215594 | E76: 0.1221846994 | F76: 0.1565572428 | G76: 0.1338207699 | H76: 0.152837391 | I76: 0.1718540121 | J76: 0.1338095678 | K76: 0.1669066429 | L76: 0.2000037181 | M76: 0.4541449971 | N76: 0.5843777536 | O76: 0.7146105101 | P76: 0.2419520736 | Q76: 0.2791754696 | R76: 0.3163988655 | S76: 0.6380707516 | T76: 0.6758061186 | U76: 0.7135414856 | V76: 0.1635965151 | W76: 0.2913019581 | X76: 0.419007401 | Y76: 0.1905425283 | Z76: 0.2288834029 | AA76: 0.2672242775 | AB76: 0.1715214051 | AC76: 0.2058256861 | AD76: 0.2401299671 | AE76: 0.2189712763 | AF76: 0.2877252038 | AG76: 0.3564791313 | AH76: 0.324759553 | AI76: 0.4139098333 | AJ76: 0.5030601137 | AK76: 0.09054003995 | AL76: 0.1333265352 | AM76: 0.1765411069
A77: 187.5 | B77: 750 | C77: 75000000 | D77: 0.08679679221 | E77: 0.120711035 | F77: 0.1546252779 | G77: 0.1327979294 | H77: 0.1515609955 | I77: 0.1703240617 | J77: 0.1321329014 | K77: 0.1647886823 | L77: 0.1974444631 | M77: 0.4492835348 | N77: 0.5781221955 | O77: 0.7069608563 | P77: 0.2393562831 | Q77: 0.2761803267 | R77: 0.3130043702 | S77: 0.6312424289 | T77: 0.6685739704 | U77: 0.7059055119 | V77: 0.1618455818 | W77: 0.2881842247 | X77: 0.4145228677 | Y77: 0.1885006972 | Z77: 0.2264307155 | AA77: 0.2643607338 | AB77: 0.1696858982 | AC77: 0.2036230778 | AD77: 0.2375602574 | AE77: 0.2161030423 | AF77: 0.2839468652 | AG77: 0.3517906881 | AH77: 0.3205128484 | AI77: 0.4084744583 | AJ77: 0.4964360682 | AK77: 0.08937424671 | AL77: 0.1315920521 | AM77: 0.1742378921
A78: 190 | B78: 760 | C78: 76000000 | D78: 0.08580814858 | E78: 0.1192761514 | F78: 0.1527441542 | G78: 0.1318020057 | H78: 0.1503181894 | I78: 0.1688343731 | J78: 0.1305003578 | K78: 0.1627264573 | L78: 0.1949525569 | M78: 0.4421834083 | N78: 0.5689860033 | O78: 0.6957885984 | P78: 0.2355653772 | Q78: 0.2718062045 | R78: 0.3080470317 | S78: 0.6212696409 | T78: 0.6580113939 | U78: 0.6947531469 | V78: 0.1592883457 | W78: 0.2836307789 | X78: 0.4079732121 | Y78: 0.1855187025 | Z78: 0.2228486853 | AA78: 0.2601786681 | AB78: 0.1670051329 | AC78: 0.2004061595 | AD78: 0.2338071861 | AE78: 0.2133105151 | AF78: 0.2802683154 | AG78: 0.3472261157 | AH78: 0.3163778991 | AI78: 0.4031821194 | AJ78: 0.4899863398 | AK78: 0.08823913225 | AL78: 0.1299032132 | AM78: 0.1719952883
A79: 192.5 | B79: 770 | C79: 77000000 | D79: 0.084845184 | E79: 0.1178785374 | F79: 0.1509118908 | G79: 0.13083195 | H79: 0.1491076638 | I79: 0.1673833776 | J79: 0.1289102179 | K79: 0.1607177966 | L79: 0.1925253754 | M79: 0.4375733629 | N79: 0.5630539596 | O79: 0.6885345563 | P79: 0.2331041207 | Q79: 0.2689662932 | R79: 0.3048284656 | S79: 0.614794354 | T79: 0.6511531599 | U79: 0.6875119658 | V79: 0.1576279488 | W79: 0.2806742557 | X79: 0.4037205626 | Y79: 0.1835825744 | Z79: 0.2205229704 | AA79: 0.2574633665 | AB79: 0.1652645232 | AC79: 0.1983174278 | AD79: 0.2313703325 | AE79: 0.2106025321 | AF79: 0.2767043028 | AG79: 0.3428060734 | AH79: 0.3123503512 | AI79: 0.3980272439 | AJ79: 0.4837041367 | AK79: 0.08713350128 | AL79: 0.1282582403 | AM79: 0.1698109339
A80: 195 | B80: 780 | C80: 78000000 | D80: 0.08390691082 | E80: 0.1165167597 | F80: 0.1491266086 | G80: 0.1298867676 | H80: 0.1479281773 | I80: 0.1659695871 | J80: 0.1273608508 | K80: 0.15876064 | L80: 0.1901604293 | M80: 0.4308357546 | N80: 0.5543842431 | O80: 0.6779327316 | P80: 0.2295071828 | Q80: 0.2648159801 | R80: 0.3001247775 | S80: 0.6053306144 | T80: 0.6411297368 | U80: 0.6769288592 | V80: 0.155201258 | W80: 0.2763532605 | X80: 0.3975052629 | Y80: 0.1807529868 | Z80: 0.2171240146 | AA80: 0.2534950424 | AB80: 0.162720592 | AC80: 0.1952647104 | AD80: 0.2278088288 | AE80: 0.2079528326 | AF80: 0.2732140429 | AG80: 0.3384752532 | AH80: 0.3084260736 | AI80: 0.3930045447 | AJ80: 0.4775830158 | AK80: 0.08605621983 | AL80: 0.1266554461 | AM80: 0.1676825886
A81: 197.5 | B81: 790 | C81: 79000000 | D81: 0.0829923914 | E81: 0.1151894574 | F81: 0.1473865234 | G81: 0.1289655137 | H81: 0.1467785512 | I81: 0.1645915886 | J81: 0.1258507081 | K81: 0.1568530317 | L81: 0.1878553553 | M81: 0.4264581151 | N81: 0.548751251 | O81: 0.6710443869 | P81: 0.2271702661 | Q81: 0.2621195378 | R81: 0.2970688095 | S81: 0.5991816756 | T81: 0.634617151 | U81: 0.6700526265 | V81: 0.1536245525 | W81: 0.2735457594 | X81: 0.3934669662 | Y81: 0.1789145609 | Z81: 0.2149156616 | AA81: 0.2509167623 | AB81: 0.1610677058 | AC81: 0.193281247 | AD81: 0.2254947882 | AE81: 0.2053704608 | AF81: 0.2698125342 | AG81: 0.3342546076 | AH81: 0.3046011449 | AI81: 0.3881090024 | AJ81: 0.47161686 | AK81: 0.08500621132 | AL81: 0.1250932291 | AM81: 0.1656081254
A82: 200 | B82: 800 | C82: 80000000 | D82: 0.08210073496 | E82: 0.1138953376 | F82: 0.1456899403 | G82: 0.1280672911 | H82: 0.1456576656 | I82: 0.1632480401 | J82: 0.1243783189 | K82: 0.1549931135 | L82: 0.185607908 | M82: 0.4200559529 | N82: 0.5405131747 | O82: 0.6609703965 | P82: 0.2237527809 | Q82: 0.2581762856 | R82: 0.2925997904 | S82: 0.59018898 | T82: 0.6250926294 | U82: 0.6599962787 | V82: 0.1513186599 | W82: 0.2694398586 | X82: 0.3875610574 | Y82: 0.1762259879 | Z82: 0.2116860952 | AA82: 0.2471462025 | AB82: 0.1586503931 | AC82: 0.1903804717 | AD82: 0.2221105504 | AE82: 0.2028528998 | AF82: 0.2664964608 | AG82: 0.3301400218 | AH82: 0.3008718394 | AI82: 0.3833358487 | AJ82: 0.465799858 | AK82: 0.08398245302 | AL82: 0.1235700675 | AM82: 0.1635855239
A83: 202.5 | B83: 810 | C83: 81000000 | D83: 0.08123109473 | E83: 0.1126331714 | F83: 0.1440352481 | G83: 0.1271912468 | H83: 0.1445644562 | I83: 0.1619376656 | J83: 0.122942285 | K83: 0.1531791192 | L83: 0.1834159533 | M83: 0.4158935776 | N83: 0.535157177 | O83: 0.6544207765 | P83: 0.2215310143 | Q83: 0.2556127088 | R83: 0.2896944033 | S83: 0.5843423252 | T83: 0.6189002046 | U83: 0.6534580841 | V83: 0.1498194741 | W83: 0.26677039 | X83: 0.383721306 | Y83: 0.1744780512 | Z83: 0.2095864395 | AA83: 0.2446948279 | AB83: 0.1570787622 | AC83: 0.1884945146 | AD83: 0.219910267 | AE83: 0.2003977572 | AF83: 0.2632626711 | AG83: 0.326127585 | AH83: 0.2972346155 | AI83: 0.3786805506 | AJ83: 0.4601264858 | AK83: 0.08298397271 | AL83: 0.1220845148 | AM83: 0.1616128631
A84: 205 | B84: 820 | C84: 82000000 | D84: 0.08038266523 | E84: 0.1114017898 | F84: 0.1424209143 | G84: 0.1263365694 | H84: 0.1434979104 | I84: 0.1606592514 | J84: 0.1215412763 | K84: 0.1514093686 | L84: 0.1812774608 | M84: 0.4098024194 | N84: 0.5273192897 | O84: 0.64483616 | P84: 0.2182798796 | Q84: 0.2518613996 | R84: 0.2854429195 | S84: 0.5757863604 | T84: 0.6098382419 | U84: 0.6438901234 | V84: 0.147625579 | W84: 0.2628639136 | X84: 0.3781022482 | Y84: 0.1719202079 | Z84: 0.2065139083 | AA84: 0.2411076086 | AB84: 0.1547788445 | AC84: 0.1857346134 | AD84: 0.2166903823 | AE84: 0.1980027576 | AF84: 0.2601081677 | AG84: 0.3222135779 | AH84: 0.2936861044 | AI84: 0.3741387964 | AJ84: 0.4545914884 | AK84: 0.08200984557 | AL84: 0.120635195 | AM84: 0.159688316
A85: 207.5 | B85: 830 | C85: 83000000 | D85: 0.07955467982 | E85: 0.11020008 | F85: 0.1408454801 | G85: 0.1255024866 | H85: 0.1424570644 | I85: 0.1594116422 | J85: 0.1201740269 | K85: 0.1496822626 | L85: 0.1791904983 | M85: 0.405839812 | N85: 0.5222203464 | O85: 0.6386008807 | P85: 0.2161649571 | Q85: 0.2494211044 | R85: 0.2826772516 | S85: 0.5702202347 | T85: 0.6039429367 | U85: 0.6376656388 | V85: 0.1461983333 | W85: 0.2603225424 | X85: 0.3744467515 | Y85: 0.1702562401 | Z85: 0.2045151177 | AA85: 0.2387739953 | AB85: 0.153282621 | AC85: 0.1839391452 | AD85: 0.2145956694 | AE85: 0.1956784203 | AF85: 0.2570501538 | AG85: 0.3184218874 | AH85: 0.2902230996 | AI85: 0.3697064821 | AJ85: 0.4491898645 | AK85: 0.08105919138 | AL85: 0.1192207987 | AM85: 0.1578101435
A86: 210 | B86: 840 | C86: 84000000 | D86: 0.07874640835 | E86: 0.1090269823 | F86: 0.1393075563 | G86: 0.1246882628 | H86: 0.1414410004 | I86: 0.158193738 | J86: 0.1188393309 | K86: 0.1479962781 | L86: 0.1771532253 | M86: 0.400037534 | N86: 0.5147541798 | O86: 0.6294708256 | P86: 0.213068316 | Q86: 0.2458480569 | R86: 0.2786277978 | S86: 0.562069941 | T86: 0.5953106365 | U86: 0.6285513319 | V86: 0.1441084699 | W86: 0.2566013061 | X86: 0.3690941422 | Y86: 0.1678198183 | Z86: 0.2015884402 | AA86: 0.2353570622 | AB86: 0.1510917497 | AC86: 0.1813100996 | AD86: 0.2115284495 | AE86: 0.1933974448 | AF86: 0.2540460093 | AG86: 0.3146945737 | AH86: 0.2868425473 | AI86: 0.365379699 | AJ86: 0.4439168507 | AK86: 0.08013117181 | AL86: 0.1178400785 | AM86: 0.1559766894
A87: 212.5 | B87: 850 | C87: 85000000 | D87: 0.07795715503 | E87: 0.1078814869 | F87: 0.1378058189 | G87: 0.1238931972 | H87: 0.1404488438 | I87: 0.1570044904 | J87: 0.1175360395 | K87: 0.1463499638 | L87: 0.1751638881 | M87: 0.3962606507 | N87: 0.5098942196 | O87: 0.6235277886 | P87: 0.2110527117 | Q87: 0.2435223597 | R87: 0.2759920077 | S87: 0.556764628 | T87: 0.5896915684 | U87: 0.6226185088 | V87: 0.1427481076 | W87: 0.2541790283 | X87: 0.3656099491 | Y87: 0.1662339109 | Z87: 0.1996834174 | AA87: 0.2331329238 | AB87: 0.1496656338 | AC87: 0.1795987606 | AD87: 0.2095318874 | AE87: 0.1911704273 | AF87: 0.2511130055 | AG87: 0.3110555837 | AH87: 0.2835415374 | AI87: 0.3611547226 | AJ87: 0.4387679078 | AK87: 0.079224988 | AL87: 0.1164918458 | AM87: 0.1541863754
A88: 215 | B88: 860 | C88: 86000000 | D88: 0.07718625644 | E88: 0.106762631 | F88: 0.1363390056 | G88: 0.1231166214 | H88: 0.1394797605 | I88: 0.1558428996 | J88: 0.1162630572 | K88: 0.1447419359 | L88: 0.1732208145 | M88: 0.3907271787 | N88: 0.5027739432 | O88: 0.6148207077 | P88: 0.2080998077 | Q88: 0.2401151627 | R88: 0.2721305178 | S88: 0.5489918228 | T88: 0.5814590812 | U88: 0.6139263395 | V88: 0.1407550479 | W88: 0.2506301618 | X88: 0.3605052758 | Y88: 0.1639104653 | Z88: 0.1968924492 | AA88: 0.2298744331 | AB88: 0.1475762332 | AC88: 0.1770914799 | AD88: 0.2066067265 | AE88: 0.1889954951 | AF88: 0.2482486764 | AG88: 0.3075018578 | AH88: 0.2803172952 | AI88: 0.3570280015 | AJ88: 0.4337387078 | AK88: 0.07833987823 | AL88: 0.1151749673 | AM88: 0.1524376966
A89: 217.5 | B89: 870 | C89: 87000000 | D89: 0.07643307965 | E89: 0.1056694959 | F89: 0.1349059121 | G89: 0.122357898 | H89: 0.138532955 | I89: 0.154708012 | J89: 0.1150193389 | K89: 0.1431708741 | L89: 0.1713224093 | M89: 0.3871232618 | N89: 0.4981365501 | O89: 0.6091498384 | P89: 0.2061766864 | Q89: 0.2378961766 | R89: 0.2696156668 | S89: 0.5439294115 | T89: 0.5760972799 | U89: 0.6082651483 | V89: 0.1394569755 | W89: 0.2483187981 | X89: 0.3571806208 | Y89: 0.1623972515 | Z89: 0.1950747472 | AA89: 0.2277522429 | AB89: 0.1462154106 | AC89: 0.1754584927 | AD89: 0.2047015748 | AE89: 0.1868708624 | AF89: 0.24545067 | AG89: 0.3040304777 | AH89: 0.2771671734 | AI89: 0.3529961475 | AJ89: 0.4288251216 | AK89: 0.07747511581 | AL89: 0.1138883619 | AM89: 0.1507292174
A90: 220 | B90: 880 | C90: 88000000 | D90: 0.07569702052 | E90: 0.1046012048 | F90: 0.133505389 | G90: 0.1216164181 | H90: 0.1376076677 | I90: 0.1535989172 | J90: 0.1138038868 | K90: 0.1416355182 | L90: 0.1694671496 | M90: 0.3818403396 | N90: 0.4913386722 | O90: 0.6008370049 | P90: 0.2033577389 | Q90: 0.2346435449 | R90: 0.2659293509 | S90: 0.5365084634 | T90: 0.5682374585 | U90: 0.5999664537 | V90: 0.1375541459 | W90: 0.2449305965 | X90: 0.3523070471 | Y90: 0.1601791024 | Z90: 0.1924102632 | AA90: 0.2246414241 | AB90: 0.144220591 | AC90: 0.1730647092 | AD90: 0.2019088273 | AE90: 0.1847948249 | AF90: 0.2427167419 | AG90: 0.3006386588 | AH90: 0.2740886454 | AI90: 0.3490559266 | AJ90: 0.4240232077 | AK90: 0.07663000708 | AL90: 0.1126309976 | AM90: 0.1490595672
A91: 222.5 | B91: 890 | C91: 89000000 | D91: 0.07497750205 | E91: 0.1035569202 | F91: 0.1321363383 | G91: 0.1208916008 | H91: 0.1367031734 | I91: 0.1525147459 | J91: 0.1126157483 | K91: 0.1401346647 | L91: 0.1676535812 | M91: 0.3783977737 | N91: 0.4869088999 | O91: 0.5954200262 | P91: 0.2015208783 | Q91: 0.2325240903 | R91: 0.2635273024 | S91: 0.5316726458 | T91: 0.5631156518 | U91: 0.5945586577 | V91: 0.1363141808 | W91: 0.2427226996 | X91: 0.3491312183 | Y91: 0.1587336961 | Z91: 0.190674013 | AA91: 0.2226143299 | AB91: 0.1429206779 | AC91: 0.1715048135 | AD91: 0.2000889491 | AE91: 0.1827657556 | AF91: 0.2400447492 | AG91: 0.2973237429 | AH91: 0.2710792977 | AI91: 0.3452042499 | AJ91: 0.4193292021 | AK91: 0.07580388956 | AL91: 0.1114018886 | AM91: 0.1474274372
A92: 225 | B92: 900 | C92: 90000000 | D92: 0.07427397287 | E92: 0.1025358419 | F92: 0.1307977109 | G92: 0.1201828904 | H92: 0.1358187789 | I92: 0.1514546673 | J92: 0.1114540128 | K92: 0.1386671635 | L92: 0.1658803142 | M92: 0.3733487614 | N92: 0.4804120091 | O92: 0.5874752569 | P92: 0.1988269746 | Q92: 0.2294157399 | R92: 0.2600045052 | S92: 0.5245801927 | T92: 0.5556037524 | U92: 0.5866273122 | V92: 0.1344955898 | W92: 0.2394844941 | X92: 0.3444733983 | Y92: 0.1566138444 | Z92: 0.1881276058 | AA92: 0.2196413672 | AB92: 0.1410141595 | AC92: 0.1692169914 | AD92: 0.1974198234 | AE92: 0.1807821 | AF92: 0.2374326454 | AG92: 0.2940831908 | AH92: 0.2681368245 | AI92: 0.3414381661 | AJ92: 0.4147395077 | AK92: 0.0749961302 | AL92: 0.1102000931 | AM92: 0.1458315768
A93: 227.5 | B93: 910 | C93: 91000000 | D93: 0.07358590588 | E93: 0.1015372049 | F93: 0.129488504 | G93: 0.1194897561 | H93: 0.1349538216 | I93: 0.1504178871 | J93: 0.1103178099 | K93: 0.137231915 | L93: 0.1641460201 | M93: 0.3700569483 | N93: 0.4761762203 | O93: 0.5822954922 | P93: 0.1970706984 | Q93: 0.2273892674 | R93: 0.2577078363 | S93: 0.5199560889 | T93: 0.5507061802 | U93: 0.5814562715 | V93: 0.133309916 | W93: 0.2373732688 | X93: 0.3414366216 | Y93: 0.1552317881 | Z93: 0.1864674527 | AA93: 0.2177031174 | AB93: 0.1397711564 | AC93: 0.1677253876 | AD93: 0.1956796189 | AE93: 0.1788423727 | AF93: 0.2348784745 | AG93: 0.2909145764 | AH93: 0.265259021 | AI93: 0.3377548533 | AJ93: 0.4102506857 | AK93: 0.0742061238 | AL93: 0.1090247108 | AM93: 0.1442707902
A94: 230 | B94: 920 | C94: 92000000 | D94: 0.07291279686 | E94: 0.1005602774 | F94: 0.128207758 | G94: 0.1188116898 | H94: 0.1341076677 | I94: 0.1494036455 | J94: 0.1092063071 | K94: 0.1358278676 | L94: 0.162449428 | M94: 0.3652266477 | N94: 0.4699607599 | O94: 0.5746948721 | P94: 0.194493699 | Q94: 0.2244158066 | R94: 0.2543379141 | S94: 0.5131707918 | T94: 0.5435196021 | U94: 0.5738684123 | V94: 0.1315700909 | W94: 0.2342753149 | X94: 0.3369805389 | Y94: 0.1532038414 | Z94: 0.1840314437 | AA94: 0.2148590459 | AB94: 0.1379472033 | AC94: 0.1655366439 | AD94: 0.1931260846 | AE94: 0.1769310426 | AF94: 0.2323580563 | AG94: 0.2877850701 | AH94: 0.2624437784 | AI94: 0.3341516126 | AJ94: 0.4058594467 | AK94: 0.07343329145 | AL94: 0.1078748802 | AM94: 0.1427439338
A95: 232.5 | B95: 930 | C95: 93000000 | D95: 0.0722541633 | E95: 0.09960435914 | F95: 0.126954555 | G95: 0.1181482056 | H95: 0.1332797106 | I95: 0.1484112155 | J95: 0.1081187075 | K95: 0.1344540147 | L95: 0.1607893218 | M95: 0.3620758976 | N95: 0.4659064859 | O95: 0.5697370742 | P95: 0.1928128183 | Q95: 0.2224763288 | R95: 0.2521398393 | S95: 0.5087447967 | T95: 0.5388318546 | U95: 0.5689189125 | V95: 0.1304352192 | W95: 0.2322545485 | X95: 0.3340738778 | Y95: 0.1518810596 | Z95: 0.1824424924 | AA95: 0.2130039251 | AB95: 0.1367574529 | AC95: 0.1641089434 | AD95: 0.191460434 | AE95: 0.1750747754 | AF95: 0.2299139112 | AG95: 0.284753047 | AH95: 0.2596890787 | AI95: 0.3306258609 | AJ95: 0.4015626431 | AK95: 0.07267707915 | AL95: 0.1067497772 | AM95: 0.141249913
A96: 235 | B96: 940 | C96: 94000000 | D96: 0.07160954323 | E96: 0.09866877953 | F96: 0.1257280158 | G96: 0.1174988381 | H96: 0.1324693696 | I96: 0.1474399011 | J96: 0.1070542484 | K96: 0.1331093927 | L96: 0.159164537 | M96: 0.3574503991 | N96: 0.4599545577 | O96: 0.5624587163 | P96: 0.1903452754 | Q96: 0.2196291639 | R96: 0.2489130524 | S96: 0.5022471258 | T96: 0.5319499128 | U96: 0.5616526998 | V96: 0.1287691514 | W96: 0.2292879277 | X96: 0.3298067041 | Y96: 0.1499391683 | Z96: 0.1801098546 | AA96: 0.2102805409 | AB96: 0.1350108154 | AC96: 0.1620129785 | AD96: 0.1890151415 | AE96: 0.1732583486 | AF96: 0.227522315 | AG96: 0.2817862815 | AH96: 0.2569929896 | AI96: 0.3271751252 | AJ96: 0.3973572608 | AK96: 0.07193695647 | AL96: 0.1056486125 | AM96: 0.1397876799
A97: 237.5 | B97: 950 | C97: 95000000 | D97: 0.0709784941 | E97: 0.09775289634 | F97: 0.1245272986 | G97: 0.1168631414 | H97: 0.1316760884 | I97: 0.1464890353 | J97: 0.1060121989 | K97: 0.1317930785 | L97: 0.1575739581 | M97: 0.3544318351 | N97: 0.456070376 | O97: 0.557708917 | P97: 0.1887350373 | Q97: 0.2177711969 | R97: 0.2468073565 | S97: 0.4980067756 | T97: 0.5274587892 | U97: 0.5569108028 | V97: 0.1276818853 | W97: 0.2273519285 | X97: 0.3270219716 | Y97: 0.1486719279 | Z97: 0.1785876207 | AA97: 0.2085033135 | AB97: 0.1338709675 | AC97: 0.1606451609 | AD97: 0.1874193544 | AE97: 0.1714805169 | AF97: 0.2251816289 | AG97: 0.2788827409 | AH97: 0.2543536603 | AI97: 0.3237970365 | AJ97: 0.3932404128 | AK97: 0.07121241533 | AL97: 0.1045706303 | AM97: 0.1383562306
A98: 240 | B98: 960 | C98: 96000000 | D98: 0.07036059183 | E98: 0.09685609404 | F98: 0.1233515963 | G98: 0.1162406884 | H98: 0.1308993338 | I98: 0.1455579792 | J98: 0.1049918587 | K98: 0.1305041875 | L98: 0.1560165163 | M98: 0.3499983842 | N98: 0.4503655679 | O98: 0.5507327516 | P98: 0.1863701223 | Q98: 0.2150424488 | R98: 0.2437147753 | S98: 0.4917788223 | T98: 0.5208625161 | U98: 0.5499462099 | V98: 0.126084982 | W98: 0.2245084629 | X98: 0.3229319438 | Y98: 0.1468107282 | Z98: 0.1763519113 | AA98: 0.2058930945 | AB98: 0.1321968317 | AC98: 0.1586361981 | AD98: 0.1850755644 | AE98: 0.1697400878 | AF98: 0.2228902833 | AG98: 0.2760404787 | AH98: 0.251769317 | AI98: 0.3204893248 | AJ98: 0.3892093325 | AK98: 0.07050296879 | AL98: 0.103515106 | AM98: 0.1369546032
A99: 242.5 | B99: 970 | C99: 97000000 | D99: 0.06975542981 | E99: 0.09597778252 | F99: 0.1222001352 | G99: 0.1156310694 | H99: 0.1301385948 | I99: 0.1446461201 | J99: 0.1039925565 | K99: 0.1292418716 | L99: 0.1544911866 | M99: 0.3471038588 | N99: 0.4466409948 | O99: 0.5461781307 | P99: 0.1848261653 | Q99: 0.2132609599 | R99: 0.2416957546 | S99: 0.4877126772 | T99: 0.5165559 | U99: 0.5453991228 | V99: 0.1250423878 | W99: 0.2226520068 | X99: 0.3202616258 | Y99: 0.1455956031 | Z99: 0.1748922793 | AA99: 0.2041889556 | AB99: 0.1311038112 | AC99: 0.1573245735 | AD99: 0.1835453357 | AE99: 0.1680359186 | AF99: 0.2206467743 | AG99: 0.2732576299 | AH99: 0.2492382592 | AI99: 0.3172498132 | AJ99: 0.3852613673 | AK99: 0.06980815001 | AL99: 0.1024813451 | AM99: 0.1355818754
A100: 245 | B100: 980 | C100: 98000000 | D100: 0.06916261804 | E100: 0.09511739572 | F100: 0.1210721734 | G100: 0.1150338916 | H100: 0.129393381 | I100: 0.1437528704 | J100: 0.1030136481 | K100: 0.1280053172 | L100: 0.1529969862 | M100: 0.3428507384 | N100: 0.4411682296 | O100: 0.5394857208 | P100: 0.1825576062 | Q100: 0.2106433917 | R100: 0.2387291773 | S100: 0.4817379894 | T100: 0.5102278705 | U100: 0.5387177516 | V100: 0.1235104298 | W100: 0.2199241836 | X100: 0.3163379375 | Y100: 0.1438101681 | Z100: 0.1727475799 | AA100: 0.2016849918 | AB100: 0.1294977549 | AC100: 0.1553973059 | AD100: 0.1812968569 | AE100: 0.1663669138 | AF100: 0.2184496607 | AG100: 0.2705324076 | AH100: 0.2467588555 | AI100: 0.3140764142 | AJ100: 0.3813939728 | AK100: 0.06912751122 | AL100: 0.1014686813 | AM100: 0.1342371624
A101: 247.5 | B101: 990 | C101: 99000000 | D101: 0.06858178227 | E101: 0.09427439047 | F101: 0.1199669987 | G101: 0.114448778 | H101: 0.128663222 | I101: 0.1428776661 | J101: 0.1020545157 | K101: 0.1267937436 | L101: 0.1515329716 | M101: 0.3400727603 | N101: 0.4375936254 | O101: 0.5351144905 | P101: 0.1810759205 | Q101: 0.2089337544 | R101: 0.2367915883 | S101: 0.4778355304 | T101: 0.5060946209 | U101: 0.5343537114 | V101: 0.1225098097 | W101: 0.2181424673 | X101: 0.3137751248 | Y101: 0.1426440082 | Z101: 0.171346766 | AA101: 0.2000495238 | AB101: 0.1284487343 | AC101: 0.1541384811 | AD101: 0.179828228 | AE101: 0.164716743 | AF101: 0.2162734015 | AG101: 0.2678300601 | AH101: 0.2443295409 | AI101: 0.3109671242 | AJ101: 0.3776047074 | AK101: 0.06846062269 | AL101: 0.1004764754 | AM101: 0.1329196153
A102: 250 | B102: 1000 | C102: 100000000 | D102: 0.0680125632 | E102: 0.09344824533 | F102: 0.1188839275 | G102: 0.1138753666 | H102: 0.1279476662 | I102: 0.1420199658 | J102: 0.1011145659 | K102: 0.1256064016 | L102: 0.1500982372 | M102: 0.3359891876 | N102: 0.4323390282 | O102: 0.5286888688 | P102: 0.1788979461 | Q102: 0.206420707 | R102: 0.2339434679 | S102: 0.4720989675 | T102: 0.5000187989 | U102: 0.5279386303 | V102: 0.1210389141 | W102: 0.2155233725 | X102: 0.3100078309 | Y102: 0.1409298039 | Z102: 0.1692876303 | AA102: 0.1976454567 | AB102: 0.1269066875 | AC102: 0.152288025 | AD102: 0.1776693625 | AE102: 0.163114703 | AF102: 0.2141645852 | AG102: 0.2652144674 | AH102: 0.2419488125 | AI102: 0.30792002 | AJ102: 0.3738912274 | AK102: 0.06780707194 | AL102: 0.09950411367 | AM102: 0.1316284191
A103: 252.5 | B103: 1010 | C103: 101000000 | D103: 0.06745461581 | E103: 0.0926384595 | F103: 0.1178223032 | G103: 0.1133133099 | H103: 0.1272462798 | I103: 0.1411792497 | J103: 0.100193229 | K103: 0.1244425712 | L103: 0.1486919134 | M103: 0.3333208568 | N103: 0.4289055143 | O103: 0.5244901717 | P103: 0.1774748389 | Q103: 0.2047786603 | R103: 0.2320824816 | S103: 0.468350506 | T103: 0.4960486542 | U103: 0.5237468024 | V103: 0.1200777835 | W103: 0.2138119716 | X103: 0.3075461598 | Y103: 0.1398097082 | Z103: 0.1679421495 | AA103: 0.1960745908 | AB103: 0.1258990625 | AC103: 0.1510788749 | AD103: 0.1762586874 | AE103: 0.1615447914 | AF103: 0.2120981676 | AG103: 0.2626515439 | AH103: 0.2396152273 | AI103: 0.3049332545 | AJ103: 0.3702512816 | AK103: 0.06716646279 | AL103: 0.09855100659 | AM103: 0.1303627912
A104: 255 | B104: 1020 | C104: 102000000 | D104: 0.06690760856 | E104: 0.09184455182 | F104: 0.1167814951 | G104: 0.1127622739 | H104: 0.1265586461 | I104: 0.1403550182 | J104: 0.0992899575 | K104: 0.1233015611 | L104: 0.1473131646 | M104: 0.3293968918 | N104: 0.4238562946 | O104: 0.5183156974 | P104: 0.1753821299 | Q104: 0.202363996 | R104: 0.2293458621 | S104: 0.4628381103 | T104: 0.4902102567 | U104: 0.517582403 | V104: 0.1186643709 | W104: 0.2112952318 | X104: 0.3039260927 | Y104: 0.1381625554 | Z104: 0.1659635575 | AA104: 0.1937645595 | AB104: 0.1244172734 | AC104: 0.1493007281 | AD104: 0.1741841827 | AE104: 0.1600060796 | AF104: 0.2100729279 | AG104: 0.2601397761 | AH104: 0.2373273987 | AI104: 0.302005053 | AJ104: 0.3666827074 | AK104: 0.0665384146 | AL104: 0.09761658788 | AM104: 0.1291219795
A105: 257.5 | B105: 1030 | C105: 103000000 | D105: 0.06637122281 | E105: 0.09106605982 | F105: 0.1157608968 | G105: 0.1122219376 | H105: 0.1258843644 | I105: 0.1395467912 | J105: 0.09840422523 | K105: 0.1221827064 | L105: 0.1459611876 | M105: 0.3268318423 | N105: 0.4205556795 | O105: 0.5142795166 | P105: 0.1740141948 | Q105: 0.2007856094 | R105: 0.227557024 | S105: 0.4592347074 | T105: 0.4863937492 | U105: 0.5135527911 | V105: 0.1177404374 | W105: 0.2096500645 | X105: 0.3015596917 | Y105: 0.1370858475 | Z105: 0.1646701948 | AA105: 0.1922545422 | AB105: 0.1234486411 | AC105: 0.1481383693 | AD105: 0.1728280975 | AE105: 0.1584817487 | AF105: 0.2080625111 | AG105: 0.2576432735 | AH105: 0.2350839939 | AI105: 0.2991337098 | AJ105: 0.3631834258 | AK105: 0.06592256153 | AL105: 0.09670031323 | AM105: 0.1279052613
A106: 260 | B106: 1040 | C106: 104000000 | D106: 0.06584515217 | E106: 0.09030253882 | F106: 0.1147599255 | G106: 0.1116919923 | H106: 0.1252230497 | I106: 0.138754107 | J106: 0.09753552626 | K106: 0.1210853682 | L106: 0.1446352102 | M106: 0.323058307 | N106: 0.4157000274 | O106: 0.5083417478 | P106: 0.1720018404 | Q106: 0.1984636619 | R106: 0.2249254835 | S106: 0.4539335915 | T106: 0.4807791265 | U106: 0.5076246615 | V106: 0.1163812027 | W106: 0.2072297946 | X106: 0.2980783865 | Y106: 0.1355018876 | Z106: 0.1627675114 | AA106: 0.1900331351 | AB106: 0.1220236455 | AC106: 0.1464283746 | AD106: 0.1708331037 | AE106: 0.1570025063 | AF106: 0.2061156967 | AG106: 0.2552288871 | AH106: 0.2328837315 | AI106: 0.2963175848 | AJ106: 0.3597514381 | AK106: 0.06531855178 | AL106: 0.09580165924 | AM106: 0.1267119414
A107: 262.5 | B107: 1050 | C107: 105000000 | D107: 0.06532910192 | E107: 0.08955356108 | F107: 0.1137780203 | G107: 0.1111721413 | H107: 0.1245743314 | I107: 0.1379765215 | J107: 0.09668337393 | K107: 0.1200089317 | L107: 0.1433344894 | M107: 0.3205906565 | N107: 0.4125247418 | O107: 0.5044588271 | P107: 0.1706859301 | Q107: 0.196945304 | R107: 0.2232046778 | S107: 0.450466987 | T107: 0.4771075077 | U107: 0.5037480284 | V107: 0.115492348 | W107: 0.205647089 | X107: 0.2958018301 | Y107: 0.1344660944 | Z107: 0.1615232963 | AA107: 0.1885804982 | AB107: 0.1210917856 | AC107: 0.1453101427 | AD107: 0.1695284998 | AE107: 0.15555188 | AF107: 0.2042066604 | AG107: 0.2528614407 | AH107: 0.2307253788 | AI107: 0.2935551002 | AJ107: 0.3563848216 | AK107: 0.06472604698 | AL107: 0.09492012247 | AM107: 0.1255413515
A108: 265 | B108: 1060 | C108: 106000000 | D108: 0.06482278847 | E108: 0.088818715 | F108: 0.1128146415 | G108: 0.1106620987 | H108: 0.123937853 | I108: 0.1372136074 | J108: 0.09584729993 | K108: 0.1189528053 | L108: 0.1420583106 | M108: 0.3169590634 | N108: 0.407851736 | O108: 0.4987444086 | P108: 0.1687493893 | Q108: 0.1947108338 | R108: 0.2206722783 | S108: 0.4453652325 | T108: 0.4717040366 | U108: 0.4980428407 | V108: 0.1141842348 | W108: 0.2033178467 | X108: 0.2924514585 | Y108: 0.1329417594 | Z108: 0.1596922354 | AA108: 0.1864427113 | AB108: 0.1197203798 | AC108: 0.1436644557 | AD108: 0.1676085317 | AE108: 0.1541127113 | AF108: 0.2023084843 | AG108: 0.2505042573 | AH108: 0.2286077498 | AI108: 0.290844738 | AJ108: 0.3530817261 | AK108: 0.06414472151 | AL108: 0.09405521847 | AM108: 0.1243928482
A109: 267.5 | B109: 1070 | C109: 107000000 | D109: 0.06432593882 | E109: 0.08809760436 | F109: 0.1118692699 | G109: 0.1101615896 | H109: 0.1233132715 | I109: 0.1364649533 | J109: 0.09502685347 | K109: 0.1179164195 | L109: 0.1408059855 | M109: 0.3145833677 | N109: 0.4047947746 | O109: 0.4950061815 | P109: 0.1674825914 | Q109: 0.1932491439 | R109: 0.2190156964 | S109: 0.4420277816 | T109: 0.4681692095 | U109: 0.4943106375 | V109: 0.1133284984 | W109: 0.201794112 | X109: 0.2902597256 | Y109: 0.1319445922 | Z109: 0.1584944187 | AA109: 0.1850442452 | AB109: 0.1188232373 | AC109: 0.1425878848 | AD109: 0.1663525322 | AE109: 0.1527166573 | AF109: 0.2004714244 | AG109: 0.2482261915 | AH109: 0.2265297027 | AI109: 0.2881850367 | AJ109: 0.3498403708 | AK109: 0.06357426194 | AL109: 0.0932064809 | AM109: 0.1232658122
A110: 270 | B110: 1080 | C110: 108000000 | D110: 0.06383829009 | E110: 0.08738984762 | F110: 0.1109414051 | G110: 0.1096703492 | H110: 0.1227002562 | I110: 0.1357301633 | J110: 0.09422160046 | K110: 0.1168992261 | L110: 0.1395768516 | M110: 0.3110858561 | N110: 0.4002943001 | O110: 0.4895027442 | P110: 0.1656176593 | Q110: 0.1910972992 | R110: 0.216576939 | S110: 0.4371143501 | T110: 0.4629651988 | U110: 0.4888160475 | V110: 0.112068676 | W110: 0.1995508567 | X110: 0.2870330374 | Y110: 0.1304765777 | Z110: 0.156731011 | AA110: 0.1829854444 | AB110: 0.1175024541 | AC110: 0.1410029449 | AD110: 0.1645034358 | AE110: 0.1513469218 | AF110: 0.1986691204 | AG110: 0.2459913189 | AH110: 0.2244901379 | AI110: 0.2855745892 | AJ110: 0.3466590406 | AK110: 0.06301436644 | AL110: 0.09237346069 | AM110: 0.1221596473
A111: 272.5 | B111: 1090 | C111: 109000000 | D111: 0.06335958905 | E111: 0.08669507724 | F111: 0.1100305654 | G111: 0.1091881223 | H111: 0.1220984889 | I111: 0.1350088555 | J111: 0.09343112272 | K111: 0.1159006967 | L111: 0.1383702707 | M111: 0.3087970694 | N111: 0.3973491702 | O111: 0.485901271 | P111: 0.1651252463 | Q111: 0.1905291303 | R111: 0.2159330144 | S111: 0.4338989673 | T111: 0.4595596589 | U111: 0.4852203505 | V111: 0.1112442408 | W111: 0.1980828574 | X111: 0.284921474 | Y111: 0.1295159156 | Z111: 0.155577045 | AA111: 0.1816381744 | AB111: 0.1166381245 | AC111: 0.1399657493 | AD111: 0.1632933742 | AE111: 0.1499859409 | AF111: 0.1968739908 | AG111: 0.2437620407 | AH111: 0.2224879963 | AI111: 0.2830120398 | AJ111: 0.3435360834 | AK111: 0.06246474425 | AL111: 0.09155572526 | AM111: 0.121073779
A112: 275 | B112: 1100 | C112: 110000000 | D112: 0.06288959166 | E112: 0.08601293904 | F112: 0.1091362864 | G112: 0.1087146632 | H112: 0.1215076629 | I112: 0.1343006625 | J112: 0.09265501729 | K112: 0.1149203224 | L112: 0.1371856275 | M112: 0.3054263484 | N112: 0.3930118453 | O112: 0.4805973423 | P112: 0.1643956418 | Q112: 0.189687279 | R112: 0.2149789162 | S112: 0.4291636205 | T112: 0.4545442647 | U112: 0.4799249089 | V112: 0.1100300836 | W112: 0.1959209141 | X112: 0.2818117446 | Y112: 0.1281011569 | Z112: 0.1538776092 | AA112: 0.1796540615 | AB112: 0.1153652118 | AC112: 0.1384382541 | AD112: 0.1615112965 | AE112: 0.1486664117 | AF112: 0.1951379146 | AG112: 0.2416094174 | AH112: 0.2205222573 | AI112: 0.2804960822 | AJ112: 0.3404699072 | AK112: 0.06192511519 | AL112: 0.09075285774 | AM112: 0.1200076537
A113: 277.5 | B113: 1110 | C113: 111000000 | D113: 0.06242806269 | E113: 0.08534309163 | F113: 0.1082581206 | G113: 0.1082497349 | H113: 0.1209274823 | I113: 0.1336052297 | J113: 0.09189289574 | K113: 0.1139576125 | L113: 0.1360223293 | M113: 0.3032197875 | N113: 0.3901725206 | O113: 0.4771252538 | P113: 0.1639151453 | Q113: 0.18913286 | R113: 0.2143505746 | S113: 0.4260637291 | T113: 0.4512610464 | U113: 0.4764583637 | V113: 0.1092352631 | W113: 0.1945056471 | X113: 0.2797760311 | Y113: 0.1271750314 | Z113: 0.1527651291 | AA113: 0.1783552269 | AB113: 0.1145319271 | AC113: 0.1374383125 | AD113: 0.160344698 | AE113: 0.1473711521 | AF113: 0.1934339004 | AG113: 0.2394966486 | AH113: 0.218591937 | AI113: 0.2780254572 | AJ113: 0.3374589774 | AK113: 0.06139520917 | AL113: 0.08996445631 | AM113: 0.1189607379
A114: 280 | B114: 1120 | C114: 112000000 | D114: 0.06197477531 | E114: 0.08468520578 | F114: 0.1073956362 | G114: 0.1077931088 | H114: 0.120357662 | I114: 0.1329222153 | J114: 0.09114438349 | K114: 0.1130120939 | L114: 0.1348798043 | M114: 0.2999690853 | N114: 0.3859896318 | O114: 0.4720101783 | P114: 0.1632030881 | Q114: 0.1883112555 | R114: 0.2134194229 | S114: 0.4214969576 | T114: 0.446424197 | U114: 0.4713514365 | V114: 0.1080643324 | W114: 0.1924206735 | X114: 0.2767770147 | Y114: 0.1258106821 | Z114: 0.1511262461 | AA114: 0.1764418102 | AB114: 0.1133043288 | AC114: 0.1359651946 | AD114: 0.1586260603 | AE114: 0.1460821239 | AF114: 0.1917335977 | AG114: 0.2373850714 | AH114: 0.2166960867 | AI114: 0.2755989505 | AJ114: 0.3345018143 | AK114: 0.06087476577 | AL114: 0.08919013347 | AM114: 0.1179325171
A115: 282.5 | B115: 1130 | C115: 113000000 | D115: 0.06152951072 | E115: 0.08403896392 | F115: 0.1065484171 | G115: 0.1073445646 | H115: 0.1197979271 | I115: 0.1322512896 | J115: 0.09040911923 | K115: 0.1120833101 | L115: 0.1337575009 | M115: 0.2978403974 | N115: 0.3832505114 | O115: 0.4686606254 | P115: 0.1627340866 | Q115: 0.1877700999 | R115: 0.2128061132 | S115: 0.4185064452 | T115: 0.4432568264 | U115: 0.4680072075 | V115: 0.1072975592 | W115: 0.1910553478 | X115: 0.2748131363 | Y115: 0.1249172636 | Z115: 0.1500530544 | AA115: 0.1751888453 | AB115: 0.1125004461 | AC115: 0.1350005353 | AD115: 0.1575006245 | AE115: 0.1448331666 | AF115: 0.1900906722 | AG115: 0.2353481777 | AH115: 0.2148337913 | AI115: 0.2732153908 | AJ115: 0.3315969903 | AK115: 0.06036353375 | AL115: 0.08842951546 | AM115: 0.1169224948
A116: 285 | B116: 1140 | C116: 114000000 | D116: 0.06109205778 | E116: 0.08340405965 | F116: 0.1057160615 | G116: 0.1069038896 | H116: 0.1192480121 | I116: 0.1315921346 | J116: 0.08968675434 | K116: 0.1111708207 | L116: 0.132654887 | M116: 0.2947034162 | N116: 0.3792139547 | O116: 0.4637244932 | P116: 0.1620389729 | Q116: 0.1869680457 | R116: 0.2118971185 | S116: 0.4140994048 | T116: 0.4385891546 | U116: 0.4630789043 | V116: 0.106167587 | W116: 0.1890433054 | X116: 0.2719190239 | Y116: 0.1236006767 | Z116: 0.1484715446 | AA116: 0.1733424125 | AB116: 0.1113157848 | AC116: 0.1335789417 | AD116: 0.1558420987 | AE116: 0.143589016 | AF116: 0.1884495259 | AG116: 0.2333100358 | AH116: 0.2130041677 | AI116: 0.270873648 | AJ116: 0.3287431282 | AK116: 0.05986127071 | AL116: 0.08768224163 | AM116: 0.1159301922
A117: 287.5 | B117: 1150 | C117: 115000000 | D117: 0.06066221272 | E117: 0.08278019718 | F117: 0.1048981816 | G117: 0.1064708785 | H117: 0.1187076608 | I117: 0.1309444431 | J117: 0.08897695231 | K117: 0.1102742007 | L117: 0.1315714491 | M117: 0.2926485506 | N117: 0.3765698261 | O117: 0.4604911017 | P117: 0.161581075 | Q117: 0.1864397019 | R117: 0.2112983288 | S117: 0.4112125828 | T117: 0.4355316065 | U117: 0.4598506302 | V117: 0.1054274022 | W117: 0.1877253233 | X117: 0.2700232444 | Y117: 0.1227382628 | Z117: 0.1474355962 | AA117: 0.1721329295 | AB117: 0.1105397748 | AC117: 0.1326477298 | AD117: 0.1547556848 | AE117: 0.1423839805 | AF117: 0.186864555 | AG117: 0.2313451296 | AH117: 0.2112063637 | AI117: 0.2685726311 | AJ117: 0.3259388984 | AK117: 0.05936774268 | AL117: 0.08694796386 | AM117: 0.114955147
A118: 290 | B118: 1160 | C118: 116000000 | D118: 0.06023977879 | E118: 0.08216709097 | F118: 0.1040944031 | G118: 0.1060453331 | H118: 0.1181766259 | I118: 0.1303079186 | J118: 0.08827938824 | K118: 0.1093930397 | L118: 0.1305066911 | M118: 0.2896194255 | N118: 0.3726720549 | O118: 0.4557246843 | P118: 0.1609023337 | Q118: 0.1856565389 | R118: 0.210410744 | S118: 0.4069570373 | T118: 0.431024389 | U118: 0.4550917407 | V118: 0.1043362764 | W118: 0.1857824514 | X118: 0.2672286264 | Y118: 0.1214669735 | Z118: 0.1459084987 | AA118: 0.1703500238 | AB118: 0.1093958366 | AC118: 0.1312750039 | AD118: 0.1531541712 | AE118: 0.1411823945 | AF118: 0.1852795158 | AG118: 0.2293766371 | AH118: 0.2094395563 | AI118: 0.2663112869 | AJ118: 0.3231830174 | AK118: 0.05888272376 | AL118: 0.08622634606 | AM118: 0.113996913
A119: 292.5 | B119: 1170 | C119: 117000000 | D119: 0.05982456595 | E119: 0.0815644652 | F119: 0.1033043645 | G119: 0.105627062 | H119: 0.1176546685 | I119: 0.129682275 | J119: 0.08759374833 | K119: 0.1085269412 | L119: 0.129460134 | M119: 0.2876346074 | N119: 0.370118061 | O119: 0.4526015146 | P119: 0.1604551584 | Q119: 0.1851405674 | R119: 0.2098259764 | S119: 0.4041686047 | T119: 0.4280710491 | U119: 0.4519734935 | V119: 0.1036213207 | W119: 0.1845093924 | X119: 0.2653974642 | Y119: 0.1206339777 | Z119: 0.1449078879 | AA119: 0.1691817981 | AB119: 0.1086462745 | AC119: 0.1303755294 | AD119: 0.1521047843 | AE119: 0.1400190642 | AF119: 0.1837495813 | AG119: 0.2274800985 | AH119: 0.2077029508 | AI119: 0.2640885981 | AJ119: 0.3204742455 | AK119: 0.05840599576 | AL119: 0.0855170636 | AM119: 0.1130550591
A120: 295 | B120: 1180 | C120: 118000000 | D120: 0.05941639061 | E120: 0.08097205343 | F120: 0.1025277162 | G120: 0.1052158801 | H120: 0.1171415578 | I120: 0.1290672354 | J120: 0.08691972944 | K120: 0.1076755224 | L120: 0.1284313153 | M120: 0.2847078701 | N120: 0.3663520387 | O120: 0.4479962073 | P120: 0.1597922434 | Q120: 0.1843756654 | R120: 0.2089590875 | S120: 0.4000568748 | T120: 0.4237161523 | U120: 0.4473754298 | V120: 0.102567072 | W120: 0.1826321844 | X120: 0.2626972968 | Y120: 0.1194056879 | Z120: 0.1434324422 | AA120: 0.1674591964 | AB120: 0.1075409951 | AC120: 0.1290491941 | AD120: 0.1505573931 | AE120: 0.138876009 | AF120: 0.1822464596 | AG120: 0.2256169103 | AH120: 0.2059957792 | AI120: 0.2619035821 | AJ120: 0.317811385 | AK120: 0.0579373479 | AL120: 0.08481980288 | AM120: 0.1121291687
A121: 297.5 | B121: 1190 | C121: 119000000 | D121: 0.05901507536 | E121: 0.08038959816 | F121: 0.101764121 | G121: 0.1048116089 | H121: 0.1166370708 | I121: 0.1284625326 | J121: 0.08625703858 | K121: 0.1068384131 | L121: 0.1274197876 | M121: 0.2827895779 | N121: 0.363883648 | O121: 0.4449777182 | P121: 0.1593554534 | Q121: 0.183871677 | R121: 0.2083879006 | S121: 0.397361886 | T121: 0.4208617825 | U121: 0.444361679 | V121: 0.1018760771 | W121: 0.1814017903 | X121: 0.2609275035 | Y121: 0.1186006303 | Z121: 0.1424653913 | AA121: 0.1663301522 | AB121: 0.1068165515 | AC121: 0.1281798618 | AD121: 0.1495431721 | AE121: 0.1377341938 | AF121: 0.1807401869 | AG121: 0.2237461799 | AH121: 0.2043172996 | AI121: 0.259755289 | AJ121: 0.3151932784 | AK121: 0.05747657646 | AL121: 0.08413426083 | AM121: 0.1112188396
A122: 300 | B122: 1200 | C122: 120000000 | D122: 0.0586204487 | E122: 0.07981685047 | F122: 0.1010132522 | G122: 0.1044140756 | H122: 0.1161409919 | I122: 0.1278679082 | J122: 0.08560539256 | K122: 0.1060152556 | L122: 0.1264251186 | M122: 0.2799601234 | N122: 0.3602428058 | O122: 0.4405254882 | P122: 0.1587078542 | Q122: 0.1831244471 | R122: 0.2075410401 | S122: 0.3933868024 | T122: 0.4166516133 | U122: 0.4399164242 | V122: 0.1008568671 | W122: 0.1795869726 | X122: 0.258317078 | Y122: 0.1174131946 | Z122: 0.1410390203 | AA122: 0.164664846 | AB122: 0.1057480037 | AC122: 0.1268976045 | AD122: 0.1480472052 | AE122: 0.136629805 | AF122: 0.1792881044 | AG122: 0.2219464039 | AH122: 0.2026667946 | AI122: 0.2576428008 | AJ122: 0.312618807 | AK122: 0.05702348456 | AL122: 0.08346014447 | AM122: 0.1103236826
A123: 302.5 | B123: 1210 | C123: 121000000 | D123: 0.0582323448 | E123: 0.07925356969 | F123: 0.1002747946 | G123: 0.104023113 | H123: 0.1156531127 | I123: 0.1272831123 | J123: 0.08496451755 | K123: 0.105205704 | L123: 0.1254468905 | M123: 0.2781050676 | N123: 0.3578557856 | O123: 0.4376065035 | P123: 0.1583156377 | Q123: 0.1826718897 | R123: 0.2070281416 | S123: 0.3907806378 | T123: 0.4138913207 | U123: 0.4370020036 | V123: 0.1001886483 | W123: 0.178397134 | X123: 0.2566056196 | Y123: 0.1166346928 | Z123: 0.1401038688 | AA123: 0.1635730448 | AB123: 0.1050474369 | AC123: 0.1260569242 | AD123: 0.1470664116 | AE123: 0.1355254264 | AF123: 0.1778311779 | AG123: 0.2201369295 | AH123: 0.2010435707 | AI123: 0.2555652298 | AJ123: 0.3100868888 | AK123: 0.05657788177 | AL123: 0.08279717054 | AM123: 0.1094433216
A124: 305 | B124: 1220 | C124: 122000000 | D124: 0.05785060325 | E124: 0.07869952303 | F124: 0.0995484428 | G124: 0.1036385596 | H124: 0.1151732314 | I124: 0.1267079032 | J124: 0.08433414868 | K124: 0.1044094238 | L124: 0.1244846989 | M124: 0.2753681249 | N124: 0.3543339842 | O124: 0.4332998436 | P124: 0.1577336076 | Q124: 0.1820003164 | R124: 0.2062670253 | S124: 0.3869355002 | T124: 0.4098187825 | U124: 0.4327020648 | V124: 0.09920275881 | W124: 0.1766416471 | X124: 0.2540805353 | Y124: 0.1154861064 | Z124: 0.1387241643 | AA124: 0.1619622223 | AB124: 0.1040138197 | AC124: 0.1248165836 | AD124: 0.1456193476 | AE124: 0.1344578402 | AF124: 0.1764276825 | AG124: 0.2183975247 | AH124: 0.1994469571 | AI124: 0.2535217173 | AJ124: 0.3075964775 | AK124: 0.05613958395 | AL124: 0.08214506503 | AM124: 0.1085773927
A125: 307.5 | B125: 1230 | C125: 123000000 | D125: 0.05747506888 | E125: 0.07815448525 | F125: 0.09883390161 | G125: 0.1032602591 | H125: 0.1147011531 | I125: 0.1261420471 | J125: 0.0837140297 | K125: 0.1036260912 | L125: 0.1235381527 | M125: 0.2735732295 | N125: 0.3520243762 | O125: 0.4304755229 | P125: 0.1573497227 | Q125: 0.1815573723 | R125: 0.2057650219 | S125: 0.3844138398 | T125: 0.4071479916 | U125: 0.4298821434 | V125: 0.09855620832 | W125: 0.1754903913 | X125: 0.2524245744 | Y125: 0.1147328678 | Z125: 0.1378193595 | AA125: 0.1609058512 | AB125: 0.1033359683 | AC125: 0.1240031619 | AD125: 0.1446703556 | AE125: 0.1333890773 | AF125: 0.1750177013 | AG125: 0.2166463253 | AH125: 0.1978763046 | AI125: 0.2515114326 | AJ125: 0.3051465606 | AK125: 0.05570841293 | AL125: 0.08150356287 | AM125: 0.107725544
A126: 310 | B126: 1240 | C126: 124000000 | D126: 0.05710559152 | E126: 0.0776182384 | F126: 0.09813088528 | G126: 0.1028880603 | H126: 0.114236689 | I126: 0.1255853177 | J126: 0.08310391263 | K126: 0.102855393 | L126: 0.1226068733 | M126: 0.2709243344 | N126: 0.3486158715 | O126: 0.4263074086 | P126: 0.1567799929 | Q126: 0.1808999918 | R126: 0.2050199907 | S126: 0.3806923788 | T126: 0.4032064442 | U126: 0.4257205096 | V126: 0.0976020316 | W126: 0.1737913726 | X126: 0.2499807136 | Y126: 0.1136212548 | Z126: 0.1364840682 | AA126: 0.1593468817 | AB126: 0.1023355964 | AC126: 0.1228027157 | AD126: 0.143269835 | AE126: 0.1323565518 | AF126: 0.1736605012 | AG126: 0.2149644506 | AH126: 0.1963309853 | AI126: 0.2495335719 | AJ126: 0.3027361586 | AK126: 0.05528419627 | AL126: 0.08087240751 | AM126: 0.1068874348
A127: 312.5 | B127: 1250 | C127: 125000000 | D127: 0.0567420258 | E127: 0.0770905715 | F127: 0.0974391172 | G127: 0.1025218166 | H127: 0.1137796563 | I127: 0.1250374959 | J127: 0.08250355744 | K127: 0.1020970259 | L127: 0.1216904945 | M127: 0.2691867195 | N127: 0.34637997 | O127: 0.4235732204 | P127: 0.1564041722 | Q127: 0.1804663525 | R127: 0.2045285328 | S127: 0.3782511781 | T127: 0.4006208714 | U127: 0.4229905648 | V127: 0.09697611231 | W127: 0.172676853 | X127: 0.2483775938 | Y127: 0.1128920694 | Z127: 0.1356081565 | AA127: 0.1583242436 | AB127: 0.1016793733 | AC127: 0.122015248 | AD127: 0.1423511226 | AE127: 0.1313216994 | AF127: 0.1722952172 | AG127: 0.213268735 | AH127: 0.194810391 | AI127: 0.247587357 | AJ127: 0.3003643229 | AK127: 0.05486676708 | AL127: 0.08025135064 | AM127: 0.1060627353
A128: 315 | B128: 1260 | C128: 126000000 | D128: 0.05638423096 | E128: 0.07657128027 | F128: 0.09675832958 | G128: 0.1021613863 | H128: 0.113329878 | I128: 0.1244983698 | J128: 0.08191273168 | K128: 0.1013506965 | L128: 0.1207886613 | M128: 0.2666216907 | N128: 0.3430793814 | O128: 0.4195370721 | P128: 0.1558463574 | Q128: 0.1798227201 | R128: 0.2037990827 | S128: 0.3746475213 | T128: 0.3968040951 | U128: 0.418960669 | V128: 0.09605214247 | W128: 0.171031621 | X128: 0.2460110996 | Y128: 0.1118156728 | Z128: 0.1343151679 | AA128: 0.156814663 | AB128: 0.1007106683 | AC128: 0.1208528019 | AD128: 0.1409949356 | AE128: 0.1303226047 | AF128: 0.1709821691 | AG128: 0.2116417334 | AH128: 0.1933139332 | AI128: 0.2456720343 | AJ128: 0.2980301355 | AK128: 0.05445596375 | AL128: 0.07964015181 | AM128: 0.1052511263
A129: 317.5 | B129: 1270 | C129: 127000000 | D129: 0.05603207069 | E129: 0.07606016685 | F129: 0.09608826301 | G129: 0.101806632 | H129: 0.1128871829 | I129: 0.1239677338 | J129: 0.08133121026 | K129: 0.1006161202 | L129: 0.1199010302 | M129: 0.2649386575 | N129: 0.3409137137 | O129: 0.4168887699 | P129: 0.1554783653 | Q129: 0.1793981138 | R129: 0.2033178623 | S129: 0.37228299 | T129: 0.3942997259 | U129: 0.4163164619 | V129: 0.0954458824 | W129: 0.1699521069 | X129: 0.2444583314 | Y129: 0.1111094065 | Z129: 0.1334667871 | AA129: 0.1558241677 | AB129: 0.1000750546 | AC129: 0.1200900655 | AD129: 0.1401050764 | AE129: 0.1293200645 | AF129: 0.1696594748 | AG129: 0.2099988851 | AH129: 0.1918410416 | AI129: 0.2437868743 | AJ129: 0.2957327069 | AK129: 0.05405162977 | AL129: 0.07903857816 | AM129: 0.1044522985
A130: 320 | B130: 1280 | C130: 128000000 | D130: 0.05568541292 | E130: 0.07555703958 | F130: 0.09542866624 | G130: 0.1014574208 | H130: 0.1124514049 | I130: 0.1234453889 | J130: 0.08075877511 | K130: 0.09989302171 | L130: 0.1190272683 | M130: 0.2624535741 | N130: 0.3377159961 | O130: 0.4129784181 | P130: 0.1549320934 | Q130: 0.1787678001 | R130: 0.2026035068 | S130: 0.3687916309 | T130: 0.3906018886 | U130: 0.4124121463 | V130: 0.09455070739 | W130: 0.1683581473 | X130: 0.2421655873 | Y130: 0.110066579 | Z130: 0.1322141223 | AA130: 0.1543616656 | AB130: 0.09913653617 | AC130: 0.1189638434 | AD130: 0.1387911506 | AE130: 0.1283528747 | AF130: 0.1683885723 | AG130: 0.2084242699 | AH130: 0.190391164 | AI130: 0.2419311698 | AJ130: 0.2934711756 | AK130: 0.0536536135 | AL130: 0.0784464041 | AM130: 0.1036659524
A131: 322.5 | B131: 1290 | C131: 129000000 | D131: 0.05534412969 | E131: 0.07506171273 | F131: 0.09477929578 | G131: 0.1011136237 | H131: 0.1120223831 | I131: 0.1229311424 | J131: 0.08019521492 | K131: 0.09918113402 | L131: 0.1181670531 | M131: 0.2608225906 | N131: 0.335617304 | O131: 0.4104120175 | P131: 0.1545716831 | Q131: 0.1783519421 | R131: 0.202132201 | S131: 0.366500213 | T131: 0.3881749567 | U131: 0.4098497005 | V131: 0.09396319468 | W131: 0.167312015 | X131: 0.2406608353 | Y131: 0.109382168 | Z131: 0.1313919945 | AA131: 0.153401821 | AB131: 0.09852057599 | AC131: 0.1182246912 | AD131: 0.1379288064 | AE131: 0.127381147 | AF131: 0.1671064904 | AG131: 0.2068318337 | AH131: 0.1889637651 | AI131: 0.240104236 | AJ131: 0.2912447069 | AK131: 0.05326176803 | AL131: 0.07786341104 | AM131: 0.1028917978
A132: 325 | B132: 1300 | C132: 130000000 | D132: 0.05500809697 | E132: 0.0745740063 | F132: 0.09413991563 | G132: 0.1007751157 | H132: 0.1115999616 | I132: 0.1224248074 | J132: 0.07964032488 | K132: 0.09848019845 | L132: 0.117320072 | M132: 0.2584137725 | N132: 0.3325177219 | O132: 0.4066216714 | P132: 0.154036619 | Q132: 0.1777345603 | R132: 0.2014325017 | S132: 0.363115983 | T132: 0.3845905841 | U132: 0.4060651853 | V132: 0.09309548911 | W132: 0.1657669679 | X132: 0.2384384466 | Y132: 0.1083713633 | Z132: 0.1301777962 | AA132: 0.151984229 | AB132: 0.09761085489 | AC132: 0.1171330259 | AD132: 0.1366551968 | AE132: 0.1264243689 | AF132: 0.1658441327 | AG132: 0.2052638965 | AH132: 0.1875583262 | AI132: 0.2383054088 | AJ132: 0.2890524915 | AK132: 0.05287595095 | AL132: 0.07728938709 | AM132: 0.1021295532
A133: 327.5 | B133: 1310 | C133: 131000000 | D133: 0.05467719452 | E133: 0.07409374576 | F133: 0.093510297 | G133: 0.1004417759 | H133: 0.1111839893 | I133: 0.1219262027 | J133: 0.07909390644 | K133: 0.09778996418 | L133: 0.1164860219 | M133: 0.2568324609 | N133: 0.330482946 | O133: 0.4041334311 | P133: 0.153683565 | Q133: 0.1773271904 | R133: 0.2009708158 | S133: 0.3608943391 | T133: 0.3822375527 | U133: 0.4035807663 | V133: 0.09252586743 | W133: 0.1647526925 | X133: 0.2369795176 | Y133: 0.1077078087 | Z133: 0.1293807214 | AA133: 0.1510536341 | AB133: 0.0970136506 | AC133: 0.1164163807 | AD133: 0.1358191108 | AE133: 0.1255021079 | AF133: 0.1646325267 | AG133: 0.2037629455 | AH133: 0.1861743443 | AI133: 0.2365340447 | AJ133: 0.286893745 | AK133: 0.0524960242 | AL133: 0.07672412687 | AM133: 0.1013789459
A134: 330 | B134: 1320 | C134: 132000000 | D134: 0.05435130575 | E134: 0.0736207619 | F134: 0.09289021806 | G134: 0.1001134866 | H134: 0.1107743196 | I134: 0.1214351527 | J134: 0.07855576706 | K134: 0.097110188 | L134: 0.1156646089 | M134: 0.2544964504 | N134: 0.3274770502 | O134: 0.4004576499 | P134: 0.1531593836 | Q134: 0.1767223657 | R134: 0.2002853478 | S134: 0.357612382 | T134: 0.3787615014 | U134: 0.3999106208 | V134: 0.09168438603 | W134: 0.1632543404 | X134: 0.2348242948 | Y134: 0.1067275741 | Z134: 0.1282032445 | AA134: 0.1496789149 | AB134: 0.09613142141 | AC134: 0.1153577057 | AD134: 0.13458399 | AE134: 0.1245740617 | AF134: 0.1634080379 | AG134: 0.202242014 | AH134: 0.1848113319 | AI134: 0.2347895194 | AJ134: 0.2847677068 | AK134: 0.05212185393 | AL134: 0.0761674312 | AM134: 0.1006397114
A135: 332.5 | B135: 1330 | C135: 133000000 | D135: 0.05403031755 | E135: 0.07315489058 | F135: 0.09227946361 | G135: 0.09979013398 | H135: 0.1103708104 | I135: 0.1209514868 | J135: 0.07802571999 | K135: 0.09644063401 | L135: 0.114855548 | M135: 0.2529625757 | N135: 0.3255033143 | O135: 0.398044053 | P135: 0.1528134808 | Q135: 0.1763232471 | R135: 0.1998330134 | S135: 0.3554573731 | T135: 0.3764790457 | U135: 0.3975007183 | V135: 0.09113185041 | W135: 0.1622704887 | X135: 0.2334091271 | Y135: 0.1060839368 | Z135: 0.1274300948 | AA135: 0.1487762528 | AB135: 0.0955521292 | AC135: 0.114662555 | AD135: 0.1337729809 | AE135: 0.1236802817 | AF135: 0.1622340753 | AG135: 0.2007878689 | AH135: 0.1834688159 | AI135: 0.2330712275 | AJ135: 0.2826736391 | AK135: 0.05175331027 | AL135: 0.0756191069 | AM135: 0.09991159331
A136: 335 | B136: 1340 | C136: 134000000 | D136: 0.05371412023 | E136: 0.07269597256 | F136: 0.0916778249 | G136: 0.09947160752 | H136: 0.1099733236 | I136: 0.1204750398 | J136: 0.07750358408 | K136: 0.09578107336 | L136: 0.1140585626 | M136: 0.2506961211 | N136: 0.3225869205 | O136: 0.3944777199 | P136: 0.152299858 | Q136: 0.1757306054 | R136: 0.1991613528 | S136: 0.3522731219 | T136: 0.3731064786 | U136: 0.3939398353 | V136: 0.09031542207 | W136: 0.1608167464 | X136: 0.2313180708 | Y136: 0.1051329062 | Z136: 0.1262876982 | AA136: 0.1474424903 | AB136: 0.09469616427 | AC136: 0.1136353971 | AD136: 0.13257463 | AE136: 0.1227796826 | AF136: 0.1610457613 | AG136: 0.19931184 | AH136: 0.1821463375 | AI136: 0.2313785818 | AJ136: 0.2806108262 | AK136: 0.05139026727 | AL136: 0.07507896654 | AM136: 0.09919434262
A137: 337.5 | B137: 1350 | C137: 135000000 | D137: 0.05340260731 | E137: 0.07224385333 | F137: 0.09108509935 | G137: 0.09915779997 | H137: 0.1095817256 | I137: 0.1200056512 | J137: 0.07698918351 | K137: 0.09513128398 | L137: 0.1132733845 | M137: 0.2492075803 | N137: 0.3206715187 | O137: 0.3921354572 | P137: 0.1519608958 | Q137: 0.1753394951 | R137: 0.1987180945 | S137: 0.3501817943 | T137: 0.3708914703 | U137: 0.3916011463 | V137: 0.08977921513 | W137: 0.1598619698 | X137: 0.2299447245 | Y137: 0.1045083027 | Z137: 0.1255374123 | AA137: 0.146566522 | AB137: 0.09413399021 | AC137: 0.1129607882 | AD137: 0.1317875863 | AE137: 0.1219131631 | AF137: 0.1599078396 | AG137: 0.197902516 | AH137: 0.1808434513 | AI137: 0.2297110124 | AJ137: 0.2785785734 | AK137: 0.05103260268 | AL137: 0.07454682826 | AM137: 0.09848771786
A138: 340 | B138: 1360 | C138: 136000000 | D138: 0.05309567547 | E138: 0.07179838291 | F138: 0.09050109036 | G138: 0.09884860722 | H138: 0.1091958863 | I138: 0.1195431655 | J138: 0.07648234764 | K138: 0.09449105032 | L138: 0.112499753 | M138: 0.2470076205 | N138: 0.3178406881 | O138: 0.3886737558 | P138: 0.1514967463 | Q138: 0.1748039381 | R138: 0.1981111298 | S138: 0.34709095 | T138: 0.3676178341 | U138: 0.3881447183 | V138: 0.08898673741 | W138: 0.1584508743 | X138: 0.2279150111 | Y138: 0.1035851901 | Z138: 0.1244285515 | AA138: 0.1452719129 | AB138: 0.09330313392 | AC138: 0.1119637607 | AD138: 0.1306243875 | AE138: 0.1210388016 | AF138: 0.1587541055 | AG138: 0.1964694093 | AH138: 0.1795597252 | AI138: 0.228067966 | AJ138: 0.2765762068 | AK138: 0.05068019786 | AL138: 0.07402251554 | AM138: 0.09779148464
A139: 342.5 | B139: 1370 | C139: 137000000 | D139: 0.05279322438 | E139: 0.07135941571 | F139: 0.08992560704 | G139: 0.09854392823 | H139: 0.1088156798 | I139: 0.1190874313 | J139: 0.07598291084 | K139: 0.09386016313 | L139: 0.1117374154 | M139: 0.2455624331 | N139: 0.315981072 | O139: 0.3863997109 | P139: 0.1511954091 | Q139: 0.1744562412 | R139: 0.1977170734 | S139: 0.3450605221 | T139: 0.3654673271 | U139: 0.3858741322 | V139: 0.08846614588 | W139: 0.1575239026 | X139: 0.2265816593 | Y139: 0.1029787884 | Z139: 0.12370013 | AA139: 0.1444214716 | AB139: 0.09275733028 | AC139: 0.1113087963 | AD139: 0.1298602624 | AE139: 0.1201772045 | AF139: 0.1576172142 | AG139: 0.1950572238 | AH139: 0.1782947397 | AI139: 0.2264489057 | AJ139: 0.2746030717 | AK139: 0.05033293764 | AL139: 0.07350585702 | AM139: 0.09710541541
A140: 345 | B140: 1380 | C140: 138000000 | D140: 0.05249515664 | E140: 0.07092681035 | F140: 0.08935846406 | G140: 0.09824366487 | H140: 0.1084409834 | I140: 0.118638302 | J140: 0.07549071225 | K140: 0.09323841923 | L140: 0.1109861262 | M140: 0.2434260842 | N140: 0.3132320936 | O140: 0.3830381031 | P140: 0.1507475746 | Q140: 0.1739395092 | R140: 0.1971314437 | S140: 0.3420590341 | T140: 0.3622883318 | U140: 0.3825176295 | V140: 0.08769658012 | W140: 0.1561536044 | X140: 0.2246106287 | Y140: 0.1020823824 | Z140: 0.1226233496 | AA140: 0.1431643167 | AB140: 0.09195049381 | AC140: 0.1103405926 | AD140: 0.1287306913 | AE140: 0.1193491324 | AF140: 0.1565300624 | AG140: 0.1937109924 | AH140: 0.1770480873 | AI140: 0.22485331 | AJ140: 0.2726585328 | AK140: 0.04999071018 | AL140: 0.0729966863 | AM140: 0.09642928921
A141: 347.5 | B141: 1390 | C141: 139000000 | D141: 0.05220137764 | E141: 0.07050042953 | F141: 0.08879948142 | G141: 0.09794772185 | H141: 0.1080716784 | I141: 0.1181956349 | J141: 0.07500559564 | K141: 0.09262562128 | L141: 0.1102456469 | M141: 0.2420223835 | N141: 0.3114258611 | O141: 0.3808293387 | P141: 0.1504517642 | Q141: 0.1735981895 | R141: 0.1967446148 | S141: 0.340086884 | T141: 0.3601995492 | U141: 0.3803122143 | V141: 0.08719093166 | W141: 0.1552532406 | X141: 0.2233155495 | Y141: 0.1014933983 | Z141: 0.1219158504 | AA141: 0.1423383025 | AB141: 0.09142035582 | AC141: 0.109704427 | AD141: 0.1279884982 | AE141: 0.1185120883 | AF141: 0.1554255295 | AG141: 0.1923389708 | AH141: 0.1758193723 | AI141: 0.2232806726 | AJ141: 0.2707419729 | AK141: 0.04965340685 | AL141: 0.07249484179 | AM141: 0.09576289144
A142: 350 | B142: 1400 | C142: 140000000 | D142: 0.05191179549 | E142: 0.07008013986 | F142: 0.08824848424 | G142: 0.09765600657 | H142: 0.1077076491 | I142: 0.1177592917 | J142: 0.07452740927 | K142: 0.09202157759 | L142: 0.1095157459 | M142: 0.2399469259 | N142: 0.3087552355 | O142: 0.3775635451 | P142: 0.150012087 | Q142: 0.1730908696 | R142: 0.1961696522 | S142: 0.3371709326 | T142: 0.357111149 | U142: 0.3770513655 | V142: 0.08644329839 | W142: 0.1539219956 | X142: 0.2214006928 | Y142: 0.1006225564 | Z142: 0.1208697781 | AA142: 0.1411169998 | AB142: 0.09063651243 | AC142: 0.1087638149 | AD142: 0.1268911174 | AE142: 0.1177085219 | AF142: 0.1543708006 | AG142: 0.1910330794 | AH142: 0.1746082104 | AI142: 0.2217305014 | AJ142: 0.2688527924 | AK142: 0.04932092214 | AL142: 0.07200016648 | AM142: 0.09510601365
A143: 352.5 | B143: 1410 | C143: 141000000 | D143: 0.05162632088 | E143: 0.06966581175 | F143: 0.08770530262 | G143: 0.09736842909 | H143: 0.1073487834 | I143: 0.1173291377 | J143: 0.07405600569 | K143: 0.09142610189 | L143: 0.1087961981 | M143: 0.2390879387 | N143: 0.3076499211 | O143: 0.3762119036 | P143: 0.1497216347 | Q143: 0.1727557324 | R143: 0.19578983 | S143: 0.3352545868 | T143: 0.355081471 | U143: 0.3749083551 | V143: 0.08595195874 | W143: 0.1530471102 | X143: 0.2201422617 | Y143: 0.1000502501 | Z143: 0.1201823127 | AA143: 0.1403143752 | AB143: 0.09012137518 | AC143: 0.1081456502 | AD143: 0.1261699253 | AE143: 0.1168949863 | AF143: 0.1532972489 | AG143: 0.1896995114 | AH143: 0.1734142281 | AI143: 0.2202023184 | AJ143: 0.2669904088 | AK143: 0.04899315353 | AL143: 0.07151250784 | AM143: 0.09445845327
A144: 355 | B144: 1420 | C144: 142000000 | D144: 0.05134486705 | E144: 0.06925731925 | F144: 0.08716977145 | G144: 0.097084902 | H144: 0.1069949721 | I144: 0.1169050423 | J144: 0.07359124158 | K144: 0.09083901316 | L144: 0.1080867847 | M144: 0.2378143408 | N144: 0.3060111003 | O144: 0.3742078598 | P144: 0.1492898943 | Q144: 0.1722575703 | R144: 0.1952252464 | S144: 0.332420567 | T144: 0.3520798478 | U144: 0.3717391287 | V144: 0.08522533353 | W144: 0.1517532725 | X144: 0.2182812114 | Y144: 0.0992038941 | Z144: 0.1191656533 | AA144: 0.1391274125 | AB144: 0.08935955579 | AC144: 0.1072314669 | AD144: 0.1251033781 | AE144: 0.1160929089 | AF144: 0.1522388175 | AG144: 0.1883847261 | AH144: 0.1722370624 | AI144: 0.2186956592 | AJ144: 0.265154256 | AK144: 0.04867000137 | AL144: 0.07103171763 | AM144: 0.09382001345
A145: 357.5 | B145: 1430 | C145: 143000000 | D145: 0.05106734963 | E145: 0.06885453992 | F145: 0.08664173022 | G145: 0.09680534031 | H145: 0.1066461093 | I145: 0.1164868782 | J145: 0.07313297768 | K145: 0.09026013547 | L145: 0.1073872933 | M145: 0.2369750405 | N145: 0.3049311183 | O145: 0.3728871961 | P145: 0.1490046518 | Q145: 0.1719284444 | R145: 0.194852237 | S145: 0.33055769 | T145: 0.3501068007 | U145: 0.3696559114 | V145: 0.08474770379 | W145: 0.1509027991 | X145: 0.2170578944 | Y145: 0.09864756722 | Z145: 0.1184973826 | AA145: 0.1383471979 | AB145: 0.08885879149 | AC145: 0.1066305498 | AD145: 0.1244023081 | AE145: 0.1153239283 | AF145: 0.1512297817 | AG145: 0.1871356351 | AH145: 0.1710763606 | AI145: 0.2172100721 | AJ145: 0.2633437836 | AK145: 0.04835136883 | AL145: 0.07055765177 | AM145: 0.09319050287
A146: 360 | B146: 1440 | C146: 144000000 | D146: 0.05079368662 | E146: 0.06845735476 | F146: 0.0861210229 | G146: 0.09652966141 | H146: 0.1063020917 | I146: 0.116074522 | J146: 0.07268107854 | K146: 0.08968929773 | L146: 0.1066975169 | M146: 0.2357305198 | N146: 0.303329713 | O146: 0.3709289062 | P146: 0.1485806313 | Q146: 0.17143919 | R146: 0.1942977486 | S146: 0.3278021965 | T146: 0.3471883479 | U146: 0.3665744993 | V146: 0.08404121346 | W146: 0.1496448138 | X146: 0.2152484141 | Y146: 0.09782467868 | Z146: 0.1175089128 | AA146: 0.1371931469 | AB146: 0.08811808075 | AC146: 0.1057416969 | AD146: 0.123365313 | AE146: 0.114543901 | AF146: 0.1502004082 | AG146: 0.1858569154 | AH146: 0.1699317797 | AI146: 0.2157451182 | AJ146: 0.2615584567 | AK146: 0.04803716174 | AL146: 0.07009017015 | AM146: 0.09256973549
A147: 362.5 | B147: 1450 | C147: 145000000 | D147: 0.05052379827 | E147: 0.06806564801 | F147: 0.08560749775 | G147: 0.09625778498 | H147: 0.1059628192 | I147: 0.1156678534 | J147: 0.07223541249 | K147: 0.08912633362 | L147: 0.1060172548 | M147: 0.2349103109 | N147: 0.3022742971 | O147: 0.3696382834 | P147: 0.148300474 | Q147: 0.1711159315 | R147: 0.1939313891 | S147: 0.3259905814 | T147: 0.3452695943 | U147: 0.3645486072 | V147: 0.08357672771 | W147: 0.1488177448 | X147: 0.2140587618 | Y147: 0.09728367113 | Z147: 0.116859044 | AA147: 0.1364344168 | AB147: 0.08763109615 | AC147: 0.1051573154 | AD147: 0.1226835346 | AE147: 0.1137746327 | AF147: 0.149185233 | AG147: 0.1845958332 | AH147: 0.1688029861 | AI147: 0.2143003705 | AJ147: 0.2597977549 | AK147: 0.04772728854 | AL147: 0.06962913655 | AM147: 0.09195753042
A148: 365 | B148: 1460 | C148: 146000000 | D148: 0.05025760702 | E148: 0.06767930711 | F148: 0.08510100719 | G148: 0.09598963288 | H148: 0.1056281943 | I148: 0.1152667556 | J148: 0.07179585146 | K148: 0.08857108135 | L148: 0.1053463112 | M148: 0.2336939721 | N148: 0.3007091553 | O148: 0.3677243385 | P148: 0.1478839674 | Q148: 0.170635347 | R148: 0.1933867267 | S148: 0.3233103951 | T148: 0.3424309023 | U148: 0.3615514095 | V148: 0.08288954678 | W148: 0.147594142 | X148: 0.2122987372 | Y148: 0.09648328741 | Z148: 0.1158976074 | AA148: 0.1353119275 | AB148: 0.08691062873 | AC148: 0.1042927545 | AD148: 0.1216748802 | AE148: 0.113038172 | AF148: 0.1482191744 | AG148: 0.1834001768 | AH148: 0.1676896554 | AI148: 0.2128754139 | AJ148: 0.2580611724 | AK148: 0.04742166017 | AL148: 0.06917441848 | AM148: 0.09135371172
A149: 367.5 | B149: 1470 | C149: 147000000 | D149: 0.04999503742 | E149: 0.06729822254 | F149: 0.08460140766 | G149: 0.0957251291 | H149: 0.105298122 | I149: 0.114871115 | J149: 0.07136227084 | K149: 0.08802338352 | L149: 0.1046844962 | M149: 0.2328922789 | N149: 0.2996775648 | O149: 0.3664628506 | P149: 0.1476087453 | Q149: 0.170317783 | R149: 0.1930268208 | S149: 0.3215479547 | T149: 0.3405642316 | U149: 0.3595805085 | V149: 0.08243766984 | W149: 0.1467895244 | X149: 0.2111413789 | Y149: 0.09595697503 | Z149: 0.1152653907 | AA149: 0.1345738064 | AB149: 0.08643686278 | AC149: 0.1037242353 | AD149: 0.1210116079 | AE149: 0.1122896131 | AF149: 0.1472312889 | AG149: 0.1821729647 | AH149: 0.166591472 | AI149: 0.2114698444 | AJ149: 0.2563482168 | AK149: 0.04712019002 | AL149: 0.06872588705 | AM149: 0.09075810823
A150: 370 | B150: 1480 | C150: 148000000 | D150: 0.04973601607 | E150: 0.06692228777 | F150: 0.08410855948 | G150: 0.0954641997 | H150: 0.1049725102 | I150: 0.1144808208 | J150: 0.07093454942 | K150: 0.08748308701 | L150: 0.1040316246 | M150: 0.2317200675 | N150: 0.2981692045 | O150: 0.3646183415 | P150: 0.147199557 | Q150: 0.1698456427 | R150: 0.1924917284 | S150: 0.31894003 | T150: 0.3378020747 | U150: 0.3566641195 | V150: 0.08176901736 | W150: 0.1455989136 | X150: 0.2094288098 | Y150: 0.09517818538 | Z150: 0.1143298934 | AA150: 0.1334816014 | AB150: 0.08573582001 | AC150: 0.102882984 | AD150: 0.120030148 | AE150: 0.1115740172 | AF150: 0.1462928769 | AG150: 0.1810117365 | AH150: 0.165508129 | AI150: 0.2100832692 | AJ150: 0.2546584093 | AK150: 0.04682279379 | AL150: 0.06828341686 | AM150: 0.09017055345
A151: 372.5 | B151: 1490 | C151: 149000000 | D151: 0.0494804715 | E151: 0.0665513991 | F151: 0.0836223267 | G151: 0.09520677269 | H151: 0.1046512691 | I151: 0.1140957654 | J151: 0.07051256922 | K151: 0.0869500428 | L151: 0.1033875164 | M151: 0.2309571592 | N151: 0.2971875211 | O151: 0.3634178829 | P151: 0.1469291589 | Q151: 0.1695336448 | R151: 0.1921381308 | S151: 0.3172247889 | T151: 0.3359853947 | U151: 0.3547460005 | V151: 0.08132924269 | W151: 0.1448158454 | X151: 0.2083024481 | Y151: 0.09466597746 | Z151: 0.1137146193 | AA151: 0.1327632611 | AB151: 0.08527474172 | AC151: 0.1023296901 | AD151: 0.1193846384 | AE151: 0.1108453325 | AF151: 0.1453311797 | AG151: 0.1798170269 | AH151: 0.1644393275 | AI151: 0.2087153056 | AJ151: 0.2529912838 | AK151: 0.04652938945 | AL151: 0.06784688586 | AM151: 0.08959088531
A152: 375 | B152: 1500 | C152: 150000000 | D152: 0.0492283342 | E152: 0.06618545562 | F152: 0.08314257703 | G152: 0.09495277804 | H152: 0.1043343111 | I152: 0.1137158442 | J152: 0.07009621542 | K152: 0.08642410585 | L152: 0.1027519963 | M152: 0.2298251314 | N152: 0.2957308676 | O152: 0.3616366038 | P152: 0.1465271026 | Q152: 0.1690697338 | R152: 0.191612365 | S152: 0.3146862423 | T152: 0.333296719 | U152: 0.3519071957 | V152: 0.08067837927 | W152: 0.14365691 | X152: 0.2066354408 | Y152: 0.09390791962 | Z152: 0.1128040254 | AA152: 0.1317001312 | AB152: 0.0845923485 | AC152: 0.1015108182 | AD152: 0.1184292879 | AE152: 0.1101263636 | AF152: 0.1443823052 | AG152: 0.1786382467 | AH152: 0.1633847767 | AI152: 0.2073655816 | AJ152: 0.2513463866 | AK152: 0.04623989717 | AL152: 0.06741617528 | AM152: 0.08901894607
A153: 377.5 | B153: 1510 | C153: 151000000 | D153: 0.04897953646 | E153: 0.06582435906 | F153: 0.08266918166 | G153: 0.09470214756 | H153: 0.1040215513 | I153: 0.113340955 | J153: 0.06968537624 | K153: 0.08590513494 | L153: 0.1021248936 | M153: 0.2290785383 | N153: 0.2947701779 | O153: 0.3604618176 | P153: 0.1462613993 | Q153: 0.1687631531 | R153: 0.1912649068 | S153: 0.3130163296 | T153: 0.331528048 | U153: 0.3500397664 | V153: 0.0802502271 | W153: 0.142894537 | X153: 0.205538847 | Y153: 0.09340925669 | Z153: 0.1122050218 | AA153: 0.1310007868 | AB153: 0.08414345494 | AC153: 0.1009721459 | AD153: 0.1178008369 | AE153: 0.1094402251 | AF153: 0.1434828497 | AG153: 0.1775254742 | AH153: 0.1623441934 | AI153: 0.2060337348 | AJ153: 0.2497232761 | AK153: 0.04595423923 | AL153: 0.06699116947 | AM153: 0.08845458219
A154: 380 | B154: 1520 | C154: 152000000 | D154: 0.04873401238 | E154: 0.06546801378 | F154: 0.08220201518 | G154: 0.09445481484 | H154: 0.1037129067 | I154: 0.1129709985 | J154: 0.06927994283 | K154: 0.0853929926 | L154: 0.1015060424 | M154: 0.2279706333 | N154: 0.2933445649 | O154: 0.3587184965 | P154: 0.1458662979 | Q154: 0.1683072669 | R154: 0.1907482358 | S154: 0.3105444289 | T154: 0.3289099597 | U154: 0.3472754904 | V154: 0.07961645216 | W154: 0.1417660296 | X154: 0.2039156071 | Y154: 0.0926711137 | Z154: 0.11131835 | AA154: 0.1299655863 | AB154: 0.08347897684 | AC154: 0.1001747722 | AD154: 0.1168705676 | AE154: 0.1087399605 | AF154: 0.1425586204 | AG154: 0.1763772803 | AH154: 0.1613173021 | AI154: 0.2047194122 | AJ154: 0.2481215224 | AK154: 0.04567233994 | AL154: 0.06657175585 | AM154: 0.08789764415
A155: 382.5 | B155: 1530 | C155: 153000000 | D155: 0.04849169777 | E155: 0.06511632661 | F155: 0.08174095545 | G155: 0.09421071522 | H155: 0.1034082967 | I155: 0.1126058781 | J155: 0.06887980921 | K155: 0.08488754492 | L155: 0.1008952806 | M155: 0.2272398977 | N155: 0.2924042801 | O155: 0.3575686626 | P155: 0.1456051742 | Q155: 0.1680059702 | R155: 0.1904067662 | S155: 0.3089180712 | T155: 0.3271874195 | U155: 0.3454567678 | V155: 0.07919946777 | W155: 0.1410235421 | X155: 0.2028476164 | Y155: 0.0921854655 | Z155: 0.1107349799 | AA155: 0.1292844943 | AB155: 0.08304179131 | AC155: 0.09965014957 | AD155: 0.1162585078 | AE155: 0.1080488496 | AF155: 0.1416464725 | AG155: 0.1752440955 | AH155: 0.1603038341 | AI155: 0.2034222703 | AJ155: 0.2465407066 | AK155: 0.04539412561 | AL155: 0.06615782476 | AM155: 0.08734798634
A156: 385 | B156: 1540 | C156: 154000000 | D156: 0.0482525301 | E156: 0.0647692068 | F156: 0.08128588351 | G156: 0.09396978572 | H156: 0.1031076426 | I156: 0.1122454995 | J156: 0.06848487212 | K156: 0.0843886615 | L156: 0.1002924509 | M156: 0.2261554254 | N156: 0.2910088195 | O156: 0.3558622135 | P156: 0.1452168588 | Q156: 0.167557914 | R156: 0.1898989692 | S156: 0.3065102261 | T156: 0.3246371749 | U156: 0.3427641238 | V156: 0.07858211706 | W156: 0.1399242799 | X156: 0.2012664427 | Y156: 0.09146646277 | Z156: 0.1098712998 | AA156: 0.1282761368 | AB156: 0.08239453199 | AC156: 0.09887343839 | AD156: 0.1153523448 | AE156: 0.10739052 | AF156: 0.1407838096 | AG156: 0.1741770993 | AH156: 0.1593035281 | AI156: 0.2021419745 | AJ156: 0.2449804208 | AK156: 0.04511952446 | AL156: 0.06574926939 | AM156: 0.08680546695
A157: 387.5 | B157: 1550 | C157: 155000000 | D157: 0.04801644846 | E157: 0.06442656596 | F157: 0.08083668346 | G157: 0.09373196499 | H157: 0.102810868 | I157: 0.1118897709 | J157: 0.068095031 | K157: 0.08389621528 | L157: 0.09969739957 | M157: 0.2254400966 | N157: 0.2900883596 | O157: 0.3547366226 | P157: 0.1449782986 | Q157: 0.1672826522 | R157: 0.1895870058 | S157: 0.3049257413 | T157: 0.3229589841 | U157: 0.3409922268 | V157: 0.07817586913 | W157: 0.1392009098 | X157: 0.2002259505 | Y157: 0.09099332636 | Z157: 0.1093029591 | AA157: 0.1276125918 | AB157: 0.08196860234 | AC157: 0.09836232281 | AD157: 0.1147560433 | AE157: 0.1067170327 | AF157: 0.1398948818 | AG157: 0.1730727309 | AH157: 0.1583161292 | AI157: 0.2008781985 | AJ157: 0.2434402678 | AK157: 0.04484846654 | AL157: 0.06534598571 | AM157: 0.08626994781
A158: 390 | B158: 1560 | C158: 156000000 | D158: 0.04778339351 | E158: 0.06408831795 | F158: 0.08039324239 | G158: 0.09349719323 | H158: 0.1025178981 | I158: 0.111538603 | J158: 0.06771018783 | K158: 0.08341008247 | L158: 0.09910997712 | M158: 0.2243900217 | N158: 0.2887371603 | O158: 0.3530842989 | P158: 0.1446383218 | Q158: 0.1668903713 | R158: 0.1891424208 | S158: 0.3025794937 | T158: 0.3204739798 | U158: 0.338368466 | V158: 0.07757431236 | W158: 0.1381297705 | X158: 0.1986852286 | Y158: 0.09029272896 | Z158: 0.1084613878 | AA158: 0.1266300467 | AB158: 0.08133790107 | AC158: 0.09760548129 | AD158: 0.1138730615 | AE158: 0.10605218 | AF158: 0.1390173505 | AG158: 0.1719825211 | AH158: 0.1573413893 | AI158: 0.1996306248 | AJ158: 0.2419198604 | AK158: 0.04458088373 | AL158: 0.06494787233 | AM158: 0.0857412943
A159: 392.5 | B159: 1570 | C159: 157000000 | D159: 0.04755330741 | E159: 0.06375437883 | F159: 0.07995545024 | G159: 0.0932654122 | H159: 0.1022286604 | I159: 0.1111919085 | J159: 0.06733024713 | K159: 0.08293014244 | L159: 0.09853003775 | M159: 0.2237102501 | N159: 0.2878624542 | O159: 0.3520146583 | P159: 0.144413456 | Q159: 0.1666309108 | R159: 0.1888483656 | S159: 0.3010352853 | T159: 0.3188384473 | U159: 0.3366416093 | V159: 0.07717839151 | W159: 0.137424789 | X159: 0.1976711864 | Y159: 0.08983162698 | Z159: 0.1079075031 | AA159: 0.1259833793 | AB159: 0.08092279814 | AC159: 0.09710735776 | AD159: 0.1132919174 | AE159: 0.1053957967 | AF159: 0.138150998 | AG159: 0.1709061993 | AH159: 0.1563790665 | AI159: 0.1983989438 | AJ159: 0.2404188212 | AK159: 0.04431670961 | AL159: 0.06455483046 | AM159: 0.08521937523
A160: 395 | B160: 1580 | C160: 158000000 | D160: 0.04732613379 | E160: 0.06342466679 | F160: 0.07952319978 | G160: 0.0930365651 | H160: 0.1019430838 | I160: 0.1108496026 | J160: 0.06695511579 | K160: 0.08245627759 | L160: 0.09795743939 | M160: 0.2227008341 | N160: 0.2865635733 | O160: 0.3504263125 | P160: 0.144078795 | Q160: 0.1662447635 | R160: 0.1884107319 | S160: 0.2987483013 | T160: 0.3164162116 | U160: 0.3340841219 | V160: 0.07659203024 | W160: 0.1363807069 | X160: 0.1961693836 | Y160: 0.08914873712 | Z160: 0.1070872025 | AA160: 0.1250256679 | AB160: 0.08030802757 | AC160: 0.09636963309 | AD160: 0.1124312386 | AE160: 0.1047719124 | AF160: 0.137333859 | AG160: 0.1698958055 | AH160: 0.155428925 | AI160: 0.1971828537 | AJ160: 0.2389367825 | AK160: 0.04405587947 | AL160: 0.0641667638 | AM160: 0.08470406272
A161: 397.5 | B161: 1590 | C161: 159000000 | D161: 0.04710181771 | E161: 0.06309910206 | F161: 0.07909638642 | G161: 0.09281059657 | H161: 0.1016610995 | I161: 0.1105116024 | J161: 0.06658470309 | K161: 0.08198837331 | L161: 0.09739204352 | M161: 0.2220346233 | N161: 0.2857063168 | O161: 0.3493780102 | P161: 0.1438574301 | Q161: 0.1659893425 | R161: 0.1881212548 | S161: 0.2972428529 | T161: 0.3148217313 | U161: 0.3324006097 | V161: 0.07620604764 | W161: 0.1356934216 | X161: 0.1951807955 | Y161: 0.08869921618 | Z161: 0.1065472292 | AA161: 0.1243952422 | AB161: 0.07990334373 | AC161: 0.09588401248 | AD161: 0.1118646812 | AE161: 0.1041318375 | AF161: 0.1364889919 | AG161: 0.1688461463 | AH161: 0.1544907349 | AI161: 0.1959820603 | AJ161: 0.2374733858 | AK161: 0.04379833022 | AL161: 0.06378357848 | AM161: 0.08419523214
A162: 400 | B162: 1600 | C162: 160000000 | D162: 0.04688030557 | E162: 0.0627776069 | F162: 0.07867490823 | G162: 0.09258745265 | H162: 0.1013826399 | I162: 0.1101778272 | J162: 0.06621892055 | K162: 0.08152631782 | L162: 0.0968337151 | M162: 0.2210452804 | N162: 0.2844332652 | O162: 0.34782125 | P162: 0.14352795 | Q162: 0.1656091731 | R162: 0.1876903961 | S162: 0.2950129152 | T162: 0.3124599156 | U162: 0.3299069159 | V162: 0.0756343133 | W162: 0.1346753844 | X162: 0.1937164555 | Y162: 0.08803337092 | Z162: 0.1057474029 | AA162: 0.1234614348 | AB162: 0.07930390782 | AC162: 0.09516468939 | AD162: 0.111025471 | AE162: 0.1034997635 | AF162: 0.1356546857 | AG162: 0.1678096079 | AH162: 0.1535642722 | AI162: 0.1947962768 | AJ162: 0.2360282815 | AK162: 0.04354400033 | AL162: 0.06340518298 | AM162: 0.08369276194
A163: 402.5 | B163: 1610 | C163: 161000000 | D163: 0.04666154514 | E163: 0.06246010547 | F163: 0.0782586658 | G163: 0.0923670807 | H163: 0.1011076395 | I163: 0.1098481982 | J163: 0.06585768188 | K163: 0.08107000215 | L163: 0.09628232243 | M163: 0.2203922723 | N163: 0.2835929975 | O163: 0.3467937226 | P163: 0.143309993 | Q163: 0.1653576842 | R163: 0.1874053755 | S163: 0.2935447856 | T163: 0.310904961 | U163: 0.3282651365 | V163: 0.07525789939 | W163: 0.1340051372 | X163: 0.192752375 | Y163: 0.08785695685 | Z163: 0.1055354908 | AA163: 0.1232140248 | AB163: 0.07890925566 | AC163: 0.09469110679 | AD163: 0.1104729579 | AE163: 0.1029003133 | AF163: 0.1348699099 | AG163: 0.1668395065 | AH163: 0.1526493184 | AI163: 0.1936252236 | AJ163: 0.2346011288 | AK163: 0.04329282981 | AL163: 0.06303148805 | AM163: 0.08319653361
A164: 405 | B164: 1620 | C164: 162000000 | D164: 0.04644548546 | E164: 0.06214652381 | F164: 0.07784756216 | G164: 0.09214942938 | H164: 0.1008360341 | I164: 0.1095226388 | J164: 0.06550090295 | K164: 0.08061932001 | L164: 0.09573773707 | M164: 0.2194224584 | N164: 0.2823450751 | O164: 0.3452676918 | P164: 0.1429855691 | Q164: 0.1649833489 | R164: 0.1869811288 | S164: 0.2913697861 | T164: 0.3086013326 | U164: 0.3258328791 | V164: 0.07470025142 | W164: 0.1330121824 | X164: 0.1913241133 | Y164: 0.08759452235 | Z164: 0.1052202494 | AA164: 0.1228459765 | AB164: 0.07832458772 | AC164: 0.09398950527 | AD164: 0.1096544228 | AE164: 0.1022836447 | AF164: 0.1340558981 | AG164: 0.1658281515 | AH164: 0.1517456603 | AI164: 0.1924686278 | AJ164: 0.2331915954 | AK164: 0.04304476017 | AL164: 0.06266240663 | AM164: 0.08270643155
A165: 407.5 | B165: 1630 | C165: 163000000 | D165: 0.04623207681 | E165: 0.06183678977 | F165: 0.07744150273 | G165: 0.09193444863 | H165: 0.1005677613 | I165: 0.1092010739 | J165: 0.06514850167 | K165: 0.08017416771 | L165: 0.09519983375 | M165: 0.2187822974 | N165: 0.2815213386 | O165: 0.3442603798 | P165: 0.1427709428 | Q165: 0.1647357032 | R165: 0.1867004637 | S165: 0.2899376045 | T165: 0.3070844521 | U165: 0.3242312997 | V165: 0.07433305473 | W165: 0.1323583474 | X165: 0.1903836402 | Y165: 0.08742100212 | Z165: 0.1050118135 | AA165: 0.1226026249 | AB165: 0.0779395988 | AC165: 0.09352751856 | AD165: 0.1091154383 | AE165: 0.1016745425 | AF165: 0.1332518742 | AG165: 0.1648292058 | AH165: 0.15085309 | AI165: 0.1913262234 | AJ165: 0.2317993568 | AK165: 0.04279973432 | AL165: 0.06229785382 | AM165: 0.08222234301
A166: 410 | B166: 1640 | C166: 164000000 | D166: 0.04602127071 | E166: 0.06153083298 | F166: 0.07704039525 | G166: 0.0917220896 | H166: 0.1003027601 | I166: 0.1088834306 | J166: 0.06480039797 | K166: 0.07973444409 | L166: 0.09466849022 | M166: 0.217831507 | N166: 0.280297895 | O166: 0.3427642831 | P166: 0.1424514524 | Q166: 0.1643670605 | R166: 0.1862826686 | S166: 0.2878155377 | T166: 0.3048368867 | U166: 0.3218582357 | V166: 0.07378897888 | W166: 0.1313895593 | X166: 0.1889901398 | Y166: 0.08716284564 | Z166: 0.1047017109 | AA166: 0.1222405762 | AB166: 0.07736915974 | AC166: 0.09284299168 | AD166: 0.1083168236 | AE166: 0.1010728685 | AF166: 0.1324576554 | AG166: 0.1638424424 | AH166: 0.1499714047 | AI166: 0.1901977507 | AJ166: 0.2304240967 | AK166: 0.0425576966 | AL166: 0.06193774678 | AM166: 0.08174415799
A167: 412.5 | B167: 1650 | C167: 165000000 | D167: 0.04581301984 | E167: 0.06122858476 | F167: 0.07664414968 | G167: 0.09151230461 | H167: 0.100040971 | I167: 0.1085696375 | J167: 0.06445651371 | K167: 0.07930005046 | L167: 0.09414358721 | M167: 0.2172062747 | N167: 0.2794933682 | O167: 0.3417804617 | P167: 0.1422400719 | Q167: 0.1641231599 | R167: 0.1860062478 | S167: 0.2864179999 | T167: 0.3033566988 | U167: 0.3202953978 | V167: 0.07343066496 | W167: 0.1307515412 | X167: 0.1880724174 | Y167: 0.08699214578 | Z167: 0.1044966629 | AA167: 0.1220011801 | AB167: 0.07699348343 | AC167: 0.09239218012 | AD167: 0.1077908768 | AE167: 0.1005037331 | AF167: 0.1317129789 | AG167: 0.1629222248 | AH167: 0.1491004065 | AI167: 0.1890829565 | AJ167: 0.2290655065 | AK167: 0.04231859267 | AL167: 0.06158200467 | AM167: 0.08127176915
A168: 415 | B168: 1660 | C168: 166000000 | D168: 0.04560727801 | E168: 0.06092997808 | F168: 0.07625267816 | G168: 0.09130504714 | H168: 0.09978233606 | I168: 0.108259625 | J168: 0.06411677262 | K168: 0.07887089048 | L168: 0.09362500834 | M168: 0.2163043241 | N168: 0.27833277 | O168: 0.3403612159 | P168: 0.1419254019 | Q168: 0.1637600792 | R168: 0.1855947564 | S168: 0.2843469567 | T168: 0.3011631746 | U168: 0.3179793924 | V168: 0.07289967171 | W168: 0.1298060481 | X168: 0.1867124245 | Y168: 0.0867381782 | Z168: 0.1041915921 | AA168: 0.121645006 | AB168: 0.07643676006 | AC168: 0.09172411208 | AD168: 0.1070114641 | AE168: 0.09991636121 | AF168: 0.1309375996 | AG168: 0.1619588379 | AH168: 0.1482399023 | AI168: 0.1879815935 | AJ168: 0.2277232848 | AK168: 0.04208236951 | AL168: 0.0612305486 | AM168: 0.08080507175
A169: 417.5 | B169: 1670 | C169: 167000000 | D169: 0.04540400015 | E169: 0.06063494753 | F169: 0.07586589491 | G169: 0.0911002718 | H169: 0.09952679851 | I169: 0.1079533252 | J169: 0.06378110029 | K169: 0.07844687014 | L169: 0.09311263998 | M169: 0.215708627 | N169: 0.277566248 | O169: 0.339423869 | P169: 0.1417171973 | Q169: 0.1635198431 | R169: 0.1853224888 | S169: 0.2829828207 | T169: 0.2997183639 | U169: 0.316453907 | V169: 0.0725499221 | W169: 0.1291832797 | X169: 0.1858166372 | Y169: 0.08657023285 | Z169: 0.1039898529 | AA169: 0.1214094729 | AB169: 0.07607006252 | AC169: 0.09128407503 | AD169: 0.1064980875 | AE169: 0.09933602371 | AF169: 0.1301715061 | AG169: 0.1610069886 | AH169: 0.1473897035 | AI169: 0.1868934205 | AJ169: 0.2263971376 | AK169: 0.04184897536 | AL169: 0.0608833016 | AM169: 0.08034396354
A170: 420 | B170: 1680 | C170: 168000000 | D170: 0.04520314227 | E170: 0.06034342925 | F170: 0.07548371623 | G170: 0.09089793426 | H170: 0.09927430307 | I170: 0.1076506719 | J170: 0.06344942406 | K170: 0.07802789766 | L170: 0.09260637125 | M170: 0.2148233781 | N170: 0.276427141 | O170: 0.3380309038 | P170: 0.1414072284 | Q170: 0.1631621866 | R170: 0.1849171448 | S170: 0.2809609827 | T170: 0.2975769548 | U170: 0.3141929269 | V170: 0.07203154519 | W170: 0.1282602514 | X170: 0.1844889576 | Y170: 0.08632034575 | Z170: 0.1036896836 | AA170: 0.1210590215 | AB170: 0.07552656606 | AC170: 0.09063187927 | AD170: 0.1057371925 | AE170: 0.09878851683 | AF170: 0.1294555174 | AG170: 0.160122518 | AH170: 0.1465496261 | AI170: 0.185818202 | AJ170: 0.2250867779 | AK170: 0.04161835972 | AL170: 0.06054018848 | AM170: 0.07988834471
A171: 422.5 | B171: 1690 | C171: 169000000 | D171: 0.04500466141 | E171: 0.06005536089 | F171: 0.07510606037 | G171: 0.09069799124 | H171: 0.09902479574 | I171: 0.1073516002 | J171: 0.06312167299 | K171: 0.07761388343 | L171: 0.09210609387 | M171: 0.2142386855 | N171: 0.2756747791 | O171: 0.3371108727 | P171: 0.1412021295 | Q171: 0.162925534 | R171: 0.1846489385 | S171: 0.2796290652 | T171: 0.2961662679 | U171: 0.3127034707 | V171: 0.07169005647 | W171: 0.1276521924 | X171: 0.1836143283 | Y171: 0.08615509185 | Z171: 0.1034911774 | AA171: 0.120827263 | AB171: 0.07516852919 | AC171: 0.09020223503 | AD171: 0.1052359409 | AE171: 0.09822172087 | AF171: 0.1287072599 | AG171: 0.1591927989 | AH171: 0.1457194905 | AI171: 0.1847557079 | AJ171: 0.2237919254 | AK171: 0.04139047326 | AL171: 0.06020113588 | AM171: 0.07943811781
A172: 425 | B172: 1700 | C172: 170000000 | D172: 0.04480851561 | E172: 0.05977068157 | F172: 0.07473284752 | G172: 0.09050040049 | H172: 0.09877822379 | I172: 0.1070560471 | J172: 0.06279777781 | K172: 0.07720473995 | L172: 0.0916117021 | M172: 0.2133697409 | N172: 0.2745566519 | O172: 0.3357435629 | P172: 0.1408967625 | Q172: 0.1625731875 | R172: 0.1842496125 | S172: 0.2776546994 | T172: 0.2940751386 | U172: 0.3104955778 | V172: 0.07118385153 | W172: 0.1267508377 | X172: 0.1823178238 | Y172: 0.08590919495 | Z172: 0.1031958013 | AA172: 0.1204824076 | AB172: 0.07463779379 | AC172: 0.08956535255 | AD172: 0.1044929113 | AE172: 0.0976615931 | AF172: 0.1279678054 | AG172: 0.1582740178 | AH172: 0.1448991212 | AI172: 0.1837057138 | AJ172: 0.2225123064 | AK172: 0.04116526781 | AL172: 0.05986607213 | AM172: 0.07899318771
A173: 427.5 | B173: 1710 | C173: 171000000 | D173: 0.04461466392 | E173: 0.05948933183 | F173: 0.07436399974 | G173: 0.09030512074 | H173: 0.09853453572 | I173: 0.1067639507 | J173: 0.06247767088 | K173: 0.07680038178 | L173: 0.09112309268 | M173: 0.2127957814 | N173: 0.2738181011 | O173: 0.3348404208 | P173: 0.1406946984 | Q173: 0.1623400366 | R173: 0.1839853748 | S173: 0.2763538722 | T173: 0.2926973808 | U173: 0.3090408894 | V173: 0.07085033444 | W173: 0.1261569731 | X173: 0.1814636117 | Y173: 0.08574657203 | Z173: 0.1030004554 | AA173: 0.1202543388 | AB173: 0.07428811436 | AC173: 0.08914573724 | AD173: 0.1040033601 | AE173: 0.09710801653 | AF173: 0.1272369996 | AG173: 0.1573659826 | AH173: 0.1440883468 | AI173: 0.1826680003 | AJ173: 0.2212476538 | AK173: 0.04094269635 | AL173: 0.05953492726 | AM173: 0.07855346147
A174: 430 | B174: 1720 | C174: 172000000 | D174: 0.04442306632 | E174: 0.0592112536 | F174: 0.07399944088 | G174: 0.09011211168 | H174: 0.09829368122 | I174: 0.1064752508 | J174: 0.06216128612 | K174: 0.07640072545 | L174: 0.09064016477 | M174: 0.2119427361 | N174: 0.2727204325 | O174: 0.3334981289 | P174: 0.1403938351 | Q174: 0.1619928866 | R174: 0.1835919382 | S174: 0.2744253262 | T174: 0.2906547809 | U174: 0.3068842357 | V174: 0.07035587774 | W174: 0.1252765374 | X174: 0.1801971971 | Y174: 0.08550457879 | Z174: 0.1027097684 | AA174: 0.1199149581 | AB174: 0.0737696958 | AC174: 0.08852363497 | AD174: 0.1032775741 | AE174: 0.09658737353 | AF174: 0.1265565847 | AG174: 0.1565257959 | AH174: 0.1432870001 | AI174: 0.1816423532 | AJ174: 0.2199977064 | AK174: 0.04072271293 | AL174: 0.0592076329 | AM174: 0.07811884832
A175: 432.5 | B175: 1730 | C175: 173000000 | D175: 0.04423368371 | E175: 0.05893639014 | F175: 0.07363909658 | G175: 0.08992133394 | H175: 0.09805561117 | I175: 0.1061898884 | J175: 0.06184855899 | K175: 0.07600568942 | L175: 0.09016281984 | M175: 0.2113792371 | N175: 0.2719953419 | O175: 0.3326114467 | P175: 0.1401947341 | Q175: 0.1617631547 | R175: 0.1833315753 | S175: 0.2731545134 | T175: 0.2893088125 | U175: 0.3054631117 | V175: 0.07003005637 | W175: 0.1246963759 | X175: 0.1793626954 | Y175: 0.08534452419 | Z175: 0.1025175077 | AA175: 0.1196904912 | AB175: 0.07342808457 | AC175: 0.08811370148 | AD175: 0.1027993184 | AE175: 0.09604640605 | AF175: 0.1258423848 | AG175: 0.1556383636 | AH175: 0.1424949174 | AI175: 0.1806285634 | AJ175: 0.2187622093 | AK175: 0.04050527267 | AL175: 0.0588841223 | AM175: 0.0776892596
A176: 435 | B176: 1740 | C176: 174000000 | D176: 0.04404647792 | E176: 0.05866468604 | F176: 0.07328289416 | G176: 0.08973274905 | H176: 0.09782027755 | I176: 0.1059078061 | J176: 0.06153942642 | K176: 0.07561519403 | L176: 0.08969096164 | M176: 0.2105417009 | N176: 0.2709176298 | O176: 0.3312935588 | P176: 0.1398982692 | Q176: 0.1614210798 | R176: 0.1829438905 | S176: 0.2712702103 | T176: 0.2873130722 | U176: 0.3033559341 | V176: 0.06954694362 | W176: 0.1238361394 | X176: 0.1781253352 | Y176: 0.08510634243 | Z176: 0.1022313991 | AA176: 0.1193564559 | AB176: 0.07292155902 | AC176: 0.08750587082 | AD176: 0.1020901826 | AE176: 0.09551165659 | AF176: 0.1251363941 | AG176: 0.1547611316 | AH176: 0.1417119392 | AI176: 0.1796264262 | AJ176: 0.2175409133 | AK176: 0.04029033172 | AL176: 0.05856433021 | AM176: 0.07726460868
A177: 437.5 | B177: 1750 | C177: 175000000 | D177: 0.04386141163 | E177: 0.05839608713 | F177: 0.07293076263 | G177: 0.0895463194 | H177: 0.09758763346 | I177: 0.1056289475 | J177: 0.06123382679 | K177: 0.07522916144 | L177: 0.08922449609 | M177: 0.2099884223 | N177: 0.2702056904 | O177: 0.3304229586 | P177: 0.139702074 | Q177: 0.1611947008 | R177: 0.1826873275 | S177: 0.2700283849 | T177: 0.2859978055 | U177: 0.3019672261 | V177: 0.06922855464 | W177: 0.1232692121 | X177: 0.1773098695 | Y177: 0.08494880509 | Z177: 0.1020421622 | AA177: 0.1191355193 | AB177: 0.07258773993 | AC177: 0.08710528791 | AD177: 0.1016228359 | AE177: 0.09498301855 | AF177: 0.1244384718 | AG177: 0.1538939251 | AH177: 0.1409379093 | AI177: 0.1786357421 | AJ177: 0.2163335749 | AK177: 0.04007784724 | AL177: 0.05824819288 | AM177: 0.07684481092
A178: 440 | B178: 1760 | C178: 176000000 | D178: 0.04367844836 | E178: 0.05813054047 | F178: 0.07258263259 | G178: 0.08936200827 | H178: 0.09735763305 | I178: 0.1053532578 | J178: 0.06093169988 | K178: 0.07484751559 | L178: 0.08876333129 | M178: 0.2091906894 | N178: 0.269179196 | O178: 0.3291677025 | P178: 0.1394099178 | Q178: 0.1608575975 | R178: 0.1823052772 | S178: 0.2681868196 | T178: 0.2840473304 | U178: 0.2999078413 | V178: 0.06875639989 | W178: 0.1224284876 | X178: 0.1761005752 | Y178: 0.08471435526 | Z178: 0.1017605365 | AA178: 0.1188067177 | AB178: 0.07209270277 | AC178: 0.08651124333 | AD178: 0.1009297839 | AE178: 0.09448751526 | AF178: 0.1237913713 | AG178: 0.1530952273 | AH178: 0.1401726752 | AI178: 0.1776563158 | AJ178: 0.2151399564 | AK178: 0.03986777735 | AL178: 0.05793564803 | AM178: 0.07642978358
A179: 442.5 | B179: 1770 | C179: 177000000 | D179: 0.04349755247 | E179: 0.05786799435 | F179: 0.07223843623 | G179: 0.08917977976 | H179: 0.09713023151 | I179: 0.1050806833 | J179: 0.06063298684 | K179: 0.07447018211 | L179: 0.08830737739 | M179: 0.2086667584 | N179: 0.26850502 | O179: 0.3283432816 | P179: 0.1392165624 | Q179: 0.1606344951 | R179: 0.1820524278 | S179: 0.266973001 | T179: 0.2827617269 | U179: 0.2985504527 | V179: 0.06844519187 | W179: 0.1218743467 | X179: 0.1753035016 | Y179: 0.08455927709 | Z179: 0.1015742536 | AA179: 0.1185892301 | AB179: 0.07176641222 | AC179: 0.08611969467 | AD179: 0.1004729771 | AE179: 0.09397063664 | AF179: 0.1231089342 | AG179: 0.1522472317 | AH179: 0.1394160878 | AI179: 0.1766879564 | AJ179: 0.213959825 | AK179: 0.03966008114 | AL179: 0.05762663476 | AM179: 0.07601944582
A180: 445 | B180: 1780 | C180: 178000000 | D180: 0.04331868912 | E180: 0.05760839818 | F180: 0.07189810724 | G180: 0.08899959875 | H180: 0.09690538504 | I180: 0.1048111713 | J180: 0.06033763012 | K180: 0.07409708834 | L180: 0.08785654657 | M180: 0.2078876087 | N180: 0.2675024377 | O180: 0.3271172666 | P180: 0.138928633 | Q180: 0.1603022689 | R180: 0.1816759047 | S180: 0.2651727358 | T180: 0.2808549944 | U180: 0.296537253 | V180: 0.06798362647 | W180: 0.1210524778 | X180: 0.174121329 | Y180: 0.08433193731 | Z180: 0.1013011686 | AA180: 0.1182703999 | AB180: 0.071282477 | AC180: 0.0855389724 | AD180: 0.09979546781 | AE180: 0.09345956565 | AF180: 0.1224341649 | AG180: 0.1514087641 | AH180: 0.1386680014 | AI180: 0.1757304774 | AJ180: 0.2127929535 | AK180: 0.03945471859 | AL180: 0.05732109354 | AM180: 0.0756137186
A181: 447.5 | B181: 1790 | C181: 179000000 | D181: 0.04314182424 | E181: 0.05735170253 | F181: 0.07156158081 | G181: 0.08882143093 | H181: 0.09668305082 | I181: 0.1045446707 | J181: 0.06004557347 | K181: 0.07372816321 | L181: 0.08741075296 | M181: 0.2073726286 | N181: 0.2668397795 | O181: 0.3263069303 | P181: 0.1387380615 | Q181: 0.1600823787 | R181: 0.1814266958 | S181: 0.2639859871 | T181: 0.2795980616 | U181: 0.2952101361 | V181: 0.06767935918 | W181: 0.1205106957 | X181: 0.1733420322 | Y181: 0.08419164481 | Z181: 0.1011326465 | AA181: 0.1180736482 | AB181: 0.07096346315 | AC181: 0.08515615579 | AD181: 0.09934884842 | AE181: 0.09295420495 | AF181: 0.1217669349 | AG181: 0.1505796649 | AH181: 0.1379282734 | AI181: 0.1747836966 | AJ181: 0.2116391197 | AK181: 0.0392516506 | AL181: 0.05701896619 | AM181: 0.07521252464
A182: 450 | B182: 1800 | C182: 180000000 | D182: 0.04296692453 | E182: 0.05709785905 | F182: 0.07122879356 | G182: 0.08864524276 | H182: 0.09646318698 | I182: 0.1042811312 | J182: 0.0597567619 | K182: 0.07336333725 | L182: 0.08696991261 | M182: 0.206606765 | N182: 0.2658542933 | O182: 0.3251018215 | P182: 0.1384542579 | Q182: 0.159754913 | R182: 0.1810555681 | S182: 0.2622256481 | T182: 0.2777336166 | U182: 0.293241585 | V182: 0.06722803084 | W182: 0.1197070549 | X182: 0.172186079 | Y182: 0.08398273224 | Z182: 0.1008816967 | AA182: 0.1177806611 | AB182: 0.07049026055 | AC182: 0.08458831266 | AD182: 0.09868636476 | AE182: 0.09248227791 | AF182: 0.121151102 | AG182: 0.149819926 | AH182: 0.1371967647 | AI182: 0.1738474355 | AJ182: 0.2104981063 | AK182: 0.03905083891 | AL182: 0.05672019582 | AM182: 0.07481578839
A183: 452.5 | B183: 1810 | C183: 181000000 | D183: 0.04279395741 | E183: 0.05684682047 | F183: 0.07089968352 | G183: 0.08847100141 | H183: 0.09624575257 | I183: 0.1040205037 | J183: 0.05947114161 | K183: 0.07300254252 | L183: 0.08653394342 | M183: 0.2061005338 | N183: 0.2652028928 | O183: 0.3243052518 | P183: 0.1382909939 | Q183: 0.1595665315 | R183: 0.180842069 | S183: 0.2610650738 | T183: 0.2765044061 | U183: 0.2919437384 | V183: 0.06693047464 | W183: 0.1191772227 | X183: 0.1714239708 | Y183: 0.08384445905 | Z183: 0.1007156002 | AA183: 0.1175867414 | AB183: 0.07017828266 | AC183: 0.0842139392 | AD183: 0.09824959573 | AE183: 0.09198790069 | AF183: 0.1204983335 | AG183: 0.1490087662 | AH183: 0.136473339 | AI183: 0.1729215199 | AJ183: 0.2093697008 | AK183: 0.03885224615 | AL183: 0.05642472677 | AM183: 0.07442343597
A184: 455 | B184: 1820 | C184: 182000000 | D184: 0.04262289103 | E184: 0.05659854055 | F184: 0.07057419007 | G184: 0.0882986748 | H184: 0.09603070755 | I184: 0.1037627403 | J184: 0.05918866 | K184: 0.07264571255 | L184: 0.08610276511 | M184: 0.2053476282 | N184: 0.2642340804 | O184: 0.3231205326 | P184: 0.1380477081 | Q184: 0.159285817 | R184: 0.180523926 | S184: 0.2593433473 | T184: 0.2746808571 | U184: 0.2900183669 | V184: 0.06648904654 | W184: 0.1183912104 | X184: 0.1702933743 | Y184: 0.08363853611 | Z184: 0.1004682416 | AA184: 0.117297947 | AB184: 0.06971545955 | AC184: 0.08365855146 | AD184: 0.09760164337 | AE184: 0.09149895618 | AF184: 0.1198527382 | AG184: 0.1482065203 | AH184: 0.135757863 | AI184: 0.1720057792 | AJ184: 0.2082536953 | AK184: 0.03865583571 | AL184: 0.05613250464 | AM184: 0.07403539511
A185: 457.5 | B185: 1830 | C185: 183000000 | D185: 0.04245369423 | E185: 0.05635297408 | F185: 0.07025225393 | G185: 0.08812823154 | H185: 0.09581801274 | I185: 0.1035077939 | J185: 0.05890926563 | K185: 0.07229278237 | L185: 0.08567629912 | M185: 0.2048499455 | N185: 0.2635936799 | O185: 0.3223374142 | P185: 0.1378865735 | Q185: 0.1590998925 | R185: 0.1803132115 | S185: 0.2582080909 | T185: 0.2734784619 | U185: 0.2887488328 | V185: 0.06619798182 | W185: 0.117872937 | X185: 0.1695478922 | Y185: 0.08350223327 | Z185: 0.1003045119 | AA185: 0.1171067906 | AB185: 0.0694102874 | AC185: 0.08329234488 | AD185: 0.09717440236 | AE185: 0.09101535532 | AF185: 0.1192141987 | AG185: 0.147413042 | AH185: 0.1350502064 | AI185: 0.1711000465 | AJ185: 0.2071498866 | AK185: 0.03846157184 | AL185: 0.05584347619 | AM185: 0.07365159514
A186: 460 | B186: 1840 | C186: 184000000 | D186: 0.04228633652 | E186: 0.05611007681 | F186: 0.0699338171 | G186: 0.08795964092 | H186: 0.09560762983 | I186: 0.1032556187 | J186: 0.05863290815 | K186: 0.07194368839 | L186: 0.08525446863 | M186: 0.2041097191 | N186: 0.2626411826 | O186: 0.3211726462 | P186: 0.1376464612 | Q186: 0.1588228398 | R186: 0.1799992184 | S186: 0.2565237203 | T186: 0.271694478 | U186: 0.2868652356 | V186: 0.06576613172 | W186: 0.1171039794 | X186: 0.1684418272 | Y186: 0.08329923692 | Z186: 0.1000606687 | AA186: 0.1168221006 | AB186: 0.06895750598 | AC186: 0.08274900717 | AD186: 0.09654050837 | AE186: 0.090537011 | AF186: 0.1185825998 | AG186: 0.1466281885 | AH186: 0.1343502417 | AI186: 0.1702041588 | AJ186: 0.2060580759 | AK186: 0.03826941954 | AL186: 0.05555758936 | AM186: 0.07327196691
A187: 462.5 | B187: 1850 | C187: 185000000 | D187: 0.04212078809 | E187: 0.05586980546 | F187: 0.06961882282 | G187: 0.0877928729 | H187: 0.09539952133 | I187: 0.1030061698 | J187: 0.05835953832 | K187: 0.07159836839 | L187: 0.08483719847 | M187: 0.2036203914 | N187: 0.2620115331 | O187: 0.3204026748 | P187: 0.1374874214 | Q187: 0.1586393324 | R187: 0.1797912434 | S187: 0.2554129622 | T187: 0.2705180299 | U187: 0.2856230976 | V187: 0.06548134836 | W187: 0.1165968907 | X187: 0.167712433 | Y187: 0.08316486623 | Z187: 0.09989926004 | AA187: 0.1166336539 | AB187: 0.06865891928 | AC187: 0.08239070313 | AD187: 0.09612248699 | AE187: 0.090092258 | AF187: 0.1180027633 | AG187: 0.1459132686 | AH187: 0.1336578442 | AI187: 0.1693179563 | AJ187: 0.2049780685 | AK187: 0.03807934456 | AL187: 0.05527479319 | AM187: 0.07289644276
A188: 465 | B188: 1860 | C188: 186000000 | D188: 0.04195701975 | E188: 0.05563211766 | F188: 0.06930721558 | G188: 0.08762789808 | H188: 0.09519365056 | I188: 0.102759403 | J188: 0.05808910794 | K188: 0.07125676151 | L188: 0.08442441509 | M188: 0.2028925646 | N188: 0.2610749912 | O188: 0.3192574178 | P188: 0.1372503986 | Q188: 0.1583658446 | R188: 0.1794812905 | S188: 0.2537647448 | T188: 0.2687723373 | U188: 0.2837799297 | V188: 0.06505876789 | W188: 0.1158444387 | X188: 0.1666301096 | Y188: 0.08296473587 | Z188: 0.09965885955 | AA188: 0.1163529832 | AB188: 0.06821585625 | AC188: 0.0818590275 | AD188: 0.09550219875 | AE188: 0.08962402005 | AF188: 0.1173844689 | AG188: 0.1451449177 | AH188: 0.1329728918 | AI188: 0.1684412829 | AJ188: 0.203909674 | AK188: 0.03789131339 | AL188: 0.05499503784 | AM188: 0.07252495651
A189: 467.5 | B189: 1870 | C189: 187000000 | D189: 0.04179500294 | E189: 0.05539697199 | F189: 0.06899894104 | G189: 0.0874646877 | H189: 0.09498998161 | I189: 0.1025152755 | J189: 0.05782156987 | K189: 0.07091880818 | L189: 0.08401604649 | M189: 0.2024146163 | N189: 0.2604599842 | O189: 0.3185053521 | P189: 0.1370934063 | Q189: 0.1581846995 | R189: 0.1792759928 | S189: 0.2526777006 | T189: 0.2676210055 | U189: 0.2825643104 | V189: 0.06478006471 | W189: 0.1153481764 | X189: 0.1659162882 | Y189: 0.08283225622 | Z189: 0.09949972241 | AA189: 0.1161671886 | AB189: 0.0679236441 | AC189: 0.08150837292 | AD189: 0.09509310174 | AE189: 0.08916079 | AF189: 0.1167727872 | AG189: 0.1443847845 | AH189: 0.1322952652 | AI189: 0.1675739857 | AJ189: 0.2028527063 | AK189: 0.03770529325 | AL189: 0.05471827453 | AM189: 0.07215744337
A190: 470 | B190: 1880 | C190: 188000000 | D190: 0.04163470971 | E190: 0.05516432786 | F190: 0.06869394601 | G190: 0.0873032136 | H190: 0.09478847934 | I190: 0.1022737451 | J190: 0.05755687795 | K190: 0.0705844501 | L190: 0.08361202225 | M190: 0.2017274144 | N190: 0.2595757171 | O190: 0.3174240197 | P190: 0.1368594219 | Q190: 0.1579147175 | R190: 0.1789700132 | S190: 0.2510644848 | T190: 0.2659123844 | U190: 0.2807602841 | V190: 0.06436645858 | W190: 0.1146117043 | X190: 0.16485695 | Y190: 0.08263493361 | Z190: 0.09926269464 | AA190: 0.1158904557 | AB190: 0.06748998991 | AC190: 0.08098798789 | AD190: 0.09448598587 | AE190: 0.08870248792 | AF190: 0.1161676128 | AG190: 0.1436327378 | AH190: 0.1316248473 | AI190: 0.1667159151 | AJ190: 0.2018069829 | AK190: 0.03752125205 | AL190: 0.05444445551 | AM190: 0.07179383995
A191: 472.5 | B191: 1890 | C191: 189000000 | D191: 0.04147611271 | E191: 0.05493414558 | F191: 0.06839217845 | G191: 0.08714344821 | H191: 0.09458910938 | I191: 0.1020347705 | J191: 0.057294987 | K191: 0.0702536302 | L191: 0.08321227339 | M191: 0.2012729172 | N191: 0.2589908861 | O191: 0.316708855 | P191: 0.1367044238 | Q191: 0.1577358737 | R191: 0.1787673235 | S191: 0.250000403 | T191: 0.2647853731 | U191: 0.2795703432 | V191: 0.06409364293 | W191: 0.1141259254 | X191: 0.1641582079 | Y191: 0.08250430544 | Z191: 0.09910578153 | AA191: 0.1157072576 | AB191: 0.06720395033 | AC191: 0.0806447404 | AD191: 0.09408553047 | AE191: 0.08827828075 | AF191: 0.1156150813 | AG191: 0.1429518819 | AH191: 0.1309615238 | AI191: 0.1658669246 | AJ191: 0.2007723253 | AK191: 0.03733915838 | AL191: 0.05417353404 | AM191: 0.07143408418
A192: 475 | B192: 1900 | C192: 190000000 | D192: 0.04131918515 | E192: 0.05470638626 | F192: 0.06809358738 | G192: 0.08698536457 | H192: 0.09439183804 | I192: 0.1017983115 | J192: 0.05703585279 | K192: 0.06992629261 | L192: 0.08281673242 | M192: 0.2005965458 | N192: 0.2581205552 | O192: 0.3156445647 | P192: 0.1364734108 | Q192: 0.1574693202 | R192: 0.1784652296 | S192: 0.2484210856 | T192: 0.2631126551 | U192: 0.2778042247 | V192: 0.06368872827 | W192: 0.1134049294 | X192: 0.1631211306 | Y192: 0.0823097301 | Z192: 0.09887205383 | AA192: 0.1154343776 | AB192: 0.06677940841 | AC192: 0.08013529009 | AD192: 0.09349117178 | AE192: 0.08782944769 | AF192: 0.1150223704 | AG192: 0.1422152931 | AH192: 0.1303051826 | AI192: 0.1650268708 | AJ192: 0.1997485589 | AK192: 0.03715898148 | AL192: 0.05390546438 | AM192: 0.07107811532
A193: 477.5 | B193: 1910 | C193: 191000000 | D193: 0.04116390081 | E193: 0.05448101187 | F193: 0.06779812293 | G193: 0.08682893625 | H193: 0.09419663237 | I193: 0.1015643285 | J193: 0.05677943204 | K193: 0.06960238263 | L193: 0.08242533323 | M193: 0.2001491874 | N193: 0.2575449102 | O193: 0.314940633 | P193: 0.1363203746 | Q193: 0.1572927399 | R193: 0.1782651052 | S193: 0.2473792463 | T193: 0.2620092017 | U193: 0.2766391571 | V193: 0.06342161554 | W193: 0.1129293052 | X193: 0.1624369949 | Y193: 0.08218091531 | Z193: 0.098717319 | AA193: 0.1152537227 | AB193: 0.06649934788 | AC193: 0.07979921746 | AD193: 0.09309908703 | AE193: 0.08738531445 | AF193: 0.1144358658 | AG193: 0.1414864172 | AH193: 0.1296557142 | AI193: 0.1641956134 | AJ193: 0.1987355125 | AK193: 0.03698069125 | AL193: 0.05364020173 | AM193: 0.07072587388
A194: 480 | B194: 1920 | C194: 192000000 | D194: 0.04101023401 | E194: 0.05425798512 | F194: 0.06750573622 | G194: 0.08667413739 | H194: 0.0940034601 | I194: 0.1013327828 | J194: 0.05652568232 | K194: 0.06928184672 | L194: 0.08203801112 | M194: 0.1994834149 | N194: 0.2566882178 | O194: 0.3138930206 | P194: 0.1360922649 | Q194: 0.1570295365 | R194: 0.177966808 | S194: 0.2458327698 | T194: 0.260371267 | U194: 0.2749097641 | V194: 0.06302512123 | W194: 0.1122233026 | X194: 0.161421484 | Y194: 0.08198903338 | Z194: 0.09848682669 | AA194: 0.11498462 | AB194: 0.06608363401 | AC194: 0.07930036081 | AD194: 0.09251708761 | AE194: 0.08694580761 | AF194: 0.1138554707 | AG194: 0.1407651338 | AH194: 0.129013011 | AI194: 0.1633730149 | AJ194: 0.1977330187 | AK194: 0.03680425821 | AL194: 0.05337770224 | AM194: 0.07037730162
A195: 482.5 | B195: 1930 | C195: 193000000 | D195: 0.04085815962 | E195: 0.05403726953 | F195: 0.06721637944 | G195: 0.08652094266 | H195: 0.0938122896 | I195: 0.1011036365 | J195: 0.05627456214 | K195: 0.06896463242 | L195: 0.0816547027 | M195: 0.1990430401 | N195: 0.256121559 | O195: 0.3132000779 | P195: 0.1359411521 | Q195: 0.1568551755 | R195: 0.1777691989 | S195: 0.2448124829 | T195: 0.2592906404 | U195: 0.273768798 | V195: 0.06276353445 | W195: 0.111757518 | X195: 0.1607515015 | Y195: 0.0818619997 | Z195: 0.09833423135 | AA195: 0.114806463 | AB195: 0.06580936699 | AC195: 0.07897124039 | AD195: 0.09213311379 | AE195: 0.08651085524 | AF195: 0.11328109 | AG195: 0.1400513248 | AH195: 0.128376968 | AI195: 0.1625589407 | AJ195: 0.1967409135 | AK195: 0.03662965349 | AL195: 0.05311792294 | AM195: 0.07003234151
A196: 485 | B196: 1940 | C196: 194000000 | D196: 0.040707653 | E196: 0.05381882936 | F196: 0.06693000571 | G196: 0.08636932725 | H196: 0.09362308993 | I196: 0.1008768526 | J196: 0.05602603083 | K196: 0.06865068838 | L196: 0.08127534592 | M196: 0.1983876324 | N196: 0.2552782034 | O196: 0.3121687745 | P196: 0.1357158951 | Q196: 0.1565952636 | R196: 0.1774746321 | S196: 0.2432978336 | T196: 0.2576864152 | U196: 0.2720749967 | V196: 0.06237520053 | W196: 0.1110660458 | X196: 0.1597568912 | Y196: 0.08167275934 | Z196: 0.09810691213 | AA196: 0.1145410649 | AB196: 0.06540220865 | AC196: 0.07848265038 | AD196: 0.09156309211 | AE196: 0.08611037786 | AF196: 0.1127600489 | AG196: 0.13940972 | AH196: 0.1277474821 | AI196: 0.1617532591 | AJ196: 0.1957590361 | AK196: 0.03645684882 | AL196: 0.05286082179 | AM196: 0.06969093768
A197: 487.5 | B197: 1950 | C197: 195000000 | D197: 0.04055869004 | E197: 0.0536026296 | F197: 0.06664656915 | G197: 0.08621926688 | H197: 0.09343583078 | I197: 0.1006523947 | J197: 0.05578004855 | K197: 0.06833996427 | L197: 0.08089987998 | M197: 0.1979540911 | N197: 0.2547203378 | O197: 0.3114865845 | P197: 0.1355666615 | Q197: 0.156423071 | R197: 0.1772794805 | S197: 0.242298437 | T197: 0.2566279145 | U197: 0.2709573919 | V197: 0.06211896998 | W197: 0.1106097986 | X197: 0.1591006272 | Y197: 0.08154746693 | Z197: 0.09795640844 | AA197: 0.11436535 | AB197: 0.06513355721 | AC197: 0.07816026866 | AD197: 0.0911869801 | AE197: 0.08568417079 | AF197: 0.1121971769 | AG197: 0.1387101829 | AH197: 0.1271244524 | AI197: 0.1609558409 | AJ197: 0.1947872293 | AK197: 0.03628581651 | AL197: 0.05260635756 | AM197: 0.06935303544
A198: 490 | B198: 1960 | C198: 196000000 | D198: 0.04041124712 | E198: 0.05338863596 | F198: 0.0663660248 | G198: 0.08607073773 | H198: 0.09325048242 | I198: 0.1004302271 | J198: 0.0555365763 | K198: 0.06803241081 | L198: 0.08052824532 | M198: 0.1973088318 | N198: 0.253890041 | O198: 0.3104712501 | P198: 0.1353441942 | Q198: 0.1561663779 | R198: 0.1769885616 | S198: 0.2408146424 | T198: 0.2550563686 | U198: 0.2692980948 | V198: 0.06173854711 | W198: 0.109932413 | X198: 0.1581262788 | Y198: 0.08136081377 | Z198: 0.09773219703 | AA198: 0.1141035803 | AB198: 0.06473469297 | AC198: 0.07768163157 | AD198: 0.09062857016 | AE198: 0.08526231278 | AF198: 0.1116400484 | AG198: 0.138017784 | AH198: 0.1265077803 | AI198: 0.1601665596 | AJ198: 0.1938253389 | AK198: 0.03611652942 | AL198: 0.05235448992 | AM198: 0.06901858118
A199: 492.5 | B199: 1970 | C199: 197000000 | D199: 0.04026530107 | E199: 0.05317681484 | F199: 0.06608832861 | G199: 0.08592371649 | H199: 0.09306701578 | I199: 0.1002103151 | J199: 0.05529557585 | K199: 0.06772797972 | L199: 0.0801603836 | M199: 0.1968819895 | N199: 0.2533407953 | O199: 0.3097996011 | P199: 0.1351968047 | Q199: 0.1559963132 | R199: 0.1767958216 | S199: 0.2398355011 | T199: 0.2540193211 | U199: 0.2682031411 | V199: 0.06148750994 | W199: 0.1094854131 | X199: 0.1574833163 | Y199: 0.08123723291 | Z199: 0.09758374929 | AA199: 0.1139302657 | AB199: 0.0644714864 | AC199: 0.07736578368 | AD199: 0.09026008096 | AE199: 0.08484473759 | AF199: 0.1110885761 | AG199: 0.1373324146 | AH199: 0.1258973687 | AI199: 0.1593852913 | AJ199: 0.1928732138 | AK199: 0.03594896099 | AL199: 0.0521051793 | AM199: 0.06868752239
A200: 495 | B200: 1980 | C200: 198000000 | D200: 0.04012082923 | E200: 0.05296713333 | F200: 0.06581343744 | G200: 0.08577818031 | H200: 0.09288540233 | I200: 0.09999262435 | J200: 0.05505700974 | K200: 0.0674266237 | L200: 0.07979623766 | M200: 0.196246675 | N200: 0.252523295 | O200: 0.308799915 | P200: 0.1349770772 | Q200: 0.1557427813 | R200: 0.1765084855 | S200: 0.238381628 | T200: 0.2524794662 | U200: 0.2665773044 | V200: 0.06111475881 | W200: 0.1088216879 | X200: 0.1565286169 | Y200: 0.08105311887 | Z200: 0.09736258791 | AA200: 0.1136720569 | AB200: 0.06408066539 | AC200: 0.07689679846 | AD200: 0.08971293154 | AE200: 0.08443138033 | AF200: 0.1105426742 | AG200: 0.136653968 | AH200: 0.1252931229 | AI200: 0.1586119146 | AJ200: 0.1919307062 | AK200: 0.03578308516 | AL200: 0.05185838697 | AM200: 0.06835980763
... 202 more rows

Sheet Fig6_Ranges_365_cycles
B1: low | C1: medium | D1: high | E1: Difference
A3: PSH | B3: 0.08989956296 | C3: 0.107321263 | D3: 0.1247429631 | E3: =D3-B3 -> 0.03484340017
A4: PHES | B4: 0.08944169653 | C4: 0.1143170462 | D4: 0.1494620446 | E4: 0.06002034802
A5: dCAES | B5: 0.1137758837 | C5: 0.1234144451 | D5: 0.1330530064 | E5: 0.01927712274
A6: aCAES | B6: 0.1146067373 | C6: 0.1313819672 | D6: 0.1481571971 | E6: 0.03355045978
A7: VRF 2030 | B7: 0.1221023505 | C7: 0.1394844762 | D7: 0.156866602 | E7: 0.03476425149
A8: Pb battery 2030 | B8: 0.1351653213 | C8: 0.1545796413 | D8: 0.1739939613 | E8: 0.03882864006
A9: Li-Ion 2030 | B9: 0.1144562131 | C9: 0.1791608083 | D9: 0.2438654035 | E9: 0.1294091904
A10: Pb battery | B10: 0.1870388674 | C10: 0.209790247 | D10: 0.2325416266 | E10: 0.04550275921
A11: H2 | B11: 0.1885997339 | C11: 0.2237807363 | D11: 0.2589617387 | E11: 0.07036200475
A12: PtG | B12: 0.2609871624 | C12: 0.306172921 | D12: 0.3513586795 | E12: 0.09037151704
A13: Li-Ion | B13: 0.2652633684 | C13: 0.3322785516 | D13: 0.3992937347 | E13: 0.1340303664
A14: VRF | B14: 0.3606476806 | C14: 0.3797681878 | D14: 0.3988886951 | E14: 0.03824101447

Sheet Fig7_sensitivity_PHES
A1: precentage
A2: variation | B2: CAPEX | C2: OPEX | D2: discount rate | E2: efficiency | F2: amount of energy discharged | G2: char/dischar
A3: -0.2 | B3: -0.1004959892 | C3: -0.02522809381 | D3: -0.05556303962 | E3: 0.1025595493 | F3: 0.1449933081 | G3: -0.1000271176 | H3: -0.07897775484
A4: -0.15 | B4: -0.07537199192 | C4: -0.01892107036 | D4: -0.04195351523 | E4: 0.07239955562 | F4: 0.102348732 | G4: -0.07502033818 | H4: -0.05923266006
A5: -0.1 | B5: -0.05024799461 | C5: -0.0126140469 | D5: -0.0281541678 | E5: 0.04558727048 | F5: 0.06444185904 | G5: -0.05001355879 | H5: -0.03948844004
A6: -0.05 | B6: -0.02512399731 | C6: -0.006307023452 | D6: -0.01416762161 | E6: 0.02159521331 | F6: 0.03052564361 | G6: -0.02500677939 | H6: -0.01974422002
A7: 0 | B7: 0 | C7: 0 | D7: 0 | E7: 0 | F7: 0 | G7: 0 | H7: 0
A8: 0.05 | B8: 0.02512487207 | C8: 0.006307898213 | D8: 0.014345198 | E8: -0.01954040082 | F8: -0.02761706483 | G8: 0.02500765415 | H8: 0.01974509478
A9: 0.1 | B9: 0.05024886937 | C9: 0.01261492167 | D9: 0.02886184907 | E9: -0.03730591251 | F9: -0.05272444168 | G9: 0.05001443355 | H9: 0.0394893148
A10: 0.15 | B10: 0.07537286668 | C10: 0.01892194512 | D10: 0.0435455794 | E10: -0.05352834662 | F10: -0.07564841625 | G10: 0.07502121294 | H10: 0.05923353482
A11: 0.2 | B11: 0.100496864 | C11: 0.02522896857 | D11: 0.05839201519 | E11: -0.06840015046 | F11: -0.0966619138 | G11: 0.1000279923 | H11: 0.0789786296
